Workbook

Sheet Tarifa (hidden)
E1: Tűz és elemi károk | F1: Betöréses lopás és rablás | G1: Üzemszünet | H1: Általános felelősség | I1: Munkaadói felelősség | J1: Bérlői felelősség | K1: Termékfelelősség | L1: Szolgáltatói felelősség | M1: Környezetszennyezési | N1: Bérbeadói
S2: Felelősség limitek | Z2: 3 | AA2: díjfiz ütem | AD2: díjfiz mód | AF2: 1
A3: 1 | B3: 011 | C3: Nem évelő növény termesztése | E3: 3 | F3: 1 | G3: 2 | H3: 2 | I3: 3 | J3: 2 | K3: 1 | L3: 1 | M3: 2 | N3: 2 | O3: =VLOOKUP(O11,C259:E500,3,FALSE) -> 1 | P3: =VLOOKUP(O3,$A$3:$C$247,2) -> 011 | Q3: =VLOOKUP(O3,$A$3:$C$247,3,FALSE) -> Nem évelő növény termesztése | R3: 1 | S3: 0 | T3: 0 | U3: 0 | Z3: 1 | AA3: éves | AB3: 0.9 | AC3: 0.1 | AD3: postai utalás | AE3: 1 | AF3: 0 | AM3: lejárat | AN3: 2021-10-31
A4: 2 | B4: 012 | C4: Évelő növény termesztése | E4: 3 | F4: 1 | G4: 2 | H4: 2 | I4: 3 | J4: 2 | K4: 1 | L4: 1 | M4: 2 | N4: 2 | O4: =VLOOKUP(O16,C259:E500,3,FALSE) -> 1 | P4: =VLOOKUP(O4,$A$3:$C$247,2) -> 011 | Q4: =VLOOKUP(O4,$A$3:$C$247,3,FALSE) -> Nem évelő növény termesztése | R4: 2 | S4: 5 millió Ft | T4: 5 millió Ft | U4: 5 millió Ft | Z4: 2 | AA4: féléves | AB4: 0.94 | AC4: 0.06 | AD4: banki átutalás | AE4: 0.97 | AF4: 0.03
A5: 3 | B5: 013 | C5: Növényi szaporítóanyag termesztése | E5: 3 | F5: 1 | G5: 2 | H5: 2 | I5: 3 | J5: 2 | K5: 1 | L5: 1 | M5: 2 | N5: 2 | O5: =VLOOKUP(O21,C259:E500,3,FALSE) -> 1 | P5: =VLOOKUP(O5,$A$3:$C$247,2) -> 011 | Q5: =VLOOKUP(O5,$A$3:$C$247,3,FALSE) -> Nem évelő növény termesztése | R5: 3 | S5: 25 millió Ft | T5: 15 millió Ft | U5: 15 millió Ft | Z5: 3 | AA5: negyedéves | AB5: 0.98 | AC5: 0.02 | AD5: csoportos beszedés | AE5: 0.97 | AF5: 0.03
A6: 4 | B6: 014 | C6: Állattenyésztés | E6: 4 | F6: 2 | G6: 3 | H6: 3 | I6: 3 | J6: 2 | K6: 1 | L6: 1 | M6: 2 | N6: 2 | O6: =VLOOKUP(O26,C259:E500,3,FALSE) -> 1 | P6: =VLOOKUP(O6,$A$3:$C$247,2) -> 011 | Q6: =VLOOKUP(O6,$A$3:$C$247,3,FALSE) -> Nem évelő növény termesztése | R6: 4 | S6: 50 millió Ft | T6: 25 millió Ft | Z6: 4 | AA6: havi | AB6: 1 | AC6: 0 | AD6: csoportos beszedés K&H Banknál vezetett bankszámláról | AE6: 0.95 | AF6: 0.05 | AH6: Biztosított vagyontárgyak biztosítási összege az 5 telephelyen összesen (e ft): | AO6: =SUM('1.telephely'!B24,'2.telephely'!B21,'3.telephely'!B21,'4.telephely'!B21,'5.telephely'!B21) -> 0
A7: 5 | B7: 015 | C7: Vegyes gazdálkodás | E7: 3 | F7: 2 | G7: 2 | H7: 2 | I7: 3 | J7: 2 | K7: 2 | L7: 1 | M7: 2 | N7: 2 | O7: =VLOOKUP(O30,C259:E500,3,FALSE) -> 1 | P7: =VLOOKUP(O7,$A$3:$C$247,2) -> 011 | Q7: =VLOOKUP(O7,$A$3:$C$247,3,FALSE) -> Nem évelő növény termesztése | AB7: =VLOOKUP(Z2,Z3:AB6,3,FALSE) -> 0.98 | AC7: =VLOOKUP(Z2,Z3:AC6,4,FALSE) -> 0.02 | AE7: =VLOOKUP(AF2,Z3:AE6,6,FALSE) -> 1 | AF7: =VLOOKUP(AF2,Z3:AF6,7,FALSE) -> 0 | AH7: Éves árbevétel az 5 telephelyen összesen (e ft): | AO7: =SUM('1.telephely'!B10,'2.telephely'!B7,'3.telephely'!B7,'4.telephely'!B7,'5.telephely'!B7) -> 0
A8: 6 | B8: 016 | C8: Mezőgazdasági, betakarítást követő szolgáltatás | E8: 3 | F8: 2 | G8: 2 | H8: 2 | I8: 3 | J8: 2 | K8: 2 | L8: 1 | M8: 2 | N8: 2 | R8: Tűz | S8: =VLOOKUP(O3,$A$3:$L$247,5) -> 3 | T8: =VLOOKUP(O4,$A$3:$L$247,5) -> 3 | U8: =VLOOKUP(O5,$A$3:$L$247,5) -> 3 | V8: =VLOOKUP(O6,$A$3:$L$247,5) -> 3 | W8: =VLOOKUP(O7,$A$3:$L$247,5) -> 3 | Z8: =1-((1-AB7)+(1-IF(AB7<1,AE7,1))) -> 0.98 | AA8: =AC7+AF7 -> 0.02 | AC8: =VLOOKUP(Z2,Z3:AB6,2,FALSE) -> negyedéves | AE8: =VLOOKUP(AF2,Z3:AE6,5,FALSE) -> postai utalás
A9: 7 | B9: 017 | C9: Vadgazdálkodás, vadgazdálkodási szolgáltatás | E9: 3 | F9: 2 | G9: 2 | H9: 2 | I9: 3 | J9: 2 | K9: 2 | L9: 1 | M9: 2 | N9: 2 | S9: =HLOOKUP(S8,S10:X11,2) -> 1.95 | T9: =HLOOKUP(T8,S10:X11,2) -> 1.95 | U9: =HLOOKUP(U8,$S$10:$X$11,2) -> 1.95 | V9: =HLOOKUP(V8,$S$10:$X$11,2) -> 1.95 | W9: =HLOOKUP(W8,$S$10:$X$11,2) -> 1.95
A10: 8 | B10: 021 | C10: Erdészeti, egyéb erdőgazdálkodási tevékenység | E10: 4 | F10: 2 | G10: 2 | H10: 3 | I10: 4 | J10: 3 | K10: 1 | L10: 1 | M10: 2 | N10: 3 | O10: 1. telephely | S10: 1 | T10: 2 | U10: 3 | V10: 4 | W10: 5 | X10: 6
A11: 9 | B11: 022 | C11: Fakitermelés | E11: 4 | F11: 2 | G11: 2 | H11: 3 | I11: 4 | J11: 3 | K11: 1 | L11: 1 | M11: 2 | N11: 3 | O11: Nem évelő növény termesztése | S11: 1.71 | T11: 1.8 | U11: 1.95 | V11: 2.43 | W11: 2.7 | X11: 3.06 | AA11: DES | AB11: ='1.telephely'!C60 -> 1 | AC11: =1-AB11 -> 0 | AK11: lojalitás+DES max. 20% | AN11: =1-AO11 -> 0 | AO11: =AA15*AB11 -> 1 | AP11: =IF(AO11<0.8,"0,8",AO11) -> 1
A12: 10 | B12: 023 | C12: Vadon termő egyéb erdei termék gyűjtése | E12: 4 | F12: 2 | G12: 2 | H12: 3 | I12: 4 | J12: 3 | K12: 1 | L12: 1 | M12: 2 | N12: 3 | O12: 011 | AA12: Közp. DES | AB12: ='1.telephely'!C61 -> 1 | AC12: =1-AB12 -> 0 | AK12: volumen+csomag+lojalitás+DES max. 50% | AN12: =1-AO12 -> 0 | AO12: =AP11*AE15*AF31 -> 1 | AP12: =IF(AO12<0.5,"0,5",AO12) -> 1
A13: 11 | B13: 024 | C13: Erdészeti szolgáltatás | E13: 4 | F13: 2 | G13: 2 | H13: 3 | I13: 4 | J13: 3 | K13: 1 | L13: 1 | M13: 2 | N13: 3 | S13: =IF(U110=FALSE,"Bp",IF('1.telephely'!F5<2000,"Bp","Vidék")) -> Bp | T13: =IF(U111=FALSE,"Bp",IF('2.telephely'!F2<2000,"Bp","Vidék")) -> Bp | U13: =IF(U112=FALSE,"Bp",IF('3.telephely'!F2<2000,"Bp","Vidék")) -> Bp | V13: =IF(U113=FALSE,"Bp",IF('4.telephely'!F2<2000,"Bp","Vidék")) -> Bp | W13: =IF(U114=FALSE,"Bp",IF('5.telephely'!F2<2000,"Bp","Vidék")) -> Bp
A14: 12 | B14: 031 | C14: Halászat | E14: 1 | F14: 1 | G14: 3 | H14: 2 | I14: 1 | J14: 2 | K14: 2 | L14: 1 | M14: 2 | N14: 2 | S14: =IF(S13="Bp",1,Y17) -> 1 | T14: =IF(T13="Bp",1,Y17) -> 1 | U14: =IF(U13="Bp",1,Y17) -> 1 | V14: =IF(V13="Bp",1,Y17) -> 1 | W14: =IF(W13="Bp",1,Y17) -> 1
A15: 13 | B15: 032 | C15: Halgazdálkodás | E15: 1 | F15: 1 | G15: 3 | H15: 2 | I15: 1 | J15: 2 | K15: 2 | L15: 1 | M15: 2 | N15: 2 | O15: 2. telephely | S15: =VLOOKUP(O3,$A$3:$L$247,6) -> 1 | T15: =VLOOKUP(O4,$A$3:$L$247,6) -> 1 | U15: =VLOOKUP(O5,$A$3:$L$247,6) -> 1 | V15: =VLOOKUP(O6,$A$3:$L$247,6) -> 1 | W15: =VLOOKUP(O7,$A$3:$L$247,6) -> 1 | AA15: =VLOOKUP(AC15,AA16:AC18,3,FALSE) -> 1 | AB15: lojalitás | AC15: 1 | AD15: =VLOOKUP(AC15,AA16:AD18,4,FALSE) -> Nincs | AE15: =IF(AE16=1,AH16,IF(AE17=1,AH17,IF(AE18=1,AH18))) -> 1 | AF15: csomag | AG15: =1-AE15 -> 0
A16: 14 | B16: 101 | C16: Húsfeldolgozás, -tartósítás, húskészítmény gyártása | E16: 3 | F16: 2 | G16: 3 | H16: 2 | I16: 4 | J16: 3 | K16: 3 | L16: 0 | M16: 3 | N16: 3 | O16: Nem évelő növény termesztése | R16: Betlop | S16: =HLOOKUP(S15,S17:X18,2) -> 2.5 | T16: =HLOOKUP(T15,S17:X18,2) -> 2.5 | U16: =HLOOKUP(U15,$S$17:$X$18,2) -> 2.5 | V16: =HLOOKUP(V15,$S$17:$X$18,2) -> 2.5 | W16: =HLOOKUP(W15,$S$17:$X$18,2) -> 2.5 | Y16: Vidéki eng. | AA16: 1 | AB16: Nincs | AC16: 1 | AD16: Nincs | AE16: =IF(AND($AV$29>=AF16,$AV$29<=AG16),1,0) -> 1 | AF16: 0 | AG16: 3 | AH16: 1 | AI16: Nincs
A17: 15 | B17: 102 | C17: Halfeldolgozás, -tartósítás | E17: 3 | F17: 2 | G17: 3 | H17: 3 | I17: 3 | J17: 3 | K17: 3 | L17: 0 | M17: 3 | N17: 3 | O17: 011 | S17: 1 | T17: 2 | U17: 3 | V17: 4 | W17: 5 | X17: 6 | Y17: 0.8 | AA17: 2 | AB17: K&H Banknál vezetett vállalkozói bankszámlával rendelkezik | AC17: 0.98 | AD17: 0.02 | AE17: =IF(AND($AV$29>=AF17,$AV$29<=AG17),1,0) -> 0 | AF17: 4 | AG17: 5 | AH17: 0.95 | AI17: 0.05
A18: 16 | B18: 103 | C18: Gyümölcs-, zöldségfeldolgozás, -tartósítás | E18: 2 | F18: 2 | G18: 2 | H18: 2 | I18: 2 | J18: 2 | K18: 3 | L18: 0 | M18: 3 | N18: 2 | S18: 2.5 | T18: 3.1 | U18: 4 | V18: 4.2 | W18: 5.2 | X18: 11.2 | AA18: 3 | AB18: K&H Banknál felvett vállalkozói hitellel rendelkezik | AC18: 0.95 | AD18: 0.05 | AE18: =IF(AND($AV$29>=AF18,$AV$29<=AG18),1,0) -> 0 | AF18: 6 | AG18: 20 | AH18: 0.9 | AI18: 0.1
A19: 17 | B19: 104 | C19: Növényi, állati olaj gyártása | E19: 3 | F19: 1 | G19: 3 | H19: 2 | I19: 2 | J19: 2 | K19: 2 | L19: 0 | M19: 3 | N19: 2
A20: 18 | B20: 105 | C20: Tejfeldolgozás | E20: 3 | F20: 1 | G20: 3 | H20: 2 | I20: 3 | J20: 2 | K20: 2 | L20: 0 | M20: 3 | N20: 2 | O20: 3. telephely | AA20: irodai | AB20: 4 | AD20: vakolat | AE20: 0.5 | AG20: vandalizmus | AH20: 9
A21: 19 | B21: 106 | C21: Malomipari termék, keményítő gyártása | E21: 3 | F21: 2 | G21: 3 | H21: 2 | I21: 2 | J21: 2 | K21: 2 | L21: 0 | M21: 3 | N21: 2 | O21: Nem évelő növény termesztése | T21: =VLOOKUP(O3,$A$3:$N$247,7) -> 2 | U21: =VLOOKUP(O4,$A$3:$L$247,7) -> 2 | V21: =VLOOKUP(O5,$A$3:$L$247,7) -> 2 | W21: =VLOOKUP(O6,$A$3:$L$247,7) -> 2 | X21: =VLOOKUP(O7,$A$3:$L$247,7) -> 2 | AA21: szállítmány | AB21: 50 | AD21: tetőbeázás | AE21: 0.08 | AG21: kül.üveg | AH21: 50
A22: 20 | B22: 107 | C22: Pékáru, tésztafélék gyártása | E22: 3 | F22: 2 | G22: 3 | H22: 2 | I22: 3 | J22: 2 | K22: 3 | L22: 0 | M22: 3 | N22: 2 | O22: 011 | R22: Üzemsz | T22: =HLOOKUP(T21,$S$23:$Y$24,2) -> 0.6 | U22: =HLOOKUP(U21,$S$23:$Y$24,2) -> 0.6 | V22: =HLOOKUP(V21,$S$23:$Y$24,2) -> 0.6 | W22: =HLOOKUP(W21,$S$23:$Y$24,2) -> 0.6 | X22: =HLOOKUP(X21,$S$23:$Y$24,2) -> 0.6
A23: 21 | B23: 108 | C23: Egyéb élelmiszer gyártása | E23: 3 | F23: 2 | G23: 3 | H23: 2 | I23: 3 | J23: 2 | K23: 4 | L23: 1 | M23: 3 | N23: 2 | S23: 0 | T23: 1 | U23: 2 | V23: 3 | W23: 4 | X23: 5 | Y23: 6 | AA23: csomag | AB23: betlop | AC23: irodai | AD23: üzemszü | AE23: száll | AF23: vakolat | AG23: tetőbeázás | AH23: vandalizmus | AI23: kül.üveg | AJ23: áltfel | AK23: munkfel | AL23: termfel | AM23: bérlfel | AN23: szolgfel | AO23: bérbeadói | AP23: környezet | AQ23: szálloda | AR23: gépjármű | AS23: eredetiség | AT23: szolg.tárgy | AU23: tanuló
A24: 22 | B24: 109 | C24: Takarmány gyártása | E24: 3 | F24: 1 | G24: 3 | H24: 2 | I24: 3 | J24: 2 | K24: 4 | L24: 0 | M24: 3 | N24: 2 | S24: 0 | T24: 0.4 | U24: 0.6 | V24: 0.8 | W24: 1.05 | X24: 1.2 | Y24: 1.4 | AA24: 1 telephely | AB24: =IF('1.telephely'!$C$26=0,0,1) -> 0 | AC24: =IF('1.telephely'!$C$28=0,0,1) -> 0 | AD24: =IF('1.telephely'!$C$30=0,0,1) -> 0 | AE24: =IF('1.telephely'!$C$32=0,0,1) -> 0 | AF24: =IF('1.telephely'!$C$34=0,0,1) -> 0 | AG24: =IF('1.telephely'!$C$36=0,0,1) -> 0 | AH24: =IF('1.telephely'!$C$38=0,0,1) -> 0 | AI24: =IF('1.telephely'!$C$40=0,0,1) -> 0 | AJ24: =IF('1.telephely'!$C$42=0,0,1) -> 0 | AK24: =IF('1.telephely'!$C$44=0,0,1) -> 0 | AL24: =IF('1.telephely'!$C$45=0,0,1) -> 0 | AM24: =IF('1.telephely'!$C$46=0,0,1) -> 0 | AN24: =IF('1.telephely'!$C$47=0,0,1) -> 0 | AO24: =IF('1.telephely'!$C$52=0,0,1) -> 0 | AP24: =IF('1.telephely'!$C$53=0,0,1) -> 0 | AQ24: =IF('1.telephely'!$C$48=0,0,1) -> 0 | AR24: =IF('1.telephely'!$C$49=0,0,1) -> 0 | AS24: =IF('1.telephely'!$C$50=0,0,1) -> 0 | AT24: =IF('1.telephely'!$C$51=0,0,1) -> 0 | AU24: =IF('1.telephely'!$C$43=0,0,1) -> 0
A25: 23 | B25: 110 | C25: Italgyártás | E25: 3 | F25: 3 | G25: 3 | H25: 3 | I25: 4 | J25: 3 | K25: 3 | L25: 1 | M25: 3 | N25: 3 | O25: 4. telephely | AA25: 2 telephely | AB25: =IF('2.telephely'!$C$23=0,0,1) -> 0 | AC25: =IF('2.telephely'!$C$25=0,0,1) -> 0 | AD25: =IF('2.telephely'!$C$27=0,0,1) -> 0 | AE25: =IF('2.telephely'!$C$29=0,0,1) -> 0 | AF25: =IF('2.telephely'!$C$31=0,0,1) -> 0 | AG25: =IF('2.telephely'!$C$41=0,0,1) -> 0 | AH25: =IF('2.telephely'!$C$43=0,0,1) -> 0 | AI25: =IF('2.telephely'!$C$45=0,0,1) -> 0 | AJ25: =IF('2.telephely'!$C$39=0,0,1) -> 0 | AK25: =IF('2.telephely'!$C$41=0,0,1) -> 0 | AL25: =IF('2.telephely'!$C$42=0,0,1) -> 0 | AM25: =IF('2.telephely'!$C$43=0,0,1) -> 0 | AN25: =IF('2.telephely'!$C$44=0,0,1) -> 0 | AO25: =IF('2.telephely'!$C$49=0,0,1) -> 0 | AP25: =IF('2.telephely'!$C$50=0,0,1) -> 0 | AQ25: =IF('2.telephely'!$C$45=0,0,1) -> 0 | AR25: =IF('2.telephely'!$C$46=0,0,1) -> 0 | AS25: =IF('2.telephely'!$C$47=0,0,1) -> 0 | AT25: =IF('2.telephely'!$C$48=0,0,1) -> 0 | AU25: =IF('2.telephely'!$C$40=0,0,1) -> 0
A26: 24 | B26: 131 | C26: Textilszálak fonása | E26: 5 | F26: 1 | G26: 3 | H26: 2 | I26: 2 | J26: 1 | K26: 2 | L26: 0 | M26: 3 | N26: 2 | O26: Nem évelő növény termesztése | S26: =VLOOKUP(S28,$X$31:$Y$34,2,FALSE) -> 5 millió Ft | T26: =VLOOKUP(T28,$X$31:$Y$34,2,FALSE) -> 5 millió Ft | U26: =VLOOKUP(U28,$X$31:$Y$34,2,FALSE) -> 5 millió Ft | V26: =VLOOKUP(V28,$X$31:$Y$34,2,FALSE) -> 5 millió Ft | W26: =VLOOKUP(W28,$X$31:$Y$34,2,FALSE) -> 5 millió Ft | AA26: 3 telephely | AB26: =IF('3.telephely'!$C$23=0,0,1) -> 0 | AC26: =IF('3.telephely'!$C$25=0,0,1) -> 0 | AD26: =IF('3.telephely'!$C$27=0,0,1) -> 0 | AE26: =IF('3.telephely'!$C$29=0,0,1) -> 0 | AF26: =IF('3.telephely'!$C$31=0,0,1) -> 0 | AG26: =IF('3.telephely'!$C$41=0,0,1) -> 0 | AH26: =IF('3.telephely'!$C$43=0,0,1) -> 0 | AI26: =IF('3.telephely'!$C$45=0,0,1) -> 0 | AJ26: =IF('3.telephely'!$C$39=0,0,1) -> 0 | AK26: =IF('3.telephely'!$C$41=0,0,1) -> 0 | AL26: =IF('3.telephely'!$C$42=0,0,1) -> 0 | AM26: =IF('3.telephely'!$C$43=0,0,1) -> 0 | AN26: =IF('3.telephely'!$C$44=0,0,1) -> 0 | AO26: =IF('3.telephely'!$C$49=0,0,1) -> 0 | AP26: =IF('3.telephely'!$C$50=0,0,1) -> 0 | AQ26: =IF('3.telephely'!$C$45=0,0,1) -> 0 | AR26: =IF('3.telephely'!$C$46=0,0,1) -> 0 | AS26: =IF('3.telephely'!$C$47=0,0,1) -> 0 | AT26: =IF('3.telephely'!$C$48=0,0,1) -> 0 | AU26: =IF('3.telephely'!$C$40=0,0,1) -> 0
A27: 25 | B27: 132 | C27: Textilszövés | E27: 5 | F27: 1 | G27: 3 | H27: 2 | I27: 2 | J27: 1 | K27: 2 | L27: 0 | M27: 3 | N27: 2 | O27: 011 | S27: =VLOOKUP(O3,$A$3:$L$247,8) -> 2 | T27: =VLOOKUP(O4,$A$3:$L$247,8) -> 2 | U27: =VLOOKUP(O5,$A$3:$L$247,8) -> 2 | V27: =VLOOKUP(O6,$A$3:$L$247,8) -> 2 | W27: =VLOOKUP(O7,$A$3:$L$247,8) -> 2 | AA27: 4 telephely | AB27: =IF('4.telephely'!$C$23=0,0,1) -> 0 | AC27: =IF('4.telephely'!$C$25=0,0,1) -> 0 | AD27: =IF('4.telephely'!$C$27=0,0,1) -> 0 | AE27: =IF('4.telephely'!$C$29=0,0,1) -> 0 | AF27: =IF('4.telephely'!$C$31=0,0,1) -> 0 | AG27: =IF('4.telephely'!$C$41=0,0,1) -> 0 | AH27: =IF('4.telephely'!$C$43=0,0,1) -> 0 | AI27: =IF('4.telephely'!$C$45=0,0,1) -> 0 | AJ27: =IF('4.telephely'!$C$39=0,0,1) -> 0 | AK27: =IF('4.telephely'!$C$41=0,0,1) -> 0 | AL27: =IF('4.telephely'!$C$42=0,0,1) -> 0 | AM27: =IF('4.telephely'!$C$43=0,0,1) -> 0 | AN27: =IF('4.telephely'!$C$44=0,0,1) -> 0 | AO27: =IF('4.telephely'!$C$49=0,0,1) -> 0 | AP27: =IF('4.telephely'!$C$50=0,0,1) -> 0 | AQ27: =IF('4.telephely'!$C$45=0,0,1) -> 0 | AR27: =IF('4.telephely'!$C$46=0,0,1) -> 0 | AS27: =IF('4.telephely'!$C$47=0,0,1) -> 0 | AT27: =IF('4.telephely'!$C$48=0,0,1) -> 0 | AU27: =IF('4.telephely'!$C$40=0,0,1) -> 0
A28: 26 | B28: 133 | C28: Textilkikészítés | E28: 5 | F28: 1 | G28: 4 | H28: 2 | I28: 2 | J28: 2 | K28: 2 | L28: 0 | M28: 3 | N28: 2 | S28: 2 | T28: 2 | U28: 2 | V28: 2 | W28: 2 | AA28: 5 telephely | AB28: =IF('5.telephely'!$C$23=0,0,1) -> 0 | AC28: =IF('5.telephely'!$C$25=0,0,1) -> 0 | AD28: =IF('5.telephely'!$C$27=0,0,1) -> 0 | AE28: =IF('5.telephely'!$C$29=0,0,1) -> 0 | AF28: =IF('5.telephely'!$C$31=0,0,1) -> 0 | AG28: =IF('5.telephely'!$C$41=0,0,1) -> 0 | AH28: =IF('5.telephely'!$C$43=0,0,1) -> 0 | AI28: =IF('5.telephely'!$C$45=0,0,1) -> 0 | AJ28: =IF('5.telephely'!$C$39=0,0,1) -> 0 | AK28: =IF('5.telephely'!$C$41=0,0,1) -> 0 | AL28: =IF('5.telephely'!$C$42=0,0,1) -> 0 | AM28: =IF('5.telephely'!$C$43=0,0,1) -> 0 | AN28: =IF('5.telephely'!$C$44=0,0,1) -> 0 | AO28: =IF('5.telephely'!$C$49=0,0,1) -> 0 | AP28: =IF('5.telephely'!$C$50=0,0,1) -> 0 | AQ28: =IF('5.telephely'!$C$45=0,0,1) -> 0 | AR28: =IF('5.telephely'!$C$46=0,0,1) -> 0 | AS28: =IF('5.telephely'!$C$47=0,0,1) -> 0 | AT28: =IF('5.telephely'!$C$48=0,0,1) -> 0 | AU28: =IF('5.telephely'!$C$40=0,0,1) -> 0
A29: 27 | B29: 139 | C29: Egyéb textiláru gyártása | E29: 5 | F29: 1 | G29: 3 | H29: 2 | I29: 4 | J29: 2 | K29: 2 | L29: 1 | M29: 3 | N29: 2 | O29: 5. telephely | S29: =HLOOKUP(S28,S30:W35,S27+1,FALSE) -> 1067 | T29: =HLOOKUP(T28,S30:W35,T27+1,FALSE) -> 1067 | U29: =HLOOKUP(U28,$S$30:$W$35,U27+1,FALSE) -> 1067 | V29: =HLOOKUP(V28,$S$30:$W$35,V27+1,FALSE) -> 1067 | W29: =HLOOKUP(W28,$S$30:$W$35,W27+1,FALSE) -> 1067 | AA29: össz: | AB29: =IF(AB$24=1,1,IF(AB$25=1,1,IF(AB$26=1,1,IF(AB$27=1,1,IF(AB$28=1,1,0))))) -> 0 | AC29: 0 | AD29: 0 | AE29: 0 | AF29: 0 | AG29: 0 | AH29: 0 | AI29: 0 | AJ29: 0 | AK29: 0 | AL29: 0 | AM29: 0 | AN29: 0 | AO29: 0 | AP29: 0 | AQ29: 0 | AR29: 0 | AS29: 0 | AT29: 0 | AU29: 0 | AV29: =SUM(AB29:AU29) -> 0
A30: 28 | B30: 141 | C30: Ruházat gyártása (kivéve: szőrmeruházat) | E30: 4 | F30: 2 | G30: 4 | H30: 2 | I30: 2 | J30: 2 | K30: 2 | L30: 0 | M30: 3 | N30: 2 | O30: Nem évelő növény termesztése | S30: Ált fel. | T30: 1 | U30: 2 | V30: 3 | W30: 4
A31: 29 | B31: 142 | C31: Szőrmecikk gyártása | E31: 3 | F31: 3 | G31: 3 | H31: 2 | I31: 2 | J31: 1 | K31: 2 | L31: 0 | M31: 3 | N31: 2 | O31: 011 | S31: 1 | T31: 0 | U31: 531 | V31: 816 | W31: 1062 | X31: 1 | Y31: 0 | AA31: =IF(AND(('1.telephely'!$B$24+'2.telephely'!$B$21+'3.telephely'!$B$21+'4.telephely'!$B$21+'5.telephely'!$B$21)>=AB31,('1.telephely'!$B$24+'2.telephely'!$B$21+'3.telephely'!$B$21+'4.telephely'!$B$21+'5.telephely'!$B$21)<=AC31),1,0) -> 1 | AB31: 0 | AC31: 20000 | AD31: 1 | AE31: Nincs | AF31: =IF(AA31=1,AD31,IF(AA32=1,AD32,IF(AA33=1,AD33,IF(AA34=1,AD34,IF(AA35=1,AD35,IF(AA36=1,AD36)))))) -> 1 | AG31: volumen
A32: 30 | B32: 143 | C32: Kötött, hurkolt cikk gyártása | E32: 5 | F32: 1 | G32: 4 | H32: 2 | I32: 2 | J32: 2 | K32: 2 | L32: 0 | M32: 3 | N32: 2 | S32: 2 | T32: 0 | U32: 1067 | V32: 1639 | W32: 2133 | X32: 2 | Y32: 5 millió Ft | AA32: =IF(AND(('1.telephely'!$B$24+'2.telephely'!$B$21+'3.telephely'!$B$21+'4.telephely'!$B$21+'5.telephely'!$B$21)>=AB32,('1.telephely'!$B$24+'2.telephely'!$B$21+'3.telephely'!$B$21+'4.telephely'!$B$21+'5.telephely'!$B$21)<=AC32),1,0) -> 0 | AB32: 20000.001 | AC32: 50000 | AD32: 0.9 | AE32: 0.1 | AF32: =1-AF31 -> 0
A33: 31 | B33: 151 | C33: Bőr, szőrme kikészítése | E33: 3 | F33: 3 | G33: 3 | H33: 2 | I33: 2 | J33: 2 | K33: 2 | L33: 0 | M33: 3 | N33: 2 | S33: 3 | T33: 0 | U33: 1593 | V33: 2449 | W33: 3186 | X33: 3 | Y33: 25 millió Ft | AA33: =IF(AND(('1.telephely'!$B$24+'2.telephely'!$B$21+'3.telephely'!$B$21+'4.telephely'!$B$21+'5.telephely'!$B$21)>=AB33,('1.telephely'!$B$24+'2.telephely'!$B$21+'3.telephely'!$B$21+'4.telephely'!$B$21+'5.telephely'!$B$21)<=AC33),1,0) -> 0 | AB33: 50000.001 | AC33: 75000 | AD33: 0.8 | AE33: 0.2
A34: 32 | B34: 152 | C34: Lábbeligyártás | E34: 4 | F34: 1 | G34: 4 | H34: 1 | I34: 2 | J34: 1 | K34: 3 | L34: 0 | M34: 3 | N34: 2 | S34: 4 | T34: 0 | U34: 2390 | V34: 3673 | W34: 4779 | X34: 4 | Y34: 50 millió Ft | AA34: =IF(AND(('1.telephely'!$B$24+'2.telephely'!$B$21+'3.telephely'!$B$21+'4.telephely'!$B$21+'5.telephely'!$B$21)>=AB34,('1.telephely'!$B$24+'2.telephely'!$B$21+'3.telephely'!$B$21+'4.telephely'!$B$21+'5.telephely'!$B$21)<=AC34),1,0) -> 0 | AB34: 75000.001 | AC34: 150000 | AD34: 0.7 | AE34: 0.3
A35: 33 | B35: 161 | C35: Fűrészárugyártás | E35: 6 | F35: 2 | G35: 4 | H35: 2 | I35: 5 | J35: 2 | K35: 1 | L35: 0 | M35: 3 | N35: 4 | S35: 5 | T35: 0 | U35: 3204 | V35: 4925 | W35: 6408 | AA35: =IF(AND(('1.telephely'!$B$24+'2.telephely'!$B$21+'3.telephely'!$B$21+'4.telephely'!$B$21+'5.telephely'!$B$21)>=AB35,('1.telephely'!$B$24+'2.telephely'!$B$21+'3.telephely'!$B$21+'4.telephely'!$B$21+'5.telephely'!$B$21)<=AC35),1,0) -> 0 | AB35: 150000.001 | AC35: 300000 | AD35: 0.6 | AE35: 0.4
A36: 34 | B36: 162 | C36: Fa-, parafatermék, fonottáru gyártása | E36: 6 | F36: 2 | G36: 5 | H36: 4 | I36: 5 | J36: 4 | K36: 3 | L36: 1 | M36: 3 | N36: 4 | AA36: =IF(AND(('1.telephely'!$B$24+'2.telephely'!$B$21+'3.telephely'!$B$21+'4.telephely'!$B$21+'5.telephely'!$B$21)>=AB36,('1.telephely'!$B$24+'2.telephely'!$B$21+'3.telephely'!$B$21+'4.telephely'!$B$21+'5.telephely'!$B$21)<=AC36),1,0) -> 0 | AB36: 300000.001 | AC36: 500000 | AD36: 0.5 | AE36: 0.5
A37: 35 | B37: 181 | C37: Nyomdai tevékenység | E37: 3 | F37: 1 | G37: 3 | H37: 2 | I37: 2 | J37: 2 | K37: 2 | L37: 2 | M37: 3 | N37: 2 | S37: =VLOOKUP(S39,$X$31:$Y$34,2,FALSE) -> 5 millió Ft | T37: =VLOOKUP(T39,$X$31:$Y$34,2,FALSE) -> 5 millió Ft | U37: =VLOOKUP(U39,$X$31:$Y$34,2,FALSE) -> 5 millió Ft | V37: =VLOOKUP(V39,$X$31:$Y$34,2,FALSE) -> 5 millió Ft | W37: =VLOOKUP(W39,$X$31:$Y$34,2,FALSE) -> 5 millió Ft
A38: 36 | B38: 182 | C38: Egyéb sokszorosítás | E38: 3 | F38: 1 | G38: 3 | H38: 2 | I38: 2 | J38: 2 | K38: 2 | L38: 2 | M38: 3 | N38: 2 | S38: =VLOOKUP(O3,$A$3:$L$247,9) -> 3 | T38: =VLOOKUP(O4,$A$3:$L$247,9) -> 3 | U38: =VLOOKUP(O5,$A$3:$L$247,9) -> 3 | V38: =VLOOKUP(O6,$A$3:$L$247,9) -> 3 | W38: =VLOOKUP(O7,$A$3:$L$247,9) -> 3
A39: 37 | B39: 202 | C39: Mezőgazdasági vegyi termék gyártása | E39: 4 | F39: 2 | G39: 4 | H39: 4 | I39: 4 | J39: 4 | K39: 4 | L39: 0 | M39: 5 | N39: 4 | S39: 2 | T39: 2 | U39: 2 | V39: 2 | W39: 2 | AA39: =S27 -> 2 | AB39: =T27 -> 2 | AC39: =U27 -> 2 | AD39: =V27 -> 2 | AE39: =W27 -> 2 | AG39: =S38 -> 3 | AH39: =T38 -> 3 | AI39: =U38 -> 3 | AJ39: =V38 -> 3 | AK39: =W38 -> 3
A40: 38 | B40: 203 | C40: Festék, bevonóanyag gyártása | E40: 6 | F40: 1 | G40: 4 | H40: 4 | I40: 4 | J40: 4 | K40: 4 | L40: 0 | M40: 5 | N40: 4 | S40: =HLOOKUP(S39,S41:W46,S38+1,FALSE) -> 2650 | T40: =HLOOKUP(T39,S41:W46,T38+1,FALSE) -> 2650 | U40: =HLOOKUP(U39,$S$41:$W$46,U38+1,FALSE) -> 2650 | V40: =HLOOKUP(V39,$S$41:$W$46,V38+1,FALSE) -> 2650 | W40: =HLOOKUP(W39,$S$41:$W$46,W38+1,FALSE) -> 2650 | AA40: =VLOOKUP(AA39,AA43:AC48,3) -> 747 | AB40: =VLOOKUP(AB39,AA43:AC48,3) -> 747 | AC40: =VLOOKUP(AC39,AA43:AC48,3) -> 747 | AD40: =VLOOKUP(AD39,AA43:AC48,3) -> 747 | AE40: =VLOOKUP(AE39,AA43:AC48,3) -> 747 | AG40: =VLOOKUP(AG39,AG43:AI48,3) -> 1302 | AH40: =VLOOKUP(AH39,AG43:AI48,3) -> 1302 | AI40: =VLOOKUP(AI39,AG43:AI48,3) -> 1302 | AJ40: =VLOOKUP(AJ39,AG43:AI48,3) -> 1302 | AK40: =VLOOKUP(AK39,AG43:AI48,3) -> 1302
A41: 39 | B41: 204 | C41: Tisztítószer, testápolási cikk gyártása | E41: 4 | F41: 2 | G41: 4 | H41: 2 | I41: 4 | J41: 2 | K41: 4 | L41: 0 | M41: 5 | N41: 4 | S41: Munkált. | T41: 1 | U41: 2 | V41: 3 | W41: 4 | AA41: ='1.telephely'!B43*Tarifa!AA40 -> 0 | AB41: ='2.telephely'!B40*Tarifa!AB40 -> 0 | AC41: ='3.telephely'!B40*Tarifa!AC40 -> 0 | AD41: ='4.telephely'!B40*Tarifa!AD40 -> 0 | AE41: ='5.telephely'!B40*Tarifa!AE40 -> 0 | AG41: ='1.telephely'!B43*AG40 -> 0 | AH41: ='2.telephely'!B40*AH40 -> 0 | AI41: ='3.telephely'!B41*Tarifa!AI40 -> 0 | AJ41: ='4.telephely'!B40*Tarifa!AJ40 -> 0 | AK41: ='5.telephely'!B40*Tarifa!AK40 -> 0
A42: 40 | B42: 205 | C42: Egyéb vegyi termék gyártása | E42: 5 | F42: 2 | G42: 5 | H42: 4 | I42: 5 | J42: 4 | K42: 5 | L42: 0 | M42: 5 | N42: 4 | S42: 1 | T42: 0 | U42: 890 | V42: 1368 | W42: 1780 | AA42: Tanuló ált | AB42: 1 | AC42: 2 | AG42: Tanuló munk. | AH42: 1 | AI42: 2
A43: 41 | B43: 206 | C43: Vegyi szál gyártása | E43: 5 | F43: 2 | G43: 5 | H43: 4 | I43: 5 | J43: 4 | K43: 5 | L43: 0 | M43: 5 | N43: 4 | S43: 2 | T43: 0 | U43: 1775 | V43: 2729 | W43: 3550 | AA43: 0 | AB43: 0 | AC43: 0 | AE43: Össz: | AG43: 0 | AH43: 0 | AI43: 0
A44: 42 | B44: 221 | C44: Gumitermék gyártása | E44: 5 | F44: 2 | G44: 3 | H44: 3 | I44: 4 | J44: 3 | K44: 3 | L44: 0 | M44: 5 | N44: 3 | S44: 3 | T44: 0 | U44: 2650 | V44: 4074 | W44: 5300 | AA44: 1 | AB44: 0 | AC44: 372 | AE44: =IF(OR(AA41=0,AG41=0),0,AA41+AG41) -> 0 | AG44: 1 | AH44: 0 | AI44: 434
A45: 43 | B45: 222 | C45: Műanyag termék gyártása | E45: 5 | F45: 2 | G45: 5 | H45: 3 | I45: 4 | J45: 3 | K45: 2 | L45: 0 | M45: 5 | N45: 3 | S45: 4 | T45: 0 | U45: 3985 | V45: 6126 | W45: 7970 | AA45: 2 | AB45: 0 | AC45: 747 | AE45: =IF(OR(AB41=0,AH41=0),0,AB41+AH41) -> 0 | AG45: 2 | AH45: 0 | AI45: 1057
A46: 44 | B46: 231 | C46: Üveg, üvegtermék gyártása | E46: 3 | F46: 1 | G46: 3 | H46: 2 | I46: 3 | J46: 2 | K46: 2 | L46: 0 | M46: 3 | N46: 3 | S46: 5 | T46: 0 | U46: 5340 | V46: 8209 | W46: 10680 | AA46: 3 | AB46: 0 | AC46: 1115 | AE46: =IF(OR(AC41=0,AI41=0),0,AC41+AI41) -> 0 | AG46: 3 | AH46: 0 | AI46: 1302
A47: 45 | B47: 233 | C47: Kerámia, agyag építőanyag gyártása | E47: 3 | F47: 2 | G47: 3 | H47: 3 | I47: 3 | J47: 3 | K47: 2 | L47: 0 | M47: 3 | N47: 3 | AA47: 4 | AB47: 0 | AC47: 1673 | AE47: =IF(OR(AD41=0,AJ41=0),0,AD41+AJ41) -> 0 | AG47: 4 | AH47: 0 | AI47: 2163
A48: 46 | B48: 234 | C48: Porcelán, kerámiatermék gyártása | E48: 3 | F48: 2 | G48: 3 | H48: 2 | I48: 3 | J48: 2 | K48: 3 | L48: 0 | M48: 3 | N48: 3 | S48: =VLOOKUP(S50,$X$31:$Y$34,2,FALSE) -> 5 millió Ft | T48: =VLOOKUP(T50,$X$31:$Y$34,2,FALSE) -> 5 millió Ft | U48: =VLOOKUP(U50,$X$31:$Y$34,2,FALSE) -> 5 millió Ft | V48: =VLOOKUP(V50,$X$31:$Y$34,2,FALSE) -> 5 millió Ft | W48: =VLOOKUP(W50,$X$31:$Y$34,2,FALSE) -> 5 millió Ft | AA48: 5 | AB48: 0 | AC48: 2243 | AE48: =IF(OR(AE41=0,AK41=0),0,AE41+AK41) -> 0 | AG48: 5 | AH48: 0 | AI48: 2884
A49: 47 | B49: 236 | C49: Beton-, gipsz-, cementtermék gyártása | E49: 2 | F49: 1 | G49: 3 | H49: 2 | I49: 3 | J49: 2 | K49: 2 | L49: 0 | M49: 4 | N49: 2 | S49: =VLOOKUP(O3,$A$3:$L$247,11) -> 1 | T49: =VLOOKUP(O4,$A$3:$L$247,11) -> 1 | U49: =VLOOKUP($O5,$A$3:$L$247,11) -> 1 | V49: =VLOOKUP($O6,$A$3:$L$247,11) -> 1 | W49: =VLOOKUP($O7,$A$3:$L$247,11) -> 1
A50: 48 | B50: 237 | C50: Kőmegmunkálás | E50: 2 | F50: 1 | G50: 1 | H50: 1 | I50: 5 | J50: 1 | K50: 1 | L50: 0 | M50: 3 | N50: 2 | S50: 2 | T50: 2 | U50: 2 | V50: 2 | W50: 2
A51: 49 | B51: 251 | C51: Fémszerkezet, -épületelem gyártása | E51: 4 | F51: 2 | G51: 2 | H51: 2 | I51: 5 | J51: 2 | K51: 2 | L51: 0 | M51: 3 | N51: 3 | S51: =HLOOKUP(S50,S52:W58,S49+2,FALSE) -> 205 | T51: =HLOOKUP(T50,S52:W58,T49+2,FALSE) -> 205 | U51: =HLOOKUP(U50,$S$52:$W$58,U49+2,FALSE) -> 205 | V51: =HLOOKUP(V50,$S$52:$W$58,V49+2,FALSE) -> 205 | W51: =HLOOKUP(W50,$S$52:$W$58,W49+2,FALSE) -> 205 | AA51: Eredetiségvizsgálók | AB51: 50000
A52: 50 | B52: 252 | C52: Fűtési kazán, radiátor, fémtartály gyártása | E52: 4 | F52: 1 | G52: 2 | H52: 4 | I52: 4 | J52: 5 | K52: 2 | L52: 0 | M52: 3 | N52: 3 | S52: Termék | T52: 1 | U52: 2 | V52: 3 | W52: 4
A53: 51 | B53: 253 | C53: Gőzkazán gyártása | E53: 4 | F53: 1 | G53: 2 | H53: 4 | I53: 4 | J53: 5 | K53: 2 | L53: 0 | M53: 3 | N53: 3 | S53: 0 | T53: 0 | U53: 0 | V53: 0 | W53: 0 | AA53: =VLOOKUP(AA54,$AF$54:$AG$56,2,FALSE) -> 5 millió Ft | AB53: =VLOOKUP(AB54,$AF$54:$AG$56,2,FALSE) -> 5 millió Ft | AC53: =VLOOKUP(AC54,$AF$54:$AG$56,2,FALSE) -> 5 millió Ft | AD53: =VLOOKUP(AD54,$AF$54:$AG$56,2,FALSE) -> 5 millió Ft | AE53: =VLOOKUP(AE54,$AF$54:$AG$56,2,FALSE) -> 5 millió Ft
A54: 52 | B54: 256 | C54: Fém felületkezelése, megmunkálása | E54: 4 | F54: 1 | G54: 4 | H54: 2 | I54: 2 | J54: 4 | K54: 2 | L54: 0 | M54: 3 | N54: 3 | S54: 1 | T54: 0 | U54: 205 | V54: 411 | W54: 499 | AA54: 2 | AB54: 2 | AC54: 2 | AD54: 2 | AE54: 2 | AF54: 1 | AG54: 0
A55: 53 | B55: 257 | C55: Evőeszköz, szerszám, általános fémáru gyártása | E55: 4 | F55: 2 | G55: 2 | H55: 2 | I55: 2 | J55: 2 | K55: 2 | L55: 0 | M55: 3 | N55: 3 | S55: 2 | T55: 0 | U55: 411 | V55: 822 | W55: 999 | AA55: =IF(AA54=1,0,IF(AA54=2,'1.telephely'!B49*Tarifa!AB57,IF(Tarifa!AA54=3,'1.telephely'!B49*Tarifa!AB58,0))) -> 0 | AB55: =IF(AB54=1,0,IF(AB54=2,'2.telephely'!B46*Tarifa!AB57,IF(Tarifa!AB54=3,'2.telephely'!B46*Tarifa!AB58,0))) -> 0 | AC55: =IF(AC54=1,0,IF(AC54=2,'3.telephely'!B46*Tarifa!AB57,IF(Tarifa!AC54=3,'3.telephely'!B46*Tarifa!AB58,0))) -> 0 | AD55: =IF(AD54=1,0,IF(AD54=2,'4.telephely'!B46*Tarifa!AB57,IF(Tarifa!AD54=3,'4.telephely'!B46*Tarifa!AB58,0))) -> 0 | AE55: =IF(AE54=1,0,IF(AE54=2,'5.telephely'!B46*Tarifa!AB57,IF(Tarifa!AE54=3,'5.telephely'!B46*Tarifa!AB58,0))) -> 0 | AF55: 2 | AG55: 5 millió Ft
A56: 54 | B56: 259 | C56: Egyéb fémfeldolgozási termék gyártása | E56: 4 | F56: 2 | G56: 2 | H56: 2 | I56: 4 | J56: 2 | K56: 2 | L56: 0 | M56: 3 | N56: 3 | S56: 3 | T56: 0 | U56: 616 | V56: 1233 | W56: 1498 | AA56: Gépjármű javítók | AF56: 3 | AG56: 15 millió Ft
A57: 55 | B57: 261 | C57: Elektronikai alkatrész, áramköri kártya gyártása | E57: 3 | F57: 3 | G57: 3 | H57: 1 | I57: 1 | J57: 2 | K57: 2 | L57: 0 | M57: 4 | N57: 2 | S57: 4 | T57: 0 | U57: 890 | V57: 1781 | W57: 2164 | AA57: 5 millió Ft | AB57: 0.35
A58: 56 | B58: 262 | C58: Számítógép, perifériás egység gyártása | E58: 3 | F58: 3 | G58: 3 | H58: 2 | I58: 2 | J58: 2 | K58: 2 | L58: 0 | M58: 4 | N58: 2 | S58: 5 | T58: 0 | U58: 1223 | V58: 2446 | W58: 2973 | AA58: 15 millió Ft | AB58: 0.45
A59: 57 | B59: 263 | C59: Híradás-technikai berendezés gyártása | E59: 3 | F59: 2 | G59: 3 | H59: 2 | I59: 2 | J59: 2 | K59: 2 | L59: 0 | M59: 4 | N59: 2
A60: 58 | B60: 264 | C60: Elektronikus fogyasztási cikk gyártása | E60: 3 | F60: 2 | G60: 3 | H60: 2 | I60: 2 | J60: 2 | K60: 2 | L60: 0 | M60: 4 | N60: 2 | S60: =VLOOKUP(S62,$X$31:$Y$34,2,FALSE) -> 5 millió Ft | T60: =VLOOKUP(T62,$X$31:$Y$34,2,FALSE) -> 5 millió Ft | U60: =VLOOKUP(U62,$X$31:$Y$34,2,FALSE) -> 5 millió Ft | V60: =VLOOKUP(V62,$X$31:$Y$34,2,FALSE) -> 5 millió Ft | W60: =VLOOKUP(W62,$X$31:$Y$34,2,FALSE) -> 5 millió Ft | AA60: Szállodai
A61: 59 | B61: 265 | C61: Műszer-, óragyártás | E61: 3 | F61: 3 | G61: 2 | H61: 2 | I61: 2 | J61: 2 | K61: 2 | L61: 0 | M61: 3 | N61: 2 | S61: =VLOOKUP($O3,$A$3:$N$247,10) -> 2 | T61: =VLOOKUP(O4,$A$3:$L$247,10) -> 2 | U61: =VLOOKUP(O5,$A$3:$L$247,10) -> 2 | V61: =VLOOKUP(O6,$A$3:$L$247,10) -> 2 | W61: =VLOOKUP(O7,$A$3:$L$247,10) -> 2 | AA61: 2 | AB61: 2 | AC61: 2 | AD61: 2 | AE61: 2
A62: 60 | B62: 267 | C62: Optikai eszköz gyártása | E62: 3 | F62: 1 | G62: 2 | H62: 2 | I62: 2 | J62: 3 | K62: 2 | L62: 0 | M62: 3 | N62: 2 | S62: 2 | T62: 2 | U62: 2 | V62: 2 | W62: 2 | AA62: =VLOOKUP(AA61,$AF$54:$AG$56,2,FALSE) -> 5 millió Ft | AB62: =VLOOKUP(AB61,$AF$54:$AG$56,2,FALSE) -> 5 millió Ft | AC62: =VLOOKUP(AC61,$AF$54:$AG$56,2,FALSE) -> 5 millió Ft | AD62: =VLOOKUP(AD61,$AF$54:$AG$56,2,FALSE) -> 5 millió Ft | AE62: =VLOOKUP(AE61,$AF$54:$AG$56,2,FALSE) -> 5 millió Ft
A63: 61 | B63: 268 | C63: Mágneses, optikai információhordozó gyártása | E63: 3 | F63: 3 | G63: 3 | H63: 2 | I63: 2 | J63: 1 | K63: 2 | L63: 0 | M63: 3 | N63: 2 | S63: =HLOOKUP(S62,S64:W70,S61+2,FALSE) -> 1195 | T63: =HLOOKUP(T62,S64:W70,T61+2,FALSE) -> 1195 | U63: =HLOOKUP(U62,$S$64:$W$70,U61+2,FALSE) -> 1195 | V63: =HLOOKUP(V62,$S$64:$W$70,V61+2,FALSE) -> 1195 | W63: =HLOOKUP(W62,$S$64:$W$70,W61+2,FALSE) -> 1195
A64: 62 | B64: 271 | C64: Villamos motor, áramfejlesztő, áramelosztó, -szabályozó készülék gyártása | E64: 4 | F64: 4 | G64: 2 | H64: 2 | I64: 2 | J64: 2 | K64: 2 | L64: 0 | M64: 4 | N64: 2 | S64: Bérlői | T64: 1 | U64: 2 | V64: 3 | W64: 4
A65: 63 | B65: 273 | C65: Vezeték, kábel, szerelvény gyártása | E65: 3 | F65: 1 | G65: 3 | H65: 2 | I65: 2 | J65: 3 | K65: 2 | L65: 0 | M65: 4 | N65: 2 | S65: 0 | T65: 0 | U65: 0 | V65: 0 | W65: 0
A66: 64 | B66: 274 | C66: Villamos világítóeszköz gyártása | E66: 4 | F66: 2 | G66: 3 | H66: 2 | I66: 2 | J66: 2 | K66: 2 | L66: 0 | M66: 4 | N66: 2 | S66: 1 | T66: 0 | U66: 591 | V66: 1183 | W66: 1437
A67: 65 | B67: 275 | C67: Háztartási készülék gyártása | E67: 3 | F67: 1 | G67: 3 | H67: 2 | I67: 2 | J67: 2 | K67: 2 | L67: 0 | M67: 4 | N67: 2 | S67: 2 | T67: 0 | U67: 1195 | V67: 2390 | W67: 2905
A68: 66 | B68: 279 | C68: Egyéb villamos berendezés gyártása | E68: 3 | F68: 1 | G68: 3 | H68: 2 | I68: 2 | J68: 2 | K68: 2 | L68: 0 | M68: 4 | N68: 2 | S68: 3 | T68: 0 | U68: 1787 | V68: 3573 | W68: 4343
A69: 67 | B69: 281 | C69: Általános rendeltetésű gép gyártása | E69: 3 | F69: 2 | G69: 3 | H69: 2 | I69: 2 | J69: 3 | K69: 3 | L69: 0 | M69: 4 | N69: 3 | S69: 4 | T69: 0 | U69: 2692 | V69: 5385 | W69: 6544
A70: 68 | B70: 282 | C70: Egyéb általános rendeltetésű gép gyártása | E70: 3 | F70: 2 | G70: 3 | H70: 2 | I70: 2 | J70: 3 | K70: 3 | L70: 0 | M70: 4 | N70: 3 | S70: 5 | T70: 0 | U70: 3586 | V70: 7171 | W70: 8716
A71: 69 | B71: 283 | C71: Mezőgazdasági, erdészeti gép gyártása | E71: 3 | F71: 1 | G71: 3 | H71: 2 | I71: 2 | J71: 2 | K71: 2 | L71: 0 | M71: 4 | N71: 3
A72: 70 | B72: 284 | C72: Szerszámgépgyártás | E72: 3 | F72: 1 | G72: 3 | H72: 2 | I72: 2 | J72: 2 | K72: 2 | L72: 0 | M72: 4 | N72: 3 | S72: =VLOOKUP(S74,$X$75:$Y$78,2,FALSE) -> 5 millió Ft | T72: =VLOOKUP(T74,$X$75:$Y$78,2,FALSE) -> 5 millió Ft | U72: =VLOOKUP(U74,$X$75:$Y$78,2,FALSE) -> 5 millió Ft | V72: =VLOOKUP(V74,$X$75:$Y$78,2,FALSE) -> 5 millió Ft | W72: =VLOOKUP(W74,$X$75:$Y$78,2,FALSE) -> 5 millió Ft
A73: 71 | B73: 289 | C73: Egyéb speciális rendeltetésű gép gyártása | E73: 3 | F73: 1 | G73: 3 | H73: 2 | I73: 2 | J73: 3 | K73: 3 | L73: 0 | M73: 4 | N73: 3 | S73: =VLOOKUP(O3,$A$3:$N$247,12) -> 1 | T73: =VLOOKUP(O4,$A$3:$N$247,12) -> 1 | U73: =VLOOKUP(O5,$A$3:$N$247,12) -> 1 | V73: =VLOOKUP(O6,$A$3:$N$247,12) -> 1 | W73: =VLOOKUP(O7,$A$3:$N$247,12) -> 1
A74: 72 | B74: 291 | C74: Közúti gépjármű gyártása | E74: 4 | F74: 2 | G74: 3 | H74: 2 | I74: 2 | J74: 4 | K74: 0 | L74: 0 | M74: 4 | N74: 3 | S74: 2 | T74: 2 | U74: 2 | V74: 2 | W74: 2 | AA74: Értékelés módja
A75: 73 | B75: 292 | C75: Gépjármű-karosszéria, pótkocsi gyártása | E75: 4 | F75: 2 | G75: 3 | H75: 2 | I75: 2 | J75: 4 | K75: 0 | L75: 0 | M75: 4 | N75: 3 | S75: =HLOOKUP(S74,$S$76:$W$82,S73+2,FALSE) -> 430 | T75: =HLOOKUP(T74,$S$76:$W$82,T73+2,FALSE) -> 430 | U75: =HLOOKUP(U74,$S$76:$W$82,U73+2,FALSE) -> 430 | V75: =HLOOKUP(V74,$S$76:$W$82,V73+2,FALSE) -> 430 | W75: =HLOOKUP(W74,$S$76:$W$82,W73+2,FALSE) -> 430 | X75: 1 | Y75: 0 | AA75: 1.telephely | AB75: 2
A76: 74 | B76: 293 | C76: Közúti jármű alkatrészeinek gyártása | E76: 4 | F76: 2 | G76: 4 | H76: 2 | I76: 2 | J76: 3 | K76: 0 | L76: 0 | M76: 4 | N76: 3 | S76: Szolg. | T76: 1 | U76: 2 | V76: 3 | W76: 4 | X76: 2 | Y76: 5 millió Ft | AA76: 2. telephely | AB76: 1
A77: 75 | B77: 310 | C77: Bútorgyártás | E77: 5 | F77: 2 | G77: 5 | H77: 2 | I77: 4 | J77: 2 | K77: 4 | L77: 1 | M77: 3 | N77: 3 | S77: 0 | T77: 0 | U77: 0 | V77: 0 | W77: 0 | X77: 3 | Y77: 15 millió Ft | AA77: 3. telephely | AB77: 2
A78: 76 | B78: 321 | C78: Ékszergyártás | E78: 2 | F78: 2 | G78: 2 | H78: 2 | I78: 2 | J78: 2 | K78: 0 | L78: 0 | M78: 2 | N78: 2 | S78: 1 | T78: 0 | U78: 430 | V78: 635 | W78: 731 | X78: 4 | Y78: 25 millió Ft | AA78: 4. telephely | AB78: 2
A79: 77 | B79: 322 | C79: Hangszergyártás | E79: 4 | F79: 2 | G79: 4 | H79: 2 | I79: 3 | J79: 2 | K79: 4 | L79: 0 | M79: 2 | N79: 2 | S79: 2 | T79: 0 | U79: 620 | V79: 916 | W79: 1053 | AA79: 5. telephely | AB79: 2
A80: 78 | B80: 323 | C80: Sportszergyártás | E80: 4 | F80: 2 | G80: 3 | H80: 2 | I80: 3 | J80: 2 | K80: 4 | L80: 0 | M80: 2 | N80: 2 | S80: 3 | T80: 0 | U80: 760 | V80: 1123 | W80: 1291
A81: 79 | B81: 324 | C81: Játékgyártás | E81: 3 | F81: 1 | G81: 3 | H81: 2 | I81: 2 | J81: 2 | K81: 4 | L81: 0 | M81: 2 | N81: 2 | S81: 4 | T81: 0 | U81: 1060 | V81: 1566 | W81: 1801
A82: 80 | B82: 325 | C82: Orvosi eszköz gyártása | E82: 3 | F82: 2 | G82: 3 | H82: 2 | I82: 2 | J82: 3 | K82: 0 | L82: 0 | M82: 3 | N82: 2 | S82: 5 | T82: 0 | U82: 1620 | V82: 2393 | W82: 2752
A83: 81 | B83: 329 | C83: M.n.s. egyéb feldolgozóipari tevékenység | E83: 4 | F83: 2 | G83: 3 | H83: 2 | I83: 2 | J83: 1 | K83: 4 | L83: 0 | M83: 2 | N83: 2
A84: 82 | B84: 331 | C84: Ipari gép, berendezés, eszköz javítása | E84: 3 | F84: 2 | G84: 1 | H84: 3 | I84: 4 | J84: 3 | K84: 4 | L84: 4 | M84: 4 | N84: 3 | S84: =VLOOKUP(S86,$X$31:$Y$34,2,FALSE) -> 5 millió Ft | T84: =VLOOKUP(T86,$X$31:$Y$34,2,FALSE) -> 5 millió Ft | U84: =VLOOKUP(U86,$X$31:$Y$34,2,FALSE) -> 5 millió Ft | V84: =VLOOKUP(V86,$X$31:$Y$34,2,FALSE) -> 5 millió Ft | W84: =VLOOKUP(W86,$X$31:$Y$34,2,FALSE) -> 5 millió Ft
A85: 83 | B85: 332 | C85: Ipari gép, berendezés üzembe helyezése | E85: 3 | F85: 2 | G85: 2 | H85: 3 | I85: 4 | J85: 3 | K85: 4 | L85: 4 | M85: 4 | N85: 3 | S85: =VLOOKUP(O3,$A$3:$N$247,14) -> 2 | T85: =VLOOKUP(O4,$A$3:$N$247,14) -> 2 | U85: =VLOOKUP(O5,$A$3:$N$247,14) -> 2 | V85: =VLOOKUP(O6,$A$3:$N$247,14) -> 2 | W85: =VLOOKUP(O7,$A$3:$N$247,14) -> 2
A86: 84 | B86: 360 | C86: Víztermelés, -kezelés, -ellátás | E86: 3 | F86: 1 | G86: 0 | H86: 4 | I86: 4 | J86: 4 | K86: 0 | L86: 0 | M86: 0 | N86: 4 | S86: 2 | T86: 2 | U86: 2 | V86: 2 | W86: 2
A87: 85 | B87: 370 | C87: Szennyvíz gyűjtése, kezelése | E87: 2 | F87: 2 | G87: 4 | H87: 2 | I87: 2 | J87: 2 | K87: 0 | L87: 0 | M87: 0 | N87: 4 | S87: =HLOOKUP(S86,$S$88:$W$94,S85+2,FALSE) -> 558 | T87: =HLOOKUP(T86,$S$88:$W$94,T85+2,FALSE) -> 558 | U87: =HLOOKUP(U86,$S$88:$W$94,U85+2,FALSE) -> 558 | V87: =HLOOKUP(V86,$S$88:$W$94,V85+2,FALSE) -> 558 | W87: =HLOOKUP(W86,$S$88:$W$94,W85+2,FALSE) -> 558
A88: 86 | B88: 411 | C88: Épületépítési projekt szervezése | E88: 4 | F88: 3 | G88: 2 | H88: 2 | I88: 2 | J88: 5 | K88: 0 | L88: 3 | M88: 4 | N88: 2 | S88: Bérbeadói | T88: 1 | U88: 2 | V88: 3 | W88: 4
A89: 87 | B89: 412 | C89: Lakó- és nem lakó épület építése | E89: 3 | F89: 3 | G89: 1 | H89: 5 | I89: 5 | J89: 4 | K89: 4 | L89: 0 | M89: 4 | N89: 2 | S89: 0 | T89: 0 | U89: 0 | V89: 0 | W89: 0
A90: 88 | B90: 422 | C90: Közműépítés | E90: 2 | F90: 3 | G90: 1 | H90: 5 | I90: 4 | J90: 3 | K90: 4 | L90: 5 | M90: 4 | N90: 3 | S90: 1 | T90: 0 | U90: 258 | V90: 439 | W90: 516
A91: 89 | B91: 429 | C91: M.n.s. egyéb építmény építése | E91: 2 | F91: 2 | G91: 2 | H91: 5 | I91: 4 | J91: 4 | K91: 5 | L91: 3 | M91: 4 | N91: 3 | S91: 2 | T91: 0 | U91: 558 | V91: 949 | W91: 1116
A92: 90 | B92: 431 | C92: Bontás, építési terület előkészítése | E92: 3 | F92: 3 | G92: 3 | H92: 2 | I92: 2 | J92: 0 | K92: 0 | L92: 4 | M92: 4 | N92: 3 | S92: 3 | T92: 0 | U92: 684 | V92: 1163 | W92: 1368
A93: 91 | B93: 432 | C93: Épületgépészeti szerelés | E93: 3 | F93: 3 | G93: 2 | H93: 4 | I93: 4 | J93: 4 | K93: 4 | L93: 4 | M93: 4 | N93: 3 | S93: 4 | T93: 0 | U93: 1060 | V93: 1802 | W93: 2120
A94: 92 | B94: 433 | C94: Befejező építés | E94: 2 | F94: 3 | G94: 2 | H94: 5 | I94: 4 | J94: 5 | K94: 5 | L94: 1 | M94: 4 | N94: 3 | S94: 5 | T94: 0 | U94: 1620 | V94: 2754 | W94: 3240
A95: 93 | B95: 439 | C95: Egyéb speciális szaképítés | E95: 4 | F95: 1 | G95: 2 | H95: 2 | I95: 2 | J95: 1 | K95: 4 | L95: 4 | M95: 4 | N95: 3
A96: 94 | B96: 451 | C96: Gépjármű-kereskedelem | E96: 3 | F96: 3 | G96: 2 | H96: 2 | I96: 2 | J96: 2 | K96: 0 | L96: 2 | M96: 2 | N96: 2 | S96: =VLOOKUP(S98,$X$75:$Y$78,2,FALSE) -> 5 millió Ft | T96: =VLOOKUP(T98,$X$75:$Y$78,2,FALSE) -> 5 millió Ft | U96: =VLOOKUP(U98,$X$75:$Y$78,2,FALSE) -> 5 millió Ft | V96: =VLOOKUP(V98,$X$75:$Y$78,2,FALSE) -> 5 millió Ft | W96: =VLOOKUP(W98,$X$75:$Y$78,2,FALSE) -> 5 millió Ft
A97: 95 | B97: 452 | C97: Gépjárműjavítás, -karbantartás | E97: 3 | F97: 2 | G97: 2 | H97: 2 | I97: 2 | J97: 2 | K97: 0 | L97: 2 | M97: 2 | N97: 2 | S97: =VLOOKUP(O3,$A$3:$N$247,13) -> 2 | T97: =VLOOKUP(O4,$A$3:$N$247,13) -> 2 | U97: =VLOOKUP(O5,$A$3:$N$247,13) -> 2 | V97: =VLOOKUP(O6,$A$3:$N$247,13) -> 2 | W97: =VLOOKUP(O7,$A$3:$N$247,13) -> 2
A98: 96 | B98: 453 | C98: Gépjárműalkatrész-kereskedelem | E98: 2 | F98: 3 | G98: 1 | H98: 2 | I98: 1 | J98: 2 | K98: 3 | L98: 0 | M98: 2 | N98: 2 | S98: 2 | T98: 2 | U98: 2 | V98: 2 | W98: 2
A99: 97 | B99: 454 | C99: Motorkerékpár, -alkatrész kereskedelme, javítása | E99: 3 | F99: 2 | G99: 2 | H99: 2 | I99: 2 | J99: 2 | K99: 2 | L99: 2 | M99: 2 | N99: 2 | S99: =HLOOKUP(S98,$S$100:$W$106,S97+2,FALSE) -> 120 | T99: =HLOOKUP(T98,$S$100:$W$106,T97+2,FALSE) -> 120 | U99: =HLOOKUP(U98,$S$100:$W$106,U97+2,FALSE) -> 120 | V99: =HLOOKUP(V98,$S$100:$W$106,V97+2,FALSE) -> 120 | W99: =HLOOKUP(W98,$S$100:$W$106,W97+2,FALSE) -> 120
A100: 98 | B100: 461 | C100: Ügynöki nagykereskedelem | E100: 3 | F100: 3 | G100: 3 | H100: 2 | I100: 2 | J100: 2 | K100: 2 | L100: 0 | M100: 3 | N100: 2 | S100: Környezet | T100: 1 | U100: 2 | V100: 3 | W100: 4
A101: 99 | B101: 462 | C101: Mezőgazdasági nyersanyag, élőállat nagykereskedelme | E101: 3 | F101: 2 | G101: 2 | H101: 2 | I101: 2 | J101: 3 | K101: 3 | L101: 0 | M101: 3 | N101: 3 | S101: 0 | T101: 0 | U101: 0 | V101: 0 | W101: 0
A102: 100 | B102: 463 | C102: Élelmiszer, ital, dohányáru nagykereskedelme | E102: 4 | F102: 3 | G102: 4 | H102: 2 | I102: 1 | J102: 2 | K102: 2 | L102: 0 | M102: 3 | N102: 2 | S102: 1 | T102: 0 | U102: 60 | V102: 89 | W102: 102
A103: 101 | B103: 464 | C103: Háztartási cikk nagykereskedelme | E103: 3 | F103: 2 | G103: 2 | H103: 3 | I103: 3 | J103: 3 | K103: 3 | L103: 0 | M103: 3 | N103: 3 | S103: 2 | T103: 0 | U103: 120 | V103: 178 | W103: 204
A104: 102 | B104: 465 | C104: Információtechnológiai, híradás-technikai termék nagykereskedelme | E104: 3 | F104: 3 | G104: 2 | H104: 2 | I104: 2 | J104: 1 | K104: 2 | L104: 0 | M104: 3 | N104: 2 | S104: 3 | T104: 0 | U104: 150 | V104: 222 | W104: 255
A105: 103 | B105: 467 | C105: Egyéb szakosodott nagykereskedelem | E105: 3 | F105: 2 | G105: 3 | H105: 3 | I105: 3 | J105: 3 | K105: 3 | L105: 0 | M105: 3 | N105: 3 | S105: 4 | T105: 0 | U105: 170 | V105: 252 | W105: 289
A106: 104 | B106: 469 | C106: Vegyes termékkörű nagykereskedelem | E106: 4 | F106: 3 | G106: 3 | H106: 3 | I106: 1 | J106: 3 | K106: 2 | L106: 0 | M106: 3 | N106: 3 | S106: 5 | T106: 0 | U106: 190 | V106: 281 | W106: 323
A107: 105 | B107: 471 | C107: Nem szakosodott bolti vegyes kiskereskedelem | E107: 3 | F107: 2 | G107: 2 | H107: 3 | I107: 3 | J107: 3 | K107: 3 | L107: 0 | M107: 2 | N107: 3
A108: 106 | B108: 4719 | C108: Iparcikk jellegű bolti vegyes kiskereskedelem | E108: 3 | F108: 2 | G108: 3 | H108: 3 | I108: 3 | J108: 3 | K108: 3 | L108: 0 | M108: 2 | N108: 3
A109: 107 | B109: 472 | C109: Élelmiszer, ital, dohányáru kiskereskedelme | E109: 4 | F109: 2 | G109: 2 | H109: 2 | I109: 3 | J109: 2 | K109: 2 | L109: 0 | M109: 2 | N109: 3 | S109: Megyei jogú város
A110: 108 | B110: 4726 | C110: Dohányáru kiskereskedelem | E110: 4 | F110: 6 | G110: 2 | H110: 2 | I110: 3 | J110: 2 | K110: 2 | L110: 0 | M110: 2 | N110: 3 | S110: 5600 | T110: =VLOOKUP('1.telephely'!$F$5,$S$110:$S$245,1,FALSE) ->  | U110: =ISNA(T110) -> TRUE
A111: 109 | B111: 473 | C111: Gépjárműüzemanyag-kiskereskedelem | E111: 4 | F111: 4 | G111: 2 | H111: 4 | I111: 4 | J111: 4 | K111: 4 | L111: 0 | M111: 5 | N111: 3 | S111: 9400 | T111: =VLOOKUP('2.telephely'!$F$2,$S$110:$S$245,1,FALSE) ->  | U111: =ISNA(T111) -> TRUE
A112: 110 | B112: 474 | C112: Információs, híradás-technikai termék kiskereskedelme | E112: 3 | F112: 3 | G112: 2 | H112: 2 | I112: 2 | J112: 1 | K112: 2 | L112: 0 | M112: 3 | N112: 2 | S112: 2400 | T112: =VLOOKUP('3.telephely'!$F$2,$S$110:$S$245,1,FALSE) ->  | U112: =ISNA(T112) -> TRUE
A113: 111 | B113: 4741 | C113: Számítógép, periféria, szoftver kiskereskedelme | E113: 3 | F113: 3 | G113: 2 | H113: 3 | I113: 2 | J113: 2 | K113: 1 | L113: 0 | M113: 3 | N113: 2 | S113: 3300 | T113: =VLOOKUP('4.telephely'!$F$2,$S$110:$S$245,1,FALSE) ->  | U113: =ISNA(T113) -> TRUE
A114: 112 | B114: 4743 | C114: Audio-, videoberendezés kiskereskedelme | E114: 2 | F114: 2 | G114: 2 | H114: 2 | I114: 2 | J114: 2 | K114: 1 | L114: 0 | M114: 3 | N114: 2 | S114: 2030 | T114: =VLOOKUP('5.telephely'!$F$2,$S$110:$S$245,1,FALSE) ->  | U114: =ISNA(T114) -> TRUE
A115: 113 | B115: 475 | C115: Egyéb háztartási cikk kiskereskedelme | E115: 3 | F115: 2 | G115: 2 | H115: 3 | I115: 3 | J115: 3 | K115: 3 | L115: 0 | M115: 3 | N115: 2 | S115: 6800
A116: 114 | B116: 4751 | C116: Textil-kiskereskedelem | E116: 3 | F116: 2 | G116: 2 | H116: 3 | I116: 2 | J116: 3 | K116: 1 | L116: 0 | M116: 3 | N116: 2 | S116: 7400
A117: 115 | B117: 4752 | C117: Vasáru-, festék-, üveg-kiskereskedelem | E117: 4 | F117: 2 | G117: 2 | H117: 4 | I117: 2 | J117: 4 | K117: 4 | L117: 0 | M117: 3 | N117: 3 | S117: 6000
A118: 116 | B118: 475203 | C118: Építőanyag- és szaniteráru-kereskedelem | E118: 4 | F118: 3 | G118: 3 | H118: 3 | I118: 3 | J118: 3 | K118: 3 | L118: 0 | M118: 3 | N118: 3 | S118: 8800
A119: 117 | B119: 475205 | C119: Épületfa-kiskereskedelem | E119: 4 | F119: 1 | G119: 2 | H119: 2 | I119: 3 | J119: 2 | K119: 2 | L119: 0 | M119: 3 | N119: 3 | S119: 4400
A120: 118 | B120: 475206 | C120: Mezőgazdasági eszközök, kiskereskedelme | E120: 3 | F120: 3 | G120: 3 | H120: 3 | I120: 3 | J120: 3 | K120: 3 | L120: 0 | M120: 3 | N120: 3 | S120: 3100
A121: 119 | B121: 4753 | C121: Takaró, szőnyeg, fal-, padlóburkoló kiskereskedelme | E121: 2 | F121: 1 | G121: 2 | H121: 3 | I121: 3 | J121: 3 | K121: 2 | L121: 0 | M121: 3 | N121: 3 | S121: 7100
A122: 120 | B122: 4759 | C122: Bútor, világítási eszköz, egyéb háztartási cikk kiskereskedelme | E122: 4 | F122: 3 | G122: 2 | H122: 3 | I122: 3 | J122: 3 | K122: 2 | L122: 0 | M122: 3 | N122: 3 | S122: 8000
A123: 121 | B123: 475909 | C123: Hangszer-kiskereskedelem | E123: 2 | F123: 2 | G123: 2 | H123: 3 | I123: 3 | J123: 3 | K123: 1 | L123: 0 | M123: 2 | N123: 2 | S123: 5000
A124: 122 | B124: 476 | C124: Kulturális, szabadidős cikk bolti kiskereskedelme | E124: 3 | F124: 3 | G124: 3 | H124: 3 | I124: 3 | J124: 3 | K124: 2 | L124: 0 | M124: 2 | N124: 2 | S124: 9700
A125: 123 | B125: 4761 | C125: Könyv-kiskereskedelem | E125: 2 | F125: 2 | G125: 2 | H125: 2 | I125: 2 | J125: 2 | K125: 1 | L125: 0 | M125: 3 | N125: 2 | S125: 2800
A126: 124 | B126: 4762 | C126: Újság-, papíráru-kiskereskedelem | E126: 3 | F126: 3 | G126: 2 | H126: 3 | I126: 2 | J126: 3 | K126: 2 | L126: 0 | M126: 3 | N126: 2 | S126: 8200
A127: 125 | B127: 4764 | C127: Sportszer-kiskereskedelem | E127: 3 | F127: 3 | G127: 3 | H127: 3 | I127: 2 | J127: 3 | K127: 2 | L127: 0 | M127: 2 | N127: 2 | S127: 8900
A128: 126 | B128: 4765 | C128: Játék-kiskereskedelem | E128: 3 | F128: 3 | G128: 3 | H128: 3 | I128: 2 | J128: 3 | K128: 3 | L128: 0 | M128: 3 | N128: 2 | S128: 4000
A129: 127 | B129: 477 | C129: Egyéb m.n.s. áru kiskereskedelme | E129: 3 | F129: 3 | G129: 3 | H129: 3 | I129: 2 | J129: 3 | K129: 2 | L129: 0 | M129: 3 | N129: 3 | S129: 4002
A130: 128 | B130: 4771 | C130: Ruházat kiskereskedelem | E130: 4 | F130: 4 | G130: 3 | H130: 4 | I130: 3 | J130: 4 | K130: 4 | L130: 0 | M130: 3 | N130: 3 | S130: 4024
A131: 129 | B131: 4772 | C131: Lábbeli-, bőráru-kiskereskedelem | E131: 2 | F131: 3 | G131: 2 | H131: 2 | I131: 2 | J131: 2 | K131: 2 | L131: 0 | M131: 3 | N131: 3 | S131: 4025
A132: 130 | B132: 4773 | C132: Gyógyszer-kiskereskedelem | E132: 3 | F132: 4 | G132: 2 | H132: 4 | I132: 2 | J132: 3 | K132: 3 | L132: 0 | M132: 3 | N132: 3 | S132: 4026
A133: 131 | B133: 4775 | C133: Illatszer-kiskereskedelem | E133: 4 | F133: 2 | G133: 3 | H133: 3 | I133: 3 | J133: 3 | K133: 3 | L133: 0 | M133: 3 | N133: 3 | S133: 4027
A134: 132 | B134: 4776 | C134: Dísznövény, vetőmag, műtrágya, hobbiállat-eledel kiskereskedelme | E134: 3 | F134: 2 | G134: 2 | H134: 3 | I134: 2 | J134: 3 | K134: 2 | L134: 0 | M134: 3 | N134: 3 | S134: 4028
A135: 133 | B135: 477808 | C135: Fotó-,optikai cikk- kiskereskedelem | E135: 2 | F135: 2 | G135: 2 | H135: 2 | I135: 2 | J135: 2 | K135: 1 | L135: 0 | M135: 3 | N135: 3 | S135: 4029
A136: 134 | B136: 477813 | C136: Ajándéktárgy-kiskereskedelem | E136: 3 | F136: 2 | G136: 2 | H136: 3 | I136: 2 | J136: 3 | K136: 3 | L136: 0 | M136: 3 | N136: 3 | S136: 4030
A137: 135 | B137: 477814 | C137: Mutatványoskellékáru-kiskereskedelem | E137: 3 | F137: 2 | G137: 3 | H137: 2 | I137: 2 | J137: 2 | K137: 1 | L137: 0 | M137: 3 | N137: 3 | S137: 4031
A138: 136 | B138: 477816 | C138: Díszállat- és díszhal-kiskereskedelem | E138: 2 | F138: 1 | G138: 2 | H138: 3 | I138: 2 | J138: 4 | K138: 1 | L138: 0 | M138: 2 | N138: 3 | S138: 4032
A139: 137 | B139: 479 | C139: Nem bolti, piaci kiskereskedelem | E139: 2 | F139: 3 | G139: 2 | H139: 2 | I139: 2 | J139: 2 | K139: 2 | L139: 0 | M139: 2 | N139: 2 | S139: 4033
A140: 138 | B140: 4942 | C140: Költöztetés | E140: 4 | F140: 2 | G140: 3 | H140: 3 | I140: 4 | J140: 3 | K140: 0 | L140: 4 | M140: 3 | N140: 3 | S140: 4034
A141: 139 | B141: 521 | C141: Raktározás, tárolás | E141: 4 | F141: 4 | G141: 3 | H141: 2 | I141: 3 | J141: 2 | K141: 1 | L141: 1 | M141: 3 | N141: 3 | S141: 9000
A142: 140 | B142: 531 | C142: Postai tevékenység (egyetemes kötelezettséggel) | E142: 2 | F142: 2 | G142: 1 | H142: 2 | I142: 4 | J142: 2 | K142: 0 | L142: 1 | M142: 3 | N142: 3 | S142: 9021
A143: 141 | B143: 532 | C143: Egyéb postai, futárpostai tevékenység | E143: 2 | F143: 2 | G143: 1 | H143: 2 | I143: 4 | J143: 2 | K143: 0 | L143: 1 | M143: 3 | N143: 3 | S143: 9022
A144: 142 | B144: 551 | C144: Szállodai szolgáltatás | E144: 2 | F144: 2 | G144: 2 | H144: 2 | I144: 2 | J144: 2 | K144: 2 | L144: 1 | M144: 2 | N144: 2 | S144: 9023
A145: 143 | B145: 551002 | C145: Panzió szolgáltatás | E145: 2 | F145: 3 | G145: 2 | H145: 2 | I145: 2 | J145: 2 | K145: 2 | L145: 1 | M145: 2 | N145: 2 | S145: 9024
A146: 144 | B146: 552 | C146: Üdülési, egyéb átmeneti szálláshely-szolgáltatás | E146: 3 | F146: 3 | G146: 3 | H146: 2 | I146: 2 | J146: 2 | K146: 2 | L146: 2 | M146: 2 | N146: 2 | S146: 9025
A147: 145 | B147: 553 | C147: Kempingszolgáltatás | E147: 3 | F147: 2 | G147: 3 | H147: 3 | I147: 1 | J147: 3 | K147: 2 | L147: 2 | M147: 3 | N147: 2 | S147: 9026
A148: 146 | B148: 559 | C148: Egyéb szálláshely-szolgáltatás | E148: 3 | F148: 2 | G148: 3 | H148: 3 | I148: 1 | J148: 3 | K148: 2 | L148: 2 | M148: 2 | N148: 2 | S148: 9027
A149: 147 | B149: 561 | C149: Éttermi, mozgó vendéglátás | E149: 2 | F149: 2 | G149: 2 | H149: 2 | I149: 2 | J149: 3 | K149: 3 | L149: 1 | M149: 2 | N149: 2 | S149: 9028
A150: 148 | B150: 561001 | C150: Éttermi, cukrászdai szolgáltatás | E150: 2 | F150: 2 | G150: 2 | H150: 2 | I150: 2 | J150: 3 | K150: 4 | L150: 0 | M150: 2 | N150: 3 | S150: 9029
A151: 149 | B151: 562 | C151: Rendezvényi étkeztetés és egyéb vendéglátás | E151: 4 | F151: 4 | G151: 4 | H151: 5 | I151: 4 | J151: 5 | K151: 5 | L151: 0 | M151: 3 | N151: 3 | S151: 9030
A152: 150 | B152: 563 | C152: Italszolgáltatás | E152: 2 | F152: 3 | G152: 2 | H152: 2 | I152: 2 | J152: 3 | K152: 3 | L152: 1 | M152: 2 | N152: 2 | S152: 9011
A153: 151 | B153: 581 | C153: Kiadói tevékenység | E153: 4 | F153: 2 | G153: 1 | H153: 2 | I153: 2 | J153: 2 | K153: 0 | L153: 0 | M153: 3 | N153: 3 | S153: 9012
A154: 152 | B154: 582 | C154: Szoftverkiadás | E154: 2 | F154: 1 | G154: 2 | H154: 2 | I154: 1 | J154: 2 | K154: 3 | L154: 3 | M154: 3 | N154: 3 | S154: 9019
A155: 153 | B155: 591 | C155: Film-, video-, televízióműsor-gyártás | E155: 3 | F155: 2 | G155: 4 | H155: 4 | I155: 4 | J155: 0 | K155: 0 | L155: 4 | M155: 3 | N155: 0 | S155: 5623
A156: 154 | B156: 5914 | C156: Filmvetítés | E156: 3 | F156: 2 | G156: 3 | H156: 3 | I156: 2 | J156: 3 | K156: 0 | L156: 1 | M156: 2 | N156: 3 | S156: 5671
A157: 155 | B157: 592 | C157: Hangfelvétel készítése, kiadása | E157: 3 | F157: 2 | G157: 2 | H157: 2 | I157: 2 | J157: 2 | K157: 0 | L157: 3 | M157: 2 | N157: 3 | S157: 4063
A158: 156 | B158: 601 | C158: Rádióműsor-szolgáltatás | E158: 3 | F158: 2 | G158: 2 | H158: 2 | I158: 2 | J158: 2 | K158: 0 | L158: 3 | M158: 2 | N158: 2 | S158: 4078
A159: 157 | B159: 602 | C159: Televízióműsor összeállítása, szolgáltatása | E159: 3 | F159: 2 | G159: 4 | H159: 4 | I159: 2 | J159: 4 | K159: 0 | L159: 4 | M159: 2 | N159: 4 | S159: 4079
A160: 158 | B160: 611 | C160: Vezetékes távközlés | E160: 2 | F160: 4 | G160: 2 | H160: 4 | I160: 5 | J160: 4 | K160: 4 | L160: 1 | M160: 4 | N160: 3 | S160: 4225
A161: 159 | B161: 620 | C161: Információ-technológiai szolgáltatás | E161: 3 | F161: 2 | G161: 4 | H161: 2 | I161: 2 | J161: 2 | K161: 2 | L161: 0 | M161: 3 | N161: 3 | S161: 2407
A162: 160 | B162: 631 | C162: Adatfeldolgozás, web-hoszting, világháló-portál szolgáltatás | E162: 3 | F162: 2 | G162: 4 | H162: 2 | I162: 2 | J162: 2 | K162: 2 | L162: 0 | M162: 2 | N162: 3 | S162: 3304
A163: 161 | B163: 639 | C163: Egyéb információs szolgáltatás | E163: 3 | F163: 2 | G163: 4 | H163: 2 | I163: 2 | J163: 2 | K163: 2 | L163: 0 | M163: 2 | N163: 3 | S163: 6806
A164: 162 | B164: 641 | C164: Monetáris közvetítés | E164: 2 | F164: 2 | G164: 1 | H164: 2 | I164: 2 | J164: 2 | K164: 0 | L164: 0 | M164: 2 | N164: 3 | S164: 6008
A165: 163 | B165: 642 | C165: Vagyonkezelés (holding) | E165: 2 | F165: 2 | G165: 1 | H165: 2 | I165: 2 | J165: 2 | K165: 0 | L165: 0 | M165: 2 | N165: 3 | S165: 6044
A166: 164 | B166: 643 | C166: Befektetési alapok és hasonlók | E166: 2 | F166: 2 | G166: 1 | H166: 2 | I166: 2 | J166: 2 | K166: 0 | L166: 0 | M166: 2 | N166: 3 | S166: 3500
A167: 165 | B167: 649 | C167: Egyéb pénzügyi közvetítés | E167: 2 | F167: 2 | G167: 1 | H167: 2 | I167: 2 | J167: 2 | K167: 0 | L167: 0 | M167: 2 | N167: 3 | S167: 3501
A168: 166 | B168: 661 | C168: Pénzügyi kiegészítő tevékenység (kivéve: biztosítás, nyugdíjalap) | E168: 3 | F168: 5 | G168: 2 | H168: 1 | I168: 1 | J168: 1 | K168: 0 | L168: 0 | M168: 2 | N168: 2 | S168: 3508
A169: 167 | B169: 662 | C169: Biztosítást, nyugdíjalapot kiegészítő tevékenység | E169: 2 | F169: 2 | G169: 2 | H169: 2 | I169: 2 | J169: 2 | K169: 0 | L169: 0 | M169: 2 | N169: 2 | S169: 3510
A170: 168 | B170: 663 | C170: Alapkezelés | E170: 3 | F170: 5 | G170: 2 | H170: 1 | I170: 1 | J170: 1 | K170: 0 | L170: 0 | M170: 2 | N170: 2 | S170: 3515
A171: 169 | B171: 681 | C171: Saját tulajdonú ingatlan adásvétele | E171: 2 | F171: 2 | G171: 2 | H171: 3 | I171: 3 | J171: 3 | K171: 0 | L171: 0 | M171: 2 | N171: 2 | S171: 3516
A172: 170 | B172: 682 | C172: Saját tulajdonú, bérelt ingatlan bérbeadása, üzemeltetése | E172: 2 | F172: 2 | G172: 2 | H172: 3 | I172: 2 | J172: 3 | K172: 0 | L172: 3 | M172: 2 | N172: 2 | S172: 3517
A173: 171 | B173: 683 | C173: Ingatlanügynöki, -kezelési szolgáltatás | E173: 2 | F173: 3 | G173: 1 | H173: 2 | I173: 3 | J173: 2 | K173: 4 | L173: 1 | M173: 2 | N173: 2 | S173: 3518
A174: 172 | B174: 691 | C174: Jogi tevékenység | E174: 2 | F174: 3 | G174: 2 | H174: 2 | I174: 2 | J174: 2 | K174: 0 | L174: 5 | M174: 2 | N174: 3 | S174: 3519
A175: 173 | B175: 692 | C175: Számviteli, könyvvizsgálói, adószakértői tevékenység | E175: 2 | F175: 2 | G175: 2 | H175: 1 | I175: 2 | J175: 1 | K175: 0 | L175: 4 | M175: 2 | N175: 3 | S175: 3521
A176: 174 | B176: 701 | C176: Üzletvezetés | E176: 2 | F176: 2 | G176: 2 | H176: 2 | I176: 2 | J176: 2 | K176: 0 | L176: 4 | M176: 2 | N176: 3 | S176: 3524
A177: 175 | B177: 702 | C177: Üzletviteli tanácsadás | E177: 2 | F177: 2 | G177: 2 | H177: 2 | I177: 2 | J177: 2 | K177: 0 | L177: 4 | M177: 2 | N177: 3 | S177: 3525
A178: 176 | B178: 711 | C178: Építészmérnöki tevékenység | E178: 4 | F178: 2 | G178: 2 | H178: 4 | I178: 4 | J178: 4 | K178: 0 | L178: 0 | M178: 4 | N178: 4 | S178: 3526
A179: 177 | B179: 712 | C179: Műszaki vizsgálat, elemzés | E179: 2 | F179: 2 | G179: 2 | H179: 2 | I179: 2 | J179: 2 | K179: 0 | L179: 3 | M179: 3 | N179: 3 | S179: 3527
A180: 178 | B180: 721 | C180: Természettudományi, műszaki kutatás, fejlesztés | E180: 4 | F180: 2 | G180: 3 | H180: 3 | I180: 3 | J180: 4 | K180: 0 | L180: 0 | M180: 3 | N180: 3 | S180: 3528
A181: 179 | B181: 722 | C181: Társadalomtudományi, humán kutatás, fejlesztés | E181: 2 | F181: 2 | G181: 2 | H181: 2 | I181: 2 | J181: 2 | K181: 0 | L181: 0 | M181: 3 | N181: 3 | S181: 3529
A182: 180 | B182: 731 | C182: Reklám | E182: 4 | F182: 4 | G182: 2 | H182: 3 | I182: 3 | J182: 3 | K182: 0 | L182: 3 | M182: 3 | N182: 3 | S182: 3530
A183: 181 | B183: 732 | C183: Piac-, közvélemény-kutatás | E183: 2 | F183: 1 | G183: 2 | H183: 2 | I183: 2 | J183: 2 | K183: 0 | L183: 3 | M183: 3 | N183: 3 | S183: 3531
A184: 182 | B184: 741 | C184: Divat-, formatervezés | E184: 2 | F184: 2 | G184: 1 | H184: 2 | I184: 2 | J184: 2 | K184: 1 | L184: 4 | M184: 3 | N184: 3 | S184: 3532
A185: 183 | B185: 742 | C185: Fényképészet | E185: 2 | F185: 1 | G185: 2 | H185: 3 | I185: 2 | J185: 3 | K185: 0 | L185: 2 | M185: 3 | N185: 3 | S185: 3533
A186: 184 | B186: 743 | C186: Fordítás, tolmácsolás | E186: 4 | F186: 1 | G186: 3 | H186: 1 | I186: 3 | J186: 1 | K186: 2 | L186: 1 | M186: 2 | N186: 3 | S186: 3534
A187: 185 | B187: 749 | C187: M.n.s. egyéb szakmai, tudományos, műszaki tevékenység | E187: 4 | F187: 2 | G187: 3 | H187: 2 | I187: 2 | J187: 2 | K187: 0 | L187: 0 | M187: 3 | N187: 3 | S187: 3535
A188: 186 | B188: 750 | C188: Állat-egészségügyi ellátás | E188: 4 | F188: 2 | G188: 3 | H188: 3 | I188: 4 | J188: 3 | K188: 0 | L188: 4 | M188: 4 | N188: 3 | S188: 8808
A189: 187 | B189: 772903 | C189: Esküvői ruha, jelmez, egyéb ruházati termék kölcsönzése | E189: 3 | F189: 2 | G189: 2 | H189: 2 | I189: 2 | J189: 2 | K189: 1 | L189: 1 | M189: 3 | N189: 3 | S189: 8809
A190: 188 | B190: 781 | C190: Munkaközvetítés | E190: 2 | F190: 1 | G190: 2 | H190: 2 | I190: 2 | J190: 2 | K190: 0 | L190: 4 | M190: 3 | N190: 3 | S190: 8831
A191: 189 | B191: 782 | C191: Munkaerőkölcsönzés | E191: 2 | F191: 1 | G191: 2 | H191: 2 | I191: 2 | J191: 2 | K191: 0 | L191: 4 | M191: 3 | N191: 3 | S191: 4246
A192: 190 | B192: 783 | C192: Egyéb emberierőforrás-ellátás, -gazdálkodás | E192: 2 | F192: 1 | G192: 2 | H192: 2 | I192: 2 | J192: 2 | K192: 0 | L192: 4 | M192: 3 | N192: 3 | S192: 4405
A193: 191 | B193: 811 | C193: Építményüzemeltetés | E193: 2 | F193: 2 | G193: 3 | H193: 3 | I193: 4 | J193: 3 | K193: 0 | L193: 2 | M193: 3 | N193: 3 | S193: 4412
A194: 192 | B194: 812 | C194: Takarítás | E194: 2 | F194: 1 | G194: 1 | H194: 2 | I194: 3 | J194: 2 | K194: 0 | L194: 2 | M194: 4 | N194: 3 | S194: 4431
A195: 193 | B195: 821 | C195: Adminisztratív, kiegészítő szolgáltatás | E195: 4 | F195: 4 | G195: 2 | H195: 3 | I195: 3 | J195: 2 | K195: 0 | L195: 2 | M195: 2 | N195: 3 | S195: 4432
A196: 194 | B196: 822 | C196: Telefoninformáció | E196: 4 | F196: 4 | G196: 2 | H196: 3 | I196: 3 | J196: 2 | K196: 0 | L196: 2 | M196: 2 | N196: 3 | S196: 4433
A197: 195 | B197: 823 | C197: Konferencia, kereskedelmi bemutató szervezése | E197: 4 | F197: 1 | G197: 2 | H197: 2 | I197: 2 | J197: 2 | K197: 0 | L197: 2 | M197: 2 | N197: 3 | S197: 4481
A198: 196 | B198: 829 | C198: Egyéb kiegészítő gazdasági tevékenység | E198: 3 | F198: 4 | G198: 0 | H198: 5 | I198: 5 | J198: 2 | K198: 0 | L198: 0 | M198: 2 | N198: 3 | S198: 4551
A199: 197 | B199: 841 | C199: Közigazgatás | E199: 4 | F199: 2 | G199: 4 | H199: 4 | I199: 4 | J199: 4 | K199: 2 | L199: 5 | M199: 4 | N199: 3 | S199: 7621
A200: 198 | B200: 842 | C200: Társadalmi közszolgáltatás | E200: 2 | F200: 2 | G200: 3 | H200: 4 | I200: 4 | J200: 4 | K200: 0 | L200: 5 | M200: 3 | N200: 3 | S200: 7622
... 291 more rows

Sheet 1.telephely
A1: KVB-13 díjkalkuláció
A4: Telephely megnevezése | D4: Telephely és kockázatviselés helye
A5: Tevékenység megnevezése | D5: Telephely irányítószám
A6: Kódja | D6: Település címe | H6: =VLOOKUP(Tarifa!O3,Tarifa!A3:L247,2) -> 011
A9: Alapadatok | D9: Felelősségbiztosítási limitek | F9: Felelősségbiztosítási záradék limitek
A10: Éves árbevétel (e Ft) | B10: 0 | D10: Általános és épülethasználói felelősségbiztosítás | F10: Tanuló baleseti és felelősségbiztosítás | G10: 5 millió Ft
A11: Alkalmazottak száma (fő) | B11: 0 | D11: Munkáltatói felelősségbiztosítás | F11: Szálloda üzemeltetői, szállásadói felelősségbiztosítás
A12: Éves forgalom (e Ft) | B12: 0 | D12: Termékfelelősség biztosítás | F12: Gépjárműjavítók felelősségbiztosítása
A13: Éves bérleti díj (e Ft) | B13: 0 | D13: Bérlői felelősségbiztosítás | F13: Gépjármű eredetiségvizsgálatot végzők felelősségbiztosítása | G13: 5 millió Ft
A14: Éves bérbeadásból származó forgalom (e Ft) | B14: 0 | D14: Szolgáltatói felelősségbiztosítás | F14: Szolgáltatás tárgyában okozott károk biztosítása | G14: 5 millió Ft
D15: Bérbeadói felelősségbiztosítás
A16: Tárgyi eszközk értékelésének módja | D16: Környezetszennyezési felelősségbiztosítás
B18: Biztosított vagyontárgyak biztosítási összege (e Ft) | C18: Díj | D18: Betöréses lopás és rablás biztosítás
A19: Épület, építmény | B19: 0
A20: Egyéb tárgyi eszközök | B20: 0 | E20: FALSE
A21: Saját készletek | B21: 0 | E21: FALSE
A22: Idegen készletek | B22: 0
A23: Készpénz | B23: 0 | E23: FALSE | F23: Díjkategória besorolás
A24: Összesen | B24: =IF(OR(B19>0,B20>0),SUM(B19:B23),0) -> 0 | C24: =IF(B24+'2.telephely'!B21+'3.telephely'!B21+'4.telephely'!B21+'5.telephely'!B21>500000,"Hibás ajánlat!",B24*Tarifa!S9) -> 0 | F24: =Tarifa!S8 -> 3
E25: Vidéki díjengedmény
A26: Betöréses lopás és rablás biztosítás (e Ft) | C26: =IF(C24=0,0,((IF(E20=TRUE,B20,0))+(IF(E21=TRUE,SUM(B21:B22),0))+(IF(E23=TRUE,B23,0)))*Tarifa!S16*Tarifa!S14) -> 0 | E26: =IF(Tarifa!S13="Vidék","Igen","-") -> - | F26: =Tarifa!S15 -> 1
A28: Irodai és kereskedelmi elektronikus berendezések, eszközök biztosítása (e Ft) | B28: 0 | C28: =IF(B28>10000,0,(IF(C24=0,0,IF(E28=TRUE,B28*Tarifa!AB20,0)))) -> 0 | E28: FALSE
A30: Üzemszünet biztosítás | B30: =B10 -> 0 | C30: =IF(C24=0,0,IF(E30=TRUE,B30*Tarifa!T22,0)) -> 0 | E30: FALSE | F30: =Tarifa!T21 -> 2
A32: Szállítmány biztosítás | B32: 0 | C32: =IF(B32>2000,0,(IF(C24=0,0,IF(E32=TRUE,B32*Tarifa!AB21,0)))) -> 0 | E32: FALSE
A34: Vakolat károk biztosítása | B34: =B19 -> 0 | C34: =IF(C24=0,0,IF(E34=TRUE,B34*Tarifa!AE20,0)) -> 0 | E34: FALSE
A36: Tetőbeázási károk biztosítása | B36: =B19 -> 0 | C36: =IF(C24=0,0,IF(E36=TRUE,B36*Tarifa!AE21,0)) -> 0 | E36: FALSE
A38: Vandalizmus károk biztosítása (e Ft) | B38: 0 | C38: =IF(B38>(B24*0.1),0,(IF(C24=0,0,IF(E38=TRUE,B38*Tarifa!AH20,0)))) -> 0 | E38: FALSE
A40: Különleges üvegek üvegtörés biztosítása (e Ft) | B40: 0 | C40: =IF(C24=0,0,IF(E40=TRUE,B40*Tarifa!AH21,0)) -> 0 | E40: FALSE
A42: Általános és épülethasználói felelősségbiztosítás (fő) | B42: =B11 -> 0 | C42: =IF(C24=0,0,IF(E42=TRUE,B42*Tarifa!S29,0)) -> 0 | E42: FALSE | F42: =Tarifa!S27 -> 2
A43: Tanuló baleseti és felelősségbiztosítás (fő) | B43: 0 | C43: =IF(C24=0,0,IF(C42>0,IF(E43=TRUE,Tarifa!AE44,0),0)) -> 0 | E43: FALSE | F43: =Tarifa!AA39 -> 2 | G43: =Tarifa!AG39 -> 3
A44: Munkáltatói felelősségbiztosítás | B44: =B11 -> 0 | C44: =IF(C24=0,0,IF(C42>0,IF(E44=TRUE,B44*Tarifa!S40,0),0)) -> 0 | E44: FALSE | F44: =Tarifa!S38 -> 3
A45: Termékfelelősség biztosítás | B45: =B12 -> 0 | C45: =IF(C24=0,0,IF(C42>0,IF(E45=TRUE,((B45*Tarifa!S51)/1000),0),0)) -> 0 | E45: FALSE | F45: =Tarifa!S49 -> 1
A46: Bérlői felelősségbiztosítás | B46: =B13 -> 0 | C46: =IF(C24=0,0,IF(C42>0,IF(E46=TRUE,((B46*Tarifa!S63)/1000),0),0)) -> 0 | E46: FALSE | F46: =Tarifa!S61 -> 2
A47: Szolgáltatói felelősségbiztosítás | B47: =B12 -> 0 | C47: =IF(C24=0,0,IF(C42>0,IF(E47=TRUE,((B47*Tarifa!S75)/1000),0),0)) -> 0 | E47: FALSE | F47: =Tarifa!S73 -> 1
A48: Szálloda üzemeltetői, szállásadói felelősségbiztosítása | C48: =IF(E48=FALSE,0,C47) -> 0 | E48: FALSE
A49: Gépjárműjavítók felelősségbiztosítása | B49: =B12 -> 0 | C49: =IF(C47=0,0,IF(E49=FALSE,0,Tarifa!AA55)) -> 0 | E49: FALSE
A50: Gépjármű-eredetiségvizsgálatot végzők felelősségbiztosítása | C50: =IF(C47=0,0,IF(E50=FALSE,0,Tarifa!AB51)) -> 0 | E50: FALSE
A51: Szolgáltatás tárgyában okozott károk biztosítása | C51: =IF(E51=FALSE,0,C47) -> 0 | E51: FALSE
A52: Bérbeadói felelősségbiztosítás | B52: =B14 -> 0 | C52: =IF(C24=0,0,IF(C42>0,IF(E52=TRUE,((B52*Tarifa!S87)/1000),0),0)) -> 0 | E52: FALSE | F52: =Tarifa!S85 -> 2
A53: Környezetszennyezési felelősségbiztosítás | B53: =B12 -> 0 | C53: =IF(C24=0,0,IF(C42>0,IF(E53=TRUE,((B12*Tarifa!S99)/1000),0),0)) -> 0 | E53: FALSE | F53: =Tarifa!S97 -> 2
A55: Éves díj 1. telephelyre | C55: =IF(Tarifa!AO7>2000000,"Hibás ajánlat!",IFERROR(C24+C26+C28+C30+C32+C34+C36+C38+C40+C42+C43+C44+C45+C46+C47+C48+C49+C50+C51+C52+C53,"Hibás ajánlat!")) -> 0
A57: Volumen engedmény | B57: =VLOOKUP(1,Tarifa!AA31:AE36,5,FALSE) -> Nincs
A58: Csomag engedmény | B58: =VLOOKUP(1,Tarifa!AE16:AI18,5,FALSE) -> Nincs
A59: Lojalitás engedmény
A60: Díjeltérítési szorzó szerinti engedmény | C60: 1
A61: Központi díjeltérítési szorzó szerinti engedmény | C61: 1
A63: Általános adatok
A64: Díjfizetés gyakorisága
A65: Díjfizetés módja
A67: Fizetendő éves biztosítási díj | B67: =IF(OR(Tarifa!AO6>500000,Tarifa!AO7>2000000),"Hibás ajánlat! Forduljon a kockázatvállaláshoz!",IF(AND(Tarifa!AC8="havi",ROUND((C55+'2.telephely'!C52+'3.telephely'!C52+'4.telephely'!C52+'5.telephely'!C52)*Tarifa!Z8*Tarifa!AP12*Tarifa!AB12,0)<24000),24000,IF(AND(Tarifa!AC8<>"havi",ROUND((C55+'2.telephely'!C52+'3.telephely'!C52+'4.telephely'!C52+'5.telephely'!C52)*Tarifa!Z8*Tarifa!AP12*Tarifa!AB12,0)<12000),12000,ROUND((C55+'2.telephely'!C52+'3.telephely'!C52+'4.telephely'!C52+'5.telephely'!C52)*Tarifa!Z8*Tarifa!AP12*Tarifa!AB12,0)))) -> 12000

Sheet 2.telephely
A1: Telephely megnevezése | D1: Telephely és kockázatviselés helye
A2: Tevékenység megnevezése | D2: Telephely irányítószám
A3: Kódja | D3: Település címe | H3: =VLOOKUP(Tarifa!O4,Tarifa!A3:L247,2) -> 011
A6: Alapadatok | D6: Felelősségbiztosítási limitek | F6: Felelősségbiztosítási záradék limitek
A7: Éves árbevétel (e Ft) | B7: 0 | D7: Általános és épülethasználói felelősségbiztosítás | F7: Tanuló baleseti és felelősségbiztosítás | G7: 5 millió Ft
A8: Alkalmazottak száma (fő) | B8: 0 | D8: Munkáltatói felelősségbiztosítás | F8: Szálloda üzemeltetői, szállásadói felelősségbiztosítás
A9: Éves forgalom (e Ft) | B9: 0 | D9: Termékfelelősség biztosítás | F9: Gépjárműjavítók felelősségbiztosítása
A10: Éves bérleti díj (e Ft) | B10: 0 | D10: Bérlői felelősségbiztosítás | F10: Gépjármű eredetiségvizsgálatot végzők felelősségbiztosítása | G10: 5 millió Ft
A11: Éves bérbeadásból származó forgalom (e Ft) | B11: 0 | D11: Szolgáltatói felelősségbiztosítás | F11: Szolgáltatás tárgyában okozott károk biztosítása | G11: 5 millió Ft
D12: Bérbeadói felelősségbiztosítás
A13: Tárgyi eszközk értékelésének módja | D13: Környezetszennyezési felelősségbiztosítás
B15: Biztosítási összeg (e Ft) | C15: Díj | D15: Betöréses lopás és rablás biztosítás
A16: Épület, építmény | B16: 0
A17: Egyéb tárgyi eszközök | B17: 0 | E17: FALSE
A18: Saját készletek | B18: 0 | E18: FALSE
A19: Idegen készletek | B19: 0
A20: Készpénz | B20: 0 | E20: FALSE | F20: Díjkategória besorolás
A21: Összesen | B21: =IF(OR(B16>0,B17>0),SUM(B16:B20),0) -> 0 | C21: =IF('1.telephely'!B24+'2.telephely'!B21+'3.telephely'!B21+'4.telephely'!B21+'5.telephely'!B21>500000,"Hibás ajánlat!",B21*Tarifa!T9) -> 0 | F21: =Tarifa!T8 -> 3
E22: Vidéki díjengedmény
A23: Betöréses lopás és rablás biztosítás (e Ft) | C23: =IF(C21=0,0,((IF(E17=TRUE,B17,0))+(IF(E18=TRUE,SUM(B18:B19),0))+(IF(E20=TRUE,B20,0)))*Tarifa!T16*Tarifa!T14) -> 0 | E23: =IF(Tarifa!T13="Vidék","Igen","-") -> - | F23: =Tarifa!T15 -> 1
A25: Irodai és kereskedelmi elektronikus berendezések, eszközök biztosítása (e Ft) | B25: 0 | C25: =IF(B25>10000,0,(IF(C21=0,0,IF(E25=TRUE,B25*Tarifa!AB20,0)))) -> 0 | E25: FALSE
A27: Üzemszünet biztosítás (e Ft) | B27: =B7 -> 0 | C27: =IF(C21=0,0,IF(E27=TRUE,B27*Tarifa!U22,0)) -> 0 | E27: FALSE | F27: =Tarifa!U21 -> 2
A29: Szállítmány biztosítás (e Ft) | B29: 0 | C29: =IF(B29>2000,0,(IF(C21=0,0,IF(E29=TRUE,B29*Tarifa!AB21,0)))) -> 0 | E29: FALSE
A31: Vakolat károk biztosítása (e Ft) | B31: =B16 -> 0 | C31: =IF(C21=0,0,IF(E31=TRUE,B31*Tarifa!AE20,0)) -> 0 | E31: FALSE
A33: Tetőbeázási károk biztosítása (e Ft) | B33: =B16 -> 0 | C33: =IF(C21=0,0,IF(E33=TRUE,B33*Tarifa!AE21,0)) -> 0 | E33: FALSE
A35: Vandalizmus károk biztosítása (e Ft) | B35: 0 | C35: =IF(B35>(B21*0.1),0,(IF(C21=0,0,IF(E35=TRUE,B35*Tarifa!AH20,0)))) -> 0 | E35: FALSE
A37: Különleges üvegek üvegtörés biztosítása (e Ft) | B37: 0 | C37: =IF(C21=0,0,IF(E37=TRUE,B37*Tarifa!AH21,0)) -> 0 | E37: FALSE
A39: Általános és épülethasználói felelősségbiztosítás (fő) | B39: =B8 -> 0 | C39: =IF(C21=0,0,IF(E39=TRUE,B39*Tarifa!T29,0)) -> 0 | E39: FALSE | F39: =Tarifa!T27 -> 2
A40: Tanuló baleseti és felelősségbiztosítás (fő) | C40: =IF(C21=0,0,IF(C39>0,IF(E40=TRUE,Tarifa!AE45,0),0)) -> 0 | E40: FALSE | F40: =Tarifa!AB39 -> 2 | G40: =Tarifa!AH39 -> 3
A41: Munkáltatói felelősségbiztosítás | B41: =B8 -> 0 | C41: =IF(C21=0,0,IF(C39>0,IF(E41=TRUE,B41*Tarifa!T40,0),0)) -> 0 | E41: FALSE | F41: =Tarifa!T38 -> 3
A42: Termékfelelősség biztosítás | B42: =B9 -> 0 | C42: =IF(C21=0,0,IF(C39>0,IF(E42=TRUE,((B42*Tarifa!T51)/1000),0),0)) -> 0 | E42: FALSE | F42: =Tarifa!T49 -> 1
A43: Bérlői felelősségbiztosítás | B43: =B10 -> 0 | C43: =IF(C21=0,0,IF(C39>0,IF(E43=TRUE,((B43*Tarifa!T63)/1000),0),0)) -> 0 | E43: FALSE | F43: =Tarifa!T61 -> 2
A44: Szolgáltatói felelősségbiztosítás | B44: =B9 -> 0 | C44: =IF(C21=0,0,IF(C39>0,IF(E44=TRUE,((B44*Tarifa!T75)/1000),0),0)) -> 0 | E44: FALSE | F44: =Tarifa!T73 -> 1
A45: Szálloda üzemeltetői, szállásadói felelősségbiztosítása | C45: =IF(E45=FALSE,0,C44) -> 0 | E45: FALSE
A46: Gépjárműjavítók felelősségbiztosítása | B46: =B9 -> 0 | C46: =IF(C44=0,0,IF(E46=FALSE,0,Tarifa!AB55)) -> 0 | E46: FALSE
A47: Gépjármű-eredetiségvizsgálatot végzők felelősségbiztosítása | C47: =IF(C44=0,0,IF(E47=FALSE,0,Tarifa!AB51)) -> 0 | E47: FALSE
A48: Szolgáltatás tárgyában okozott károk biztosítása | C48: =IF(E48=FALSE,0,C44) -> 0 | E48: FALSE
A49: Bérbeadói felelősségbiztosítás | B49: =B11 -> 0 | C49: =IF(C21=0,0,IF(C39>0,IF(E49=TRUE,((B49*Tarifa!T87)/1000),0),0)) -> 0 | E49: FALSE | F49: =Tarifa!T85 -> 2
A50: Környezetszennyezési felelősségbiztosítás | B50: =B9 -> 0 | C50: =IF(C21=0,0,IF(C39>0,IF(E50=TRUE,((B9*Tarifa!T99)/1000),0),0)) -> 0 | E50: FALSE | F50: =Tarifa!T97 -> 2
A52: Éves díj 2. telephelyre | C52: =IF(Tarifa!AO7>2000000,"Hibás ajánlat!",IFERROR(C21+C23+C25+C27+C29+C31+C33+C35+C37+C39+C40+C41+C42+C43+C44+C45+C46+C47+C48+C49+C50,"Hibás ajánlat!")) -> 0

Sheet 3.telephely
A1: Telephely megnevezése | D1: Telephely és kockázatviselés helye
A2: Tevékenység megnevezése | D2: Telephely irányítószám
A3: Kódja | D3: Település címe | H3: =VLOOKUP(Tarifa!O5,Tarifa!A3:L247,2) -> 011
A6: Alapadatok | D6: Felelősségbiztosítási limitek | F6: Felelősségbiztosítási záradék limitek
A7: Éves árbevétel (e Ft) | B7: 0 | D7: Általános és épülethasználói felelősségbiztosítás | F7: Tanuló baleseti és felelősségbiztosítás | G7: 5 millió Ft
A8: Alkalmazottak száma | B8: 0 | D8: Munkáltatói felelősségbiztosítás | F8: Szálloda üzemeltetői, szállásadói felelősségbiztosítás
A9: Éves forgalom (e Ft) | B9: 0 | D9: Termékfelelősség biztosítás | F9: Gépjárműjavítók felelősségbiztosítása
A10: Éves bérleti díj (e Ft) | B10: 0 | D10: Bérlői felelősségbiztosítás | F10: Gépjármű eredetiségvizsgálatot végzők felelősségbiztosítása | G10: 5 millió Ft
A11: Éves bérbeadásból származó forgalom (e Ft) | B11: 0 | D11: Szolgáltatói felelősségbiztosítás | F11: Szolgáltatás tárgyában okozott károk biztosítása | G11: 5 millió Ft
D12: Bérbeadói felelősségbiztosítás
A13: Tárgyi eszközk értékelésének módja | D13: Környezetszennyezési felelősségbiztosítás
B15: Biztosítási összeg (e Ft) | C15: Díj | D15: Betöréses lopás és rablás biztosítás
A16: Épület, építmény | B16: 0
A17: Egyéb tárgyi eszközök | B17: 0 | E17: FALSE
A18: Saját készletek | B18: 0 | E18: FALSE
A19: Idegen készletek | B19: 0
A20: Készpénz | B20: 0 | E20: FALSE | F20: Díjkategória besorolás
A21: Összesen | B21: =IF(OR(B16>0,B17>0),SUM(B16:B20),0) -> 0 | C21: =IF('1.telephely'!B24+'2.telephely'!B21+'3.telephely'!B21+'4.telephely'!B21+'5.telephely'!B21>500000,"Hibás ajánlat!",B21*Tarifa!U9) -> 0 | F21: =Tarifa!U8 -> 3
E22: Vidéki díjengedmény
A23: Betöréses lopás és rablás biztosítás (e Ft) | C23: =IF(C21=0,0,((IF(E17=TRUE,B17,0))+(IF(E18=TRUE,SUM(B18:B19),0))+(IF(E20=TRUE,B20,0)))*Tarifa!U16*Tarifa!U14) -> 0 | E23: =IF(Tarifa!U13="Vidék","Igen","-") -> - | F23: =Tarifa!U15 -> 1
A25: Irodai és kereskedelmi elektronikus berendezések, eszközök biztosítása (e Ft) | B25: 0 | C25: =IF(B25>10000,0,(IF(C21=0,0,IF(E25=TRUE,B25*Tarifa!AB20,0)))) -> 0 | E25: FALSE
A27: Üzemszünet biztosítás (e Ft) | B27: =B7 -> 0 | C27: =IF(C21=0,0,IF(E27=TRUE,B27*Tarifa!V22,0)) -> 0 | E27: FALSE | F27: =Tarifa!V21 -> 2
A29: Szállítmány biztosítás (e Ft) | B29: 0 | C29: =IF(B29>2000,0,(IF(C21=0,0,IF(E29=TRUE,B29*Tarifa!AB21,0)))) -> 0 | E29: FALSE
A31: Vakolat károk biztosítása (e Ft) | B31: =B16 -> 0 | C31: =IF(C21=0,0,IF(E31=TRUE,B31*Tarifa!AE20,0)) -> 0 | E31: FALSE
A33: Tetőbeázási károk biztosítása (e Ft) | B33: =B16 -> 0 | C33: =IF(C21=0,0,IF(E33=TRUE,B33*Tarifa!AE21,0)) -> 0 | E33: FALSE
A35: Vandalizmus károk biztosítása (e Ft) | B35: 0 | C35: =IF(B35>(B21*0.1),0,(IF(C21=0,0,IF(E35=TRUE,B35*Tarifa!AH20,0)))) -> 0 | E35: FALSE
A37: Különleges üvegek üvegtörés biztosítása (e Ft) | B37: 0 | C37: =IF(C21=0,0,IF(E37=TRUE,B37*Tarifa!AH21,0)) -> 0 | E37: FALSE
A39: Általános és épülethasználói felelősségbiztosítás (fő) | B39: =B8 -> 0 | C39: =IF(C21=0,0,IF(E39=TRUE,B39*Tarifa!U29,0)) -> 0 | E39: FALSE | F39: =Tarifa!U27 -> 2
A40: Tanuló baleseti és felelősségbiztosítás (fő) | B40: 0 | C40: =IF(C21=0,0,IF(C39>0,IF(E40=TRUE,Tarifa!AE46,0),0)) -> 0 | E40: FALSE | F40: =Tarifa!AC39 -> 2 | G40: =Tarifa!AI39 -> 3
A41: Munkáltatói felelősségbiztosítás | B41: =B8 -> 0 | C41: =IF(C21=0,0,IF(C39>0,IF(E41=TRUE,B41*Tarifa!U40,0),0)) -> 0 | E41: FALSE | F41: =Tarifa!U38 -> 3
A42: Termékfelelősség biztosítás | B42: =B9 -> 0 | C42: =IF(C21=0,0,IF(C39>0,IF(E42=TRUE,((B42*Tarifa!U51)/1000),0),0)) -> 0 | E42: FALSE | F42: =Tarifa!U49 -> 1
A43: Bérlői felelősségbiztosítás | B43: =B10 -> 0 | C43: =IF(C21=0,0,IF(C39>0,IF(E43=TRUE,((B43*Tarifa!U63)/1000),0),0)) -> 0 | E43: FALSE | F43: =Tarifa!U61 -> 2
A44: Szolgáltatói felelősségbiztosítás | B44: =B9 -> 0 | C44: =IF(C21=0,0,IF(C39>0,IF(E44=TRUE,((B44*Tarifa!U75)/1000),0),0)) -> 0 | E44: FALSE | F44: =Tarifa!U73 -> 1
A45: Szálloda üzemeltetői, szállásadói felelősségbiztosítása | C45: =IF(E45=FALSE,0,C44) -> 0 | E45: FALSE
A46: Gépjárműjavítók felelősségbiztosítása | B46: =B9 -> 0 | C46: =IF(C44=0,0,IF(E46=FALSE,0,Tarifa!AC55)) -> 0 | E46: FALSE
A47: Gépjármű-eredetiségvizsgálatot végzők felelősségbiztosítása | C47: =IF(C44=0,0,IF(E47=FALSE,0,Tarifa!AB51)) -> 0 | E47: FALSE
A48: Szolgáltatás tárgyában okozott károk biztosítása | C48: =IF(E48=FALSE,0,C44) -> 0 | E48: FALSE
A49: Bérbeadói felelősségbiztosítás | B49: =B11 -> 0 | C49: =IF(C21=0,0,IF(C39>0,IF(E49=TRUE,((B49*Tarifa!U87)/1000),0),0)) -> 0 | E49: FALSE | F49: =Tarifa!U85 -> 2
A50: Környezetszennyezési felelősségbiztosítás | B50: =B9 -> 0 | C50: =IF(C21=0,0,IF(C39>0,IF(E50=TRUE,((B9*Tarifa!U99)/1000),0),0)) -> 0 | E50: FALSE | F50: =Tarifa!U97 -> 2
A52: Éves díj 3. telephelyre | C52: =IF(Tarifa!AO7>2000000,"Hibás ajánlat!",IFERROR(C21+C23+C25+C27+C29+C31+C33+C35+C37+C39+C40+C41+C42+C43+C44+C45+C46+C47+C48+C49+C50,"Hibás ajánlat!")) -> 0

Sheet 4.telephely
A1: Telephely megnevezése | D1: Telephely és kockázatviselés helye
A2: Tevékenység megnevezése | D2: Telephely irányítószám
A3: Kódja | D3: Település címe | H3: =VLOOKUP(Tarifa!O6,Tarifa!A3:L247,2) -> 011
A6: Alapadatok | D6: Felelősségbiztosítási limitek | F6: Felelősségbiztosítási záradék limitek
A7: Éves árbevétel (e Ft) | B7: 0 | D7: Általános és épülethasználói felelősségbiztosítás | F7: Tanuló baleseti és felelősségbiztosítás | G7: 5 millió Ft
A8: Alkalmazottak száma (fő) | B8: 0 | D8: Munkáltatói felelősségbiztosítás | F8: Szálloda üzemeltetői, szállásadói felelősségbiztosítás
A9: Éves forgalom (e Ft) | B9: 0 | D9: Termékfelelősség biztosítás | F9: Gépjárműjavítók felelősségbiztosítása
A10: Éves bérleti díj (e Ft) | B10: 0 | D10: Bérlői felelősségbiztosítás | F10: Gépjármű eredetiségvizsgálatot végzők felelősségbiztosítása | G10: 5 millió Ft
A11: Éves bérbeadásból származó forgalom (e Ft) | B11: 0 | D11: Szolgáltatói felelősségbiztosítás | F11: Szolgáltatás tárgyában okozott károk biztosítása | G11: 5 millió Ft
D12: Bérbeadói felelősségbiztosítás
A13: Tárgyi eszközk értékelésének módja | D13: Környezetszennyezési felelősségbiztosítás
B15: Biztosított vagyontárgyak biztosítási összege (e Ft) | C15: Díj | D15: Betöréses lopás és rablás biztosítás
A16: Épület, építmény | B16: 0
A17: Egyéb tárgyi eszközök | B17: 0 | E17: FALSE
A18: Saját készletek | B18: 0 | E18: FALSE
A19: Idegen készletek | B19: 0
A20: Készpénz | B20: 0 | E20: FALSE | F20: Díjkategória besorolás
A21: Összesen | B21: =IF(OR(B16>0,B17>0),SUM(B16:B20),0) -> 0 | C21: =IF('1.telephely'!B24+'2.telephely'!B21+'3.telephely'!B21+'4.telephely'!B21+'5.telephely'!B21>500000,"Hibás ajánlat!",B21*Tarifa!V9) -> 0 | F21: =Tarifa!V8 -> 3
E22: Vidéki díjengedmény
A23: Betöréses lopás és rablás biztosítás (e Ft) | C23: =IF(C21=0,0,((IF(E17=TRUE,B17,0))+(IF(E18=TRUE,SUM(B18:B19),0))+(IF(E20=TRUE,B20,0)))*Tarifa!V16*Tarifa!V14) -> 0 | E23: =IF(Tarifa!V13="Vidék","Igen","-") -> - | F23: =Tarifa!V15 -> 1
A25: Irodai és kereskedelmi elektronikus berendezések, eszközök biztosítása (e Ft) | B25: 0 | C25: =IF(B25>10000,0,(IF(C21=0,0,IF(E25=TRUE,B25*Tarifa!AB20,0)))) -> 0 | E25: FALSE
A27: Üzemszünet biztosítás (e Ft) | B27: =B7 -> 0 | C27: =IF(C21=0,0,IF(E27=TRUE,B27*Tarifa!W22,0)) -> 0 | E27: FALSE | F27: =Tarifa!W21 -> 2
A29: Szállítmány biztosítás (e Ft) | B29: 0 | C29: =IF(B29>2000,0,(IF(C21=0,0,IF(E29=TRUE,B29*Tarifa!AB21,0)))) -> 0 | E29: FALSE
A31: Vakolat károk biztosítása (e Ft) | B31: =B16 -> 0 | C31: =IF(C21=0,0,IF(E31=TRUE,B31*Tarifa!AE20,0)) -> 0 | E31: FALSE
A33: Tetőbeázási károk biztosítása (e Ft) | B33: =B16 -> 0 | C33: =IF(C21=0,0,IF(E33=TRUE,B33*Tarifa!AE21,0)) -> 0 | E33: FALSE
A35: Vandalizmus károk biztosítása (e Ft) | B35: 0 | C35: =IF(B35>(B21*0.1),0,(IF(C21=0,0,IF(E35=TRUE,B35*Tarifa!AH20,0)))) -> 0 | E35: FALSE
A37: Különleges üvegek üvegtörés biztosítása (e Ft) | B37: 0 | C37: =IF(C21=0,0,IF(E37=TRUE,B37*Tarifa!AH21,0)) -> 0 | E37: FALSE
A39: Általános és épülethasználói felelősségbiztosítás (fő) | B39: =B8 -> 0 | C39: =IF(C21=0,0,IF(E39=TRUE,B39*Tarifa!V29,0)) -> 0 | E39: FALSE | F39: =Tarifa!V27 -> 2
A40: Tanuló baleseti és felelősségbiztosítás (fő) | B40: 0 | C40: =IF(C21=0,0,IF(C39>0,IF(E40=TRUE,Tarifa!AE47,0),0)) -> 0 | E40: FALSE | F40: =Tarifa!AD39 -> 2 | G40: =Tarifa!AJ39 -> 3
A41: Munkáltatói felelősségbiztosítás | B41: =B8 -> 0 | C41: =IF(C21=0,0,IF(C39>0,IF(E41=TRUE,B41*Tarifa!V40,0),0)) -> 0 | E41: FALSE | F41: =Tarifa!V38 -> 3
A42: Termékfelelősség biztosítás | B42: =B9 -> 0 | C42: =IF(C21=0,0,IF(C39>0,IF(E42=TRUE,((B42*Tarifa!V51)/1000),0),0)) -> 0 | E42: FALSE | F42: =Tarifa!V49 -> 1
A43: Bérlői felelősségbiztosítás | B43: =B10 -> 0 | C43: =IF(C21=0,0,IF(C39>0,IF(E43=TRUE,((B43*Tarifa!V63)/1000),0),0)) -> 0 | E43: FALSE | F43: =Tarifa!V61 -> 2
A44: Szolgáltatói felelősségbiztosítás | B44: =B9 -> 0 | C44: =IF(C21=0,0,IF(C39>0,IF(E44=TRUE,((B44*Tarifa!V75)/1000),0),0)) -> 0 | E44: FALSE | F44: =Tarifa!V73 -> 1
A45: Szálloda üzemeltetői, szállásadói felelősségbiztosítása | C45: =IF(E45=FALSE,0,C44) -> 0 | E45: FALSE
A46: Gépjárműjavítók felelősségbiztosítása | B46: =B9 -> 0 | C46: =IF(C44=0,0,IF(E46=FALSE,0,Tarifa!AD55)) -> 0 | E46: FALSE
A47: Gépjármű-eredetiségvizsgálatot végzők felelősségbiztosítása | C47: =IF(C44=0,0,IF(E47=FALSE,0,Tarifa!AB51)) -> 0 | E47: FALSE
A48: Szolgáltatás tárgyában okozott károk biztosítása | C48: =IF(E48=FALSE,0,C44) -> 0 | E48: FALSE
A49: Bérbeadói felelősségbiztosítás | B49: =B11 -> 0 | C49: =IF(C21=0,0,IF(C39>0,IF(E49=TRUE,((B49*Tarifa!V87)/1000),0),0)) -> 0 | E49: FALSE | F49: =Tarifa!V85 -> 2
A50: Környezetszennyezési felelősségbiztosítás | B50: =B9 -> 0 | C50: =IF(C21=0,0,IF(C39>0,IF(E50=TRUE,((B9*Tarifa!V99)/1000),0),0)) -> 0 | E50: FALSE | F50: =Tarifa!V97 -> 2
A52: Éves díj 4. telephelyre | C52: =IF(Tarifa!AO7>2000000,"Hibás ajánlat!",IFERROR(C21+C23+C25+C27+C29+C31+C33+C35+C37+C39+C40+C41+C42+C43+C44+C45+C46+C47+C48+C49+C50,"Hibás ajánlat!")) -> 0

Sheet 5.telephely
A1: Telephely megnevezése | D1: Telephely és kockázatviselés helye
A2: Tevékenység megnevezése | D2: Telephely irányítószám
A3: Kódja | D3: Település címe | H3: =VLOOKUP(Tarifa!O7,Tarifa!A3:L247,2) -> 011
A6: Alapadatok | D6: Felelősségbiztosítási limitek | F6: Felelősségbiztosítási záradék limitek
A7: Éves árbevétel (e Ft) | B7: 0 | D7: Általános és épülethasználói felelősségbiztosítás | F7: Tanuló baleseti és felelősségbiztosítás | G7: 5 millió Ft
A8: Alkalmazottak száma (fő) | B8: 0 | D8: Munkáltatói felelősségbiztosítás | F8: Szálloda üzemeltetői, szállásadói felelősségbiztosítás
A9: Éves forgalom (e Ft) | B9: 0 | D9: Termékfelelősség biztosítás | F9: Gépjárműjavítók felelősségbiztosítása
A10: Éves bérleti díj (e Ft) | B10: 0 | D10: Bérlői felelősségbiztosítás | F10: Gépjármű eredetiségvizsgálatot végzők felelősségbiztosítása | G10: 5 millió Ft
A11: Éves bérbeadásból származó forgalom (e Ft) | B11: 0 | D11: Szolgáltatói felelősségbiztosítás | F11: Szolgáltatás tárgyában okozott károk biztosítása | G11: 5 millió Ft
D12: Bérbeadói felelősségbiztosítás
A13: Tárgyi eszközk értékelésének módja | D13: Környezetszennyezési felelősségbiztosítás
B15: Biztosított vagyontárgyak biztosítási összege (e Ft) | C15: Díj | D15: Betöréses lopás és rablás biztosítás
A16: Épület, építmény | B16: 0
A17: Egyéb tárgyi eszközök | B17: 0 | E17: FALSE
A18: Saját készletek | B18: 0 | E18: FALSE
A19: Idegen készletek | B19: 0
A20: Készpénz | B20: 0 | E20: FALSE | F20: Díjkategória besorolás
A21: Összesen | B21: =IF(OR(B16>0,B17>0),SUM(B16:B20),0) -> 0 | C21: =IF('1.telephely'!B24+'2.telephely'!B21+'3.telephely'!B21+'4.telephely'!B21+'5.telephely'!B21>500000,"Hibás ajánlat!",B21*Tarifa!W9) -> 0 | F21: =Tarifa!W8 -> 3
E22: Vidéki díjengedmény
A23: Betöréses lopás és rablás biztosítás (e Ft) | C23: =IF(C21=0,0,((IF(E17=TRUE,B17,0))+(IF(E18=TRUE,SUM(B18:B19),0))+(IF(E20=TRUE,B20,0)))*Tarifa!W16*Tarifa!W14) -> 0 | E23: =IF(Tarifa!W13="Vidék","Igen","-") -> - | F23: =Tarifa!W15 -> 1
A25: Irodai és kereskedelmi elektronikus berendezések, eszközök biztosítása (e Ft) | B25: 0 | C25: =IF(B25>10000,0,(IF(C21=0,0,IF(E25=TRUE,B25*Tarifa!AB20,0)))) -> 0 | E25: FALSE
A27: Üzemszünet biztosítás (e Ft) | B27: =B7 -> 0 | C27: =IF(C21=0,0,IF(E27=TRUE,B27*Tarifa!X22,0)) -> 0 | E27: FALSE | F27: =Tarifa!X21 -> 2
A29: Szállítmány biztosítás (e Ft) | B29: 0 | C29: =IF(B29>2000,0,(IF(C21=0,0,IF(E29=TRUE,B29*Tarifa!AB21,0)))) -> 0 | E29: FALSE
A31: Vakolat károk biztosítása (e Ft) | B31: =B16 -> 0 | C31: =IF(C21=0,0,IF(E31=TRUE,B31*Tarifa!AE20,0)) -> 0 | E31: FALSE
A33: Tetőbeázási károk biztosítása (e Ft) | B33: =B16 -> 0 | C33: =IF(C21=0,0,IF(E33=TRUE,B33*Tarifa!AE21,0)) -> 0 | E33: FALSE
A35: Vandalizmus károk biztosítása (e Ft) | B35: 0 | C35: =IF(B35>(B21*0.1),0,(IF(C21=0,0,IF(E35=TRUE,B35*Tarifa!AH20,0)))) -> 0 | E35: FALSE
A37: Különleges üvegek üvegtörés biztosítása (e Ft) | B37: 0 | C37: =IF(C21=0,0,IF(E37=TRUE,B37*Tarifa!AH21,0)) -> 0 | E37: FALSE
A39: Általános és épülethasználói felelősségbiztosítás (fő) | B39: =B8 -> 0 | C39: =IF(C21=0,0,IF(E39=TRUE,B39*Tarifa!W29,0)) -> 0 | E39: FALSE | F39: =Tarifa!W27 -> 2
A40: Tanuló baleseti és felelősségbiztosítás (fő) | B40: 0 | C40: =IF(C21=0,0,IF(C39>0,IF(E40=TRUE,Tarifa!AE48,0),0)) -> 0 | E40: FALSE | F40: =Tarifa!AE39 -> 2 | G40: =Tarifa!AK39 -> 3
A41: Munkáltatói felelősségbiztosítás | B41: =B8 -> 0 | C41: =IF(C21=0,0,IF(C39>0,IF(E41=TRUE,B41*Tarifa!W40,0),0)) -> 0 | E41: FALSE | F41: =Tarifa!W38 -> 3
A42: Termékfelelősség biztosítás | B42: =B9 -> 0 | C42: =IF(C21=0,0,IF(C39>0,IF(E42=TRUE,((B42*Tarifa!W51)/1000),0),0)) -> 0 | E42: FALSE | F42: =Tarifa!W49 -> 1
A43: Bérlői felelősségbiztosítás | B43: =B10 -> 0 | C43: =IF(C21=0,0,IF(C39>0,IF(E43=TRUE,((B43*Tarifa!V63)/1000),0),0)) -> 0 | E43: FALSE | F43: =Tarifa!W61 -> 2
A44: Szolgáltatói felelősségbiztosítás | B44: =B9 -> 0 | C44: =IF(C21=0,0,IF(C39>0,IF(E44=TRUE,((B44*Tarifa!W75)/1000),0),0)) -> 0 | E44: FALSE | F44: =Tarifa!W73 -> 1
A45: Szálloda üzemeltetői, szállásadói felelősségbiztosítása | C45: =IF(E45=FALSE,0,C44) -> 0 | E45: FALSE
A46: Gépjárműjavítók felelősségbiztosítása | B46: =B9 -> 0 | C46: =IF(C44=0,0,IF(E46=FALSE,0,Tarifa!AE55)) -> 0 | E46: FALSE
A47: Gépjármű-eredetiségvizsgálatot végzők felelősségbiztosítása | C47: =IF(C44=0,0,IF(E47=FALSE,0,Tarifa!AB51)) -> 0 | E47: FALSE
A48: Szolgáltatás tárgyában okozott károk biztosítása | C48: =IF(E48=FALSE,0,C44) -> 0 | E48: FALSE
A49: Bérbeadói felelősségbiztosítás | B49: =B11 -> 0 | C49: =IF(C21=0,0,IF(C39>0,IF(E49=TRUE,((B49*Tarifa!W87)/1000),0),0)) -> 0 | E49: FALSE | F49: =Tarifa!W85 -> 2
A50: Környezetszennyezési felelősségbiztosítás | B50: =B9 -> 0 | C50: =IF(C21=0,0,IF(C39>0,IF(E50=TRUE,((B9*Tarifa!W99)/1000),0),0)) -> 0 | E50: FALSE | F50: =Tarifa!W97 -> 2
A52: Éves díj 5. telephelyre | C52: =IF(Tarifa!AO7>2000000,"Hibás ajánlat!",IFERROR(C21+C23+C25+C27+C29+C31+C33+C35+C37+C39+C40+C41+C42+C43+C44+C45+C46+C47+C48+C49+C50,"Hibás ajánlat!")) -> 0

Sheet Adatfelvétel
B2: Adatfelvétel
B4: Biztosításközvetítő azonosítója
B5: Biztosításközvetítő nyilvántartási száma
B6: Biztosításközvetítő neve
B7: Biztosításközvetítő képviselője (cég esetén)
B8: Biztosításközvetítő telefonszáma
B9: Jogi forma
B10: Állandó lakóhely/székhely
B11: Ajánlat felvételének helye
B12: Dátuma | Q12: =TODAY() -> 2021-04-21 | W12: =IF(Q12>Tarifa!AN3,"Lejárt kalkulátor, kérem töltse le a legfrissebb verziót!"," ") -> 
B14: Szerződő azonosításához szükséges adatok
B16: Név ( szervezet megnevezése )
B17: Születéskori név ( leánykori név )
B18: Születés dátuma ( éééé.hh.nn)
B19: Születés helye
B20: Anya neve
B21: Szervezet adószáma
B23: Lakóhely / szervezet székhelyének címe
C24: Irányítószám
C25: Helység
C26: Út/utca/tér/stb
B28: Kapcsolat tartásához szükséges adatok
B30: Levelezési cím ( ha eltér a lakhely/székhely címétől )
C31: Irányítószám
C32: Helység
C33: Út/utca/tér/stb
B34: Kapcsolattartó neve
B35: Telefonszám
B36: Mobil szám
B37: E-mail
B38: Fax
B40: Ügyfélkapcsolattartó kijelöléséhez szükséges adatok
B42: Éves árbevétel 200 millió Ft felett | AH42: FALSE
B43: Állandó alkalmazottak száma 10 fő felett | AH43: FALSE
B45: Csak mezőgazdasági ügyfelek esetén
B47: Szántó/erdő terület 50 ha felett | AH47: FALSE
B48: Kertészeti kultúra 5 ha felett | AH48: FALSE
B49: Számosállatainak száma 30 felett | AH49: FALSE
B51: Kockázati besoroláshoz szükséges adatok a 2014. évi LXXXVIII. törvény alapján
B53: Mérleg főösszege 6,2 millió euró feletti? | AH53: FALSE
B54: Árbevétel (nettó) 12,8 millió euró feletti? | AH54: FALSE
B55: Átlagos alkalmazotti létszám eléri vagy meghaladja a 250 főt? | AH55: FALSE
B57: Kockázatviselés kezdete | L57: =IF(Q60<TODAY()+1,"A kockázatviselés kezdete nem lehet a holnapi nap 0:00-nál korábbi!"," ") -> A kockázatviselés kezdete nem lehet a holnapi nap 0:00-nál korábbi!
B60: Kockázatviselés kezdete ( éééé.hh.nn )
B63: Zálogjogosult adatai
B65: Neve
B66: Adószáma
B67: Címe
C68: Irányítószám
C69: Helység
C70: Út/utca/tér/stb
B71: Hitel összege
B72: Hitel lejárata
B73: Hitelszám
B74: Kárkifizetési korlátozás

Sheet Díjkalkuláció nyomtatása
B2: Díjkalkuláció a K&H vállalkozói biztosításhoz
B4: vállalkozói biztosítás kalkulációs adatai
B6: tevékenység megnevezése | F6: =Tarifa!Q3 -> Nem évelő növény termesztése
B7: tevékenység kódja | F7: ='1.telephely'!H6 -> 011
B8: telephely irányítószáma | F8: ='1.telephely'!F5 -> 0
B10: telephely éves árbevétele (e Ft) | F10: ='1.telephely'!B10 -> 0
B11: éves forgalom (e Ft) | F11: ='1.telephely'!B12 -> 0
B12: alkalmazottak száma (fő) | F12: ='1.telephely'!B11 -> 0
B13: éves bérleti díj (e Ft) | F13: ='1.telephely'!B13 -> 0
B14: bérbeadásból származó forgalom (e Ft) | F14: ='1.telephely'!B14 -> 0
B16: alapbiztosítás keretében biztosított vagyontárgyak
B17: épület, építmény (e Ft) | E17: ='1.telephely'!B19 -> 0
B18: egyéb tárgyi eszközök (e Ft) | E18: ='1.telephely'!B20 -> 0
B19: készletek (e Ft) | E19: ='1.telephely'!B21+'1.telephely'!B22 -> 0
B20: készpénz (e Ft) | E20: ='1.telephely'!B23 -> 0 | G20: biztosítási összeg vagy kártérítési limit | I20: biztosítási díj
B21: alapbiztosítás
B22: tűz és elemi károk | G22: =IF('1.telephely'!C24>0,'1.telephely'!B24,"Nem biztosított") -> Nem biztosított | I22: ='1.telephely'!C24 -> 0
B24: kiegészítő biztosítások
B25: betöréses lopás és rablás biztosítás | G25: =IF('1.telephely'!C26=0,"Nem biztosított",((IF('1.telephely'!E20=TRUE,'1.telephely'!B20,0))+(IF('1.telephely'!E21=TRUE,SUM('1.telephely'!B21:'1.telephely'!B22),0))+(IF('1.telephely'!E23=TRUE,'1.telephely'!B23,0)))) -> Nem biztosított | I25: ='1.telephely'!C26 -> 0
B26: irodai és kereskedelmi elektronikus berendezések, eszközök | G26: =IF('1.telephely'!C28>0,'1.telephely'!B28,"Nem biztosított") -> Nem biztosított | I26: ='1.telephely'!C28 -> 0
B27: üzemszünet biztosítás | G27: =IF('1.telephely'!C30>0,"Szerződési feltételek szerint","Nem biztosított") -> Nem biztosított | I27: ='1.telephely'!C30 -> 0
B28: szállítmány biztosítás | G28: =IF('1.telephely'!C32>0,'1.telephely'!B32,"Nem biztosított") -> Nem biztosított | I28: ='1.telephely'!C32 -> 0
B29: vakolat károk biztosítása | G29: =IF('1.telephely'!C34>0,"Szerződési feltételek szerint","Nem biztosított") -> Nem biztosított | I29: ='1.telephely'!C34 -> 0
B30: tetőbeázási károk biztosítása | G30: =IF('1.telephely'!C36>0,"Szerződési feltételek szerint","Nem biztosított") -> Nem biztosított | I30: ='1.telephely'!C36 -> 0
B31: vandalizmus károk biztosítása | G31: =IF('1.telephely'!C38>0,'1.telephely'!B38,"Nem biztosított") -> Nem biztosított | I31: ='1.telephely'!C38 -> 0
B32: különleges üvegek üvegtörés biztosítása | G32: =IF('1.telephely'!C40>0,'1.telephely'!B40,"Nem biztosított") -> Nem biztosított | I32: ='1.telephely'!C40 -> 0
B33: általános és épülethasználói felelősségbiztosítás | G33: =IF('1.telephely'!C42>0,Tarifa!S26,"Nem biztosított") -> Nem biztosított | I33: ='1.telephely'!C42 -> 0
B34: tanuló baleseti és felelősségbiztosítás | G34: =IF('1.telephely'!C43>0,"5 millió Ft","Nem biztosított") -> Nem biztosított | I34: ='1.telephely'!C43 -> 0
B35: munkáltatói felelősségbiztosítás | G35: =IF('1.telephely'!C44>0,Tarifa!S37,"Nem biztosított") -> Nem biztosított | I35: ='1.telephely'!C44 -> 0
B36: termékfelelősség biztosítás | G36: =IF('1.telephely'!C45>0,Tarifa!S48,"Nem biztosított") -> Nem biztosított | I36: ='1.telephely'!C45 -> 0
B37: bérlői felelősségbiztosítás | G37: =IF('1.telephely'!C46>0,Tarifa!S60,"Nem biztosított") -> Nem biztosított | I37: ='1.telephely'!C46 -> 0
B38: szolgáltatói felelősségbiztosítás | G38: =IF('1.telephely'!C47>0,Tarifa!S72,"Nem biztosított") -> Nem biztosított | I38: ='1.telephely'!C47 -> 0
B39: szálloda üzemeltetői, szállásadói felelősségbiztosítása | G39: =IF('1.telephely'!C48>0,Tarifa!AA62,"Nem biztosított") -> Nem biztosított | I39: ='1.telephely'!C48 -> 0
B40: gépjárműjavítók felelősségbiztosítása | G40: =IF('1.telephely'!C49>0,Tarifa!AA53,"Nem biztosított") -> Nem biztosított | I40: ='1.telephely'!C49 -> 0
B41: gépjármű-eredetiségvizsgálatot végzők felelősségbiztosítása | G41: =IF('1.telephely'!C50>0,"5 millió Ft","Nem biztosított") -> Nem biztosított | I41: ='1.telephely'!C50 -> 0
B42: szolgáltatás tárgyában okozott károk biztosítása | G42: =IF('1.telephely'!C51>0,"5 millió Ft","Nem biztosított") -> Nem biztosított | I42: ='1.telephely'!C51 -> 0
B43: bérbeadói felelősségbiztosítás | G43: =IF('1.telephely'!C52>0,Tarifa!S84,"Nem biztosított") -> Nem biztosított | I43: ='1.telephely'!C52 -> 0
B44: környezetszennyezési felelősségbiztosítás | G44: =IF('1.telephely'!C53>0,Tarifa!S96,"Nem biztosított") -> Nem biztosított | I44: ='1.telephely'!C53 -> 0
B46: éves díj 1. telephelyre: | I46: ='1.telephely'!C55 -> 0
B48: kedvezmények | F48: általános adatok
B49: volumen engedmény | E49: ='1.telephely'!B57 -> Nincs | F49: díjfizetés gyakorisága | H49: =Tarifa!AC8 -> negyedéves
B50: csomag engedmény | E50: ='1.telephely'!B58 -> Nincs | F50: díjfizetés módja | H50: =Tarifa!AE8 -> postai utalás
B51: lojalitás engedmény | E51: =Tarifa!AD15 -> Nincs
B52: díjfizetés engedmény | E52: =Tarifa!AA8 -> 0.02
B53: díjeltérítési szorzó engedmény | E53: =Tarifa!AC11 -> 0
B55: Fizetendő éves biztosítási díj | F55: ='1.telephely'!B67 -> 12000
D58: =TODAY() -> 2021-04-21
B60: Jelen kalkuláció nem minosül hivatalos ajánlattételnek, az kizárólag tájékoztató jellegű!
B64: Díjkalkuláció a K&H vállalkozói biztosításhoz (2. telephely)
B66: vállalkozói biztosítás kalkulációs adatai
B68: tevékenység megnevezése | F68: =Tarifa!$Q$4 -> Nem évelő növény termesztése
B69: tevékenység kódja | F69: ='2.telephely'!$H$3 -> 011
B70: telephely irányítószáma | F70: ='2.telephely'!$F$2 -> 0
B72: telephely éves árbevétele (e Ft) | F72: ='2.telephely'!$B$7 -> 0
B73: éves forgalom (e Ft) | F73: ='2.telephely'!$B$9 -> 0
B74: alkalmazottak száma (fő) | F74: ='2.telephely'!$B$8 -> 0
B75: éves bérleti díj (e Ft) | F75: ='2.telephely'!$B$10 -> 0
B76: bérbeadásból származó forgalom (e Ft) | F76: ='2.telephely'!$B$11 -> 0
B78: alapbiztosítás keretében biztosított vagyontárgyak
B79: épület, építmény (e Ft) | E79: ='2.telephely'!$B$16 -> 0
B80: egyéb tárgyi eszközök (e Ft) | E80: ='2.telephely'!$B$17 -> 0
B81: készletek (e Ft) | E81: ='2.telephely'!$B$18 -> 0
B82: készpénz (e Ft) | E82: ='2.telephely'!$B$19 -> 0 | G82: biztosítási összeg vagy kártérítési limit | I82: biztosítási díj
B83: alapbiztosítás
B84: tűz és elemi károk | G84: =IF('2.telephely'!$C$21>0,'2.telephely'!$B$21,"Nem biztosított") -> Nem biztosított | I84: ='2.telephely'!$C$21 -> 0
B86: kiegészítő biztosítások
B87: betöréses lopás és rablás biztosítás | G87: =IF('2.telephely'!C23=0,"Nem biztosított",((IF('2.telephely'!$E$17=TRUE,'2.telephely'!$B$17,0))+(IF('2.telephely'!$E$18=TRUE,SUM('2.telephely'!$B$18:'2.telephely'!$B$19),0))+(IF('2.telephely'!$E$20=TRUE,'2.telephely'!$B$20,0)))) -> Nem biztosított | I87: ='2.telephely'!$C$23 -> 0
B88: irodai és kereskedelmi elektronikus berendezések, eszközök | G88: =IF('2.telephely'!$C$25>0,'2.telephely'!$C$23,"Nem biztosított") -> Nem biztosított | I88: ='2.telephely'!$C$25 -> 0
B89: üzemszünet biztosítás | G89: =IF('2.telephely'!$C$27>0,"Szerződési feltételek szerint","Nem biztosított") -> Nem biztosított | I89: ='2.telephely'!$C$27 -> 0
B90: szállítmány biztosítás | G90: =IF('2.telephely'!$C$29>0,'2.telephely'!$B$29,"Nem biztosított") -> Nem biztosított | I90: ='2.telephely'!$C$29 -> 0
B91: vakolat károk biztosítása | G91: =IF('2.telephely'!$C$31>0,"Szerződési feltételek szerint","Nem biztosított") -> Nem biztosított | I91: ='2.telephely'!$C$31 -> 0
B92: tetőbeázási károk biztosítása | G92: =IF('2.telephely'!$C$33>0,"Szerződési feltételek szerint","Nem biztosított") -> Nem biztosított | I92: ='2.telephely'!$C$33 -> 0
B93: vandalizmus károk biztosítása | G93: =IF('2.telephely'!$C$35>0,'2.telephely'!$B$35,"Nem biztosított") -> Nem biztosított | I93: ='2.telephely'!$C$35 -> 0
B94: különleges üvegek üvegtörés biztosítása | G94: =IF('2.telephely'!$C$37>0,'2.telephely'!B37,"Nem biztosított") -> Nem biztosított | I94: ='2.telephely'!$C$37 -> 0
B95: általános és épülethasználói felelősségbiztosítás | G95: =IF('2.telephely'!$C$39>0,Tarifa!J89,"Nem biztosított") -> Nem biztosított | I95: ='2.telephely'!$C$39 -> 0
B96: tanuló baleseti és felelősségbiztosítás | G96: =IF('2.telephely'!$C$40>0,"5 millió Ft","Nem biztosított") -> Nem biztosított | I96: ='2.telephely'!$C$40 -> 0
B97: munkáltatói felelősségbiztosítás | G97: =IF('2.telephely'!$C$41>0,Tarifa!$T$37,"Nem biztosított") -> Nem biztosított | I97: ='2.telephely'!$C$41 -> 0
B98: termékfelelősség biztosítás | G98: =IF('2.telephely'!$C$42>0,Tarifa!$T$48,"Nem biztosított") -> Nem biztosított | I98: ='2.telephely'!$C$42 -> 0
B99: bérlői felelősségbiztosítás | G99: =IF('2.telephely'!$C$43>0,Tarifa!$T$60,"Nem biztosított") -> Nem biztosított | I99: ='2.telephely'!$C$43 -> 0
B100: szolgáltatói felelősségbiztosítás | G100: =IF('2.telephely'!$C$44>0,Tarifa!$T$72,"Nem biztosított") -> Nem biztosított | I100: ='2.telephely'!$C$44 -> 0
B101: szálloda üzemeltetői, szállásadói felelősségbiztosítása | G101: =IF('2.telephely'!$C$45>0,Tarifa!$AB$62,"Nem biztosított") -> Nem biztosított | I101: ='2.telephely'!$C$45 -> 0
B102: gépjárműjavítók felelősségbiztosítása | G102: =IF('2.telephely'!$C$46>0,Tarifa!$AB$53,"Nem biztosított") -> Nem biztosított | I102: ='2.telephely'!$C$46 -> 0
B103: gépjármű-eredetiségvizsgálatot végzők felelősségbiztosítása | G103: =IF('2.telephely'!$C$47>0,"5 millió Ft","Nem biztosított") -> Nem biztosított | I103: ='2.telephely'!$C$47 -> 0
B104: szolgáltatás tárgyában okozott károk biztosítása | G104: =IF('2.telephely'!$C$48>0,"5 millió Ft","Nem biztosított") -> Nem biztosított | I104: ='2.telephely'!$C$48 -> 0
B105: bérbeadói felelősségbiztosítás | G105: =IF('2.telephely'!$C$49>0,Tarifa!$T$84,"Nem biztosított") -> Nem biztosított | I105: ='2.telephely'!$C$49 -> 0
B106: környezetszennyezési felelősségbiztosítás | G106: =IF('2.telephely'!$C$50>0,Tarifa!$T$96,"Nem biztosított") -> Nem biztosított | I106: ='2.telephely'!$C$50 -> 0
B108: éves díj 2. telephelyre: | I108: ='2.telephely'!$C$52 -> 0
B125: Díjkalkuláció a K&H vállalkozói biztosításhoz (3. telephely)
B127: vállalkozói biztosítás kalkulációs adatai
B129: tevékenység megnevezése | F129: =Tarifa!Q5 -> Nem évelő növény termesztése
B130: tevékenység kódja | F130: ='3.telephely'!$H$3 -> 011
B131: telephely irányítószáma | F131: ='3.telephely'!$F$2 -> 0
B133: telephely éves árbevétele (e Ft) | F133: ='3.telephely'!$B$7 -> 0
B134: éves forgalom (e Ft) | F134: ='3.telephely'!$B$9 -> 0
B135: alkalmazottak száma (fő) | F135: ='3.telephely'!$B$8 -> 0
B136: éves bérleti díj (e Ft) | F136: ='3.telephely'!$B$10 -> 0
B137: bérbeadásból származó forgalom (e Ft) | F137: ='3.telephely'!$B$11 -> 0
B139: alapbiztosítás keretében biztosított vagyontárgyak
B140: épület, építmény (e Ft) | E140: ='3.telephely'!$B$16 -> 0
B141: egyéb tárgyi eszközök (e Ft) | E141: ='3.telephely'!$B$17 -> 0
B142: készletek (e Ft) | E142: ='3.telephely'!$B$18 -> 0
B143: készpénz (e Ft) | E143: ='3.telephely'!$B$19 -> 0 | G143: biztosítási összeg vagy kártérítési limit | I143: biztosítási díj
B144: alapbiztosítás
B145: tűz és elemi károk | G145: =IF('3.telephely'!C21>0,'3.telephely'!$B$21,"Nem biztosított") -> Nem biztosított | I145: ='3.telephely'!$C$21 -> 0
B147: kiegészítő biztosítások
B148: betöréses lopás és rablás biztosítás | G148: =IF('3.telephely'!C23=0,"Nem biztosított",((IF('3.telephely'!$E$17=TRUE,'3.telephely'!$B$17,0))+(IF('3.telephely'!$E$18=TRUE,SUM('3.telephely'!$B$18:'3.telephely'!$B$19),0))+(IF('3.telephely'!$E$20=TRUE,'3.telephely'!$B$20,0)))) -> Nem biztosított | I148: ='3.telephely'!$C$23 -> 0
B149: irodai és kereskedelmi elektronikus berendezések, eszközök | G149: =IF('3.telephely'!C25>0,'3.telephely'!$B$25,"Nem biztosított") -> Nem biztosított | I149: ='3.telephely'!$C$25 -> 0
B150: üzemszünet biztosítás | G150: =IF('3.telephely'!$C$27>0,"Szerződési feltételek szerint","Nem biztosított") -> Nem biztosított | I150: ='3.telephely'!$C$27 -> 0
B151: szállítmány biztosítás | G151: =IF('3.telephely'!C29>0,'3.telephely'!$B$29,"Nem biztosított") -> Nem biztosított | I151: ='3.telephely'!$C$29 -> 0
B152: vakolat károk biztosítása | G152: =IF('3.telephely'!$C$31>0,"Szerződési feltételek szerint","Nem biztosított") -> Nem biztosított | I152: ='3.telephely'!$C$31 -> 0
B153: tetőbeázási károk biztosítása | G153: =IF('3.telephely'!$C$33>0,"Szerződési feltételek szerint","Nem biztosított") -> Nem biztosított | I153: ='3.telephely'!$C$33 -> 0
B154: vandalizmus károk biztosítása | G154: =IF('3.telephely'!C35>0,'3.telephely'!$B$35,"Nem biztosított") -> Nem biztosított | I154: ='3.telephely'!$C$35 -> 0
B155: különleges üvegek üvegtörés biztosítása | G155: =IF('3.telephely'!C37>0,'3.telephely'!$B$37,"Nem biztosított") -> Nem biztosított | I155: ='3.telephely'!$C$37 -> 0
B156: általános és épülethasználói felelősségbiztosítás | G156: =IF('3.telephely'!$C$39>0,Tarifa!U26,"Nem biztosított") -> Nem biztosított | I156: ='3.telephely'!$C$39 -> 0
B157: tanuló baleseti és felelősségbiztosítás | G157: =IF('3.telephely'!$C$40>0,"5 millió Ft","Nem biztosított") -> Nem biztosított | I157: ='3.telephely'!$C$40 -> 0
B158: munkáltatói felelősségbiztosítás | G158: =IF('3.telephely'!$C$41>0,Tarifa!U37,"Nem biztosított") -> Nem biztosított | I158: ='3.telephely'!$C$41 -> 0
B159: termékfelelősség biztosítás | G159: =IF('3.telephely'!$C$42>0,Tarifa!U48,"Nem biztosított") -> Nem biztosított | I159: ='3.telephely'!$C$42 -> 0
B160: bérlői felelősségbiztosítás | G160: =IF('3.telephely'!$C$43>0,Tarifa!U60,"Nem biztosított") -> Nem biztosított | I160: ='3.telephely'!$C$43 -> 0
B161: szolgáltatói felelősségbiztosítás | G161: =IF('3.telephely'!$C$44>0,Tarifa!U72,"Nem biztosított") -> Nem biztosított | I161: ='3.telephely'!$C$44 -> 0
B162: szálloda üzemeltetői, szállásadói felelősségbiztosítása | G162: =IF('3.telephely'!$C$45>0,Tarifa!AC62,"Nem biztosított") -> Nem biztosított | I162: ='3.telephely'!$C$45 -> 0
B163: gépjárműjavítók felelősségbiztosítása | G163: =IF('3.telephely'!$C$46>0,Tarifa!AC53,"Nem biztosított") -> Nem biztosított | I163: ='3.telephely'!$C$46 -> 0
B164: gépjármű-eredetiségvizsgálatot végzők felelősségbiztosítása | G164: =IF('3.telephely'!$C$47>0,"5 millió Ft","Nem biztosított") -> Nem biztosított | I164: ='3.telephely'!$C$47 -> 0
B165: szolgáltatás tárgyában okozott károk biztosítása | G165: =IF('3.telephely'!$C$48>0,"5 millió Ft","Nem biztosított") -> Nem biztosított | I165: ='3.telephely'!$C$48 -> 0
B166: bérbeadói felelősségbiztosítás | G166: =IF('3.telephely'!$C$49>0,Tarifa!U84,"Nem biztosított") -> Nem biztosított | I166: ='3.telephely'!$C$49 -> 0
B167: környezetszennyezési felelősségbiztosítás | G167: =IF('3.telephely'!$C$50>0,Tarifa!U96,"Nem biztosított") -> Nem biztosított | I167: ='3.telephely'!$C$50 -> 0
B169: éves díj 3. telephelyre: | I169: ='3.telephely'!$C$52 -> 0
B189: Díjkalkuláció a K&H vállalkozói biztosításhoz (4.telephely)
B191: vállalkozói biztosítás kalkulációs adatai
B193: tevékenység megnevezése | F193: =Tarifa!Q6 -> Nem évelő növény termesztése
B194: tevékenység kódja | F194: ='4.telephely'!$H$3 -> 011
B195: telephely irányítószáma | F195: ='4.telephely'!$F$2 -> 0
B197: telephely éves árbevétele (e Ft) | F197: ='4.telephely'!$B$7 -> 0
B198: éves forgalom (e Ft) | F198: ='4.telephely'!$B$9 -> 0
B199: alkalmazottak száma (fő) | F199: ='4.telephely'!$B$8 -> 0
B200: éves bérleti díj (e Ft) | F200: ='4.telephely'!$B$10 -> 0
B201: bérbeadásból származó forgalom (e Ft) | F201: ='4.telephely'!$B$11 -> 0
B203: alapbiztosítás keretében biztosított vagyontárgyak
B204: épület, építmény (e Ft) | E204: ='4.telephely'!$B$16 -> 0
B205: egyéb tárgyi eszközök (e Ft) | E205: ='4.telephely'!$B$17 -> 0
B206: készletek (e Ft) | E206: ='4.telephely'!$B$18 -> 0
B207: készpénz (e Ft) | E207: ='4.telephely'!$B$19 -> 0 | G207: biztosítási összeg vagy kártérítési limit | I207: biztosítási díj
B208: alapbiztosítás
B209: tűz és elemi károk | G209: =IF('4.telephely'!C21>0,'4.telephely'!$B$21,"Nem biztosított") -> Nem biztosított | I209: ='4.telephely'!$C$21 -> 0
B211: kiegészítő biztosítások
B212: betöréses lopás és rablás biztosítás | G212: =IF('4.telephely'!C23=0,"Nem biztosított",((IF('4.telephely'!$E$17=TRUE,'4.telephely'!$B$17,0))+(IF('4.telephely'!$E$18=TRUE,SUM('4.telephely'!$B$18:'4.telephely'!$B$19),0))+(IF('4.telephely'!$E$20=TRUE,'4.telephely'!$B$20,0)))) -> Nem biztosított | I212: ='4.telephely'!$C$23 -> 0
B213: irodai és kereskedelmi elektronikus berendezések, eszközök | G213: =IF('4.telephely'!C25>0,'4.telephely'!$B$25,"Nem biztosított") -> Nem biztosított | I213: ='4.telephely'!$C$25 -> 0
B214: üzemszünet biztosítás | G214: =IF('4.telephely'!$C$27>0,"Szerződési feltételek szerint","Nem biztosított") -> Nem biztosított | I214: ='4.telephely'!$C$27 -> 0
B215: szállítmány biztosítás | G215: =IF('4.telephely'!C29>0,'4.telephely'!$B$29,"Nem biztosított") -> Nem biztosított | I215: ='4.telephely'!$C$29 -> 0
B216: vakolat károk biztosítása | G216: =IF('4.telephely'!$C$31>0,"Szerződési feltételek szerint","Nem biztosított") -> Nem biztosított | I216: ='4.telephely'!$C$31 -> 0
B217: tetőbeázási károk biztosítása | G217: =IF('4.telephely'!$C$33>0,"Szerződési feltételek szerint","Nem biztosított") -> Nem biztosított | I217: ='4.telephely'!$C$33 -> 0
B218: vandalizmus károk biztosítása | G218: =IF('4.telephely'!C35>0,'4.telephely'!$B$35,"Nem biztosított") -> Nem biztosított | I218: ='4.telephely'!$C$35 -> 0
B219: különleges üvegek üvegtörés biztosítása | G219: =IF('4.telephely'!C37>0,'4.telephely'!$B$37,"Nem biztosított") -> Nem biztosított | I219: ='4.telephely'!$C$37 -> 0
B220: általános és épülethasználói felelősségbiztosítás | G220: =IF('4.telephely'!$C$39>0,Tarifa!V26,"Nem biztosított") -> Nem biztosított | I220: ='4.telephely'!$C$39 -> 0
B221: tanuló baleseti és felelősségbiztosítás | G221: =IF('4.telephely'!$C$40>0,"5 millió Ft","Nem biztosított") -> Nem biztosított | I221: ='4.telephely'!$C$40 -> 0
B222: munkáltatói felelősségbiztosítás | G222: =IF('4.telephely'!$C$41>0,Tarifa!V37,"Nem biztosított") -> Nem biztosított | I222: ='4.telephely'!$C$41 -> 0
B223: termékfelelősség biztosítás | G223: =IF('4.telephely'!$C$42>0,Tarifa!V48,"Nem biztosított") -> Nem biztosított | I223: ='4.telephely'!$C$42 -> 0
B224: bérlői felelősségbiztosítás | G224: =IF('4.telephely'!$C$43>0,Tarifa!V60,"Nem biztosított") -> Nem biztosított | I224: ='4.telephely'!$C$43 -> 0
B225: szolgáltatói felelősségbiztosítás | G225: =IF('4.telephely'!$C$44>0,Tarifa!V72,"Nem biztosított") -> Nem biztosított | I225: ='4.telephely'!$C$44 -> 0
B226: szálloda üzemeltetői, szállásadói felelősségbiztosítása | G226: =IF('4.telephely'!$C$45>0,Tarifa!AD62,"Nem biztosított") -> Nem biztosított | I226: ='4.telephely'!$C$45 -> 0
B227: gépjárműjavítók felelősségbiztosítása | G227: =IF('4.telephely'!$C$46>0,Tarifa!AD53,"Nem biztosított") -> Nem biztosított | I227: ='4.telephely'!$C$46 -> 0
B228: gépjármű-eredetiségvizsgálatot végzők felelősségbiztosítása | G228: =IF('4.telephely'!$C$47>0,"5 millió Ft","Nem biztosított") -> Nem biztosított | I228: ='4.telephely'!$C$47 -> 0
B229: szolgáltatás tárgyában okozott károk biztosítása | G229: =IF('4.telephely'!$C$48>0,"5 millió Ft","Nem biztosított") -> Nem biztosított | I229: ='4.telephely'!$C$48 -> 0
B230: bérbeadói felelősségbiztosítás | G230: =IF('4.telephely'!$C$49>0,Tarifa!V84,"Nem biztosított") -> Nem biztosított | I230: ='4.telephely'!$C$49 -> 0
B231: környezetszennyezési felelősségbiztosítás | G231: =IF('4.telephely'!$C$50>0,Tarifa!V96,"Nem biztosított") -> Nem biztosított | I231: ='4.telephely'!$C$50 -> 0
B233: éves díj 4. telephelyre: | I233: ='4.telephely'!$C$52 -> 0
B253: Díjkalkuláció a K&H vállalkozói biztosításhoz (5.telephely)
B255: vállalkozói biztosítás kalkulációs adatai
B257: tevékenység megnevezése | F257: =Tarifa!Q7 -> Nem évelő növény termesztése
B258: tevékenység kódja | F258: ='5.telephely'!$H$3 -> 011
B259: telephely irányítószáma | F259: ='5.telephely'!$F$2 -> 0
B261: telephely éves árbevétele (e Ft) | F261: ='5.telephely'!$B$7 -> 0
B262: éves forgalom (e Ft) | F262: ='5.telephely'!$B$9 -> 0
B263: alkalmazottak száma (fő) | F263: ='5.telephely'!$B$8 -> 0
B264: éves bérleti díj (e Ft) | F264: ='5.telephely'!$B$10 -> 0
B265: bérbeadásból származó forgalom (e Ft) | F265: ='5.telephely'!$B$11 -> 0
B267: alapbiztosítás keretében biztosított vagyontárgyak
B268: épület, építmény (e Ft) | E268: ='5.telephely'!$B$16 -> 0
B269: egyéb tárgyi eszközök (e Ft) | E269: ='5.telephely'!$B$17 -> 0
B270: készletek (e Ft) | E270: ='5.telephely'!$B$18 -> 0
B271: készpénz (e Ft) | E271: ='5.telephely'!$B$19 -> 0 | G271: biztosítási összeg vagy kártérítési limit | I271: biztosítási díj
B272: alapbiztosítás
B273: tűz és elemi károk | G273: =IF('5.telephely'!C21>0,'5.telephely'!$B$21,"Nem biztosított") -> Nem biztosított | I273: ='5.telephely'!$C$21 -> 0
B275: kiegészítő biztosítások
B276: betöréses lopás és rablás biztosítás | G276: =IF('5.telephely'!C23=0,"Nem biztosított",((IF('5.telephely'!$E$17=TRUE,'5.telephely'!$B$17,0))+(IF('5.telephely'!$E$18=TRUE,SUM('5.telephely'!$B$18:'5.telephely'!$B$19),0))+(IF('5.telephely'!$E$20=TRUE,'5.telephely'!$B$20,0)))) -> Nem biztosított | I276: ='5.telephely'!$C$23 -> 0
B277: irodai és kereskedelmi elektronikus berendezések, eszközök | G277: =IF('5.telephely'!C25>0,'5.telephely'!$B$25,"Nem biztosított") -> Nem biztosított | I277: ='5.telephely'!$C$25 -> 0
B278: üzemszünet biztosítás | G278: =IF('5.telephely'!$C$27>0,"Szerződési feltételek szerint","Nem biztosított") -> Nem biztosított | I278: ='5.telephely'!$C$27 -> 0
B279: szállítmány biztosítás | G279: =IF('5.telephely'!C29>0,'5.telephely'!$B$29,"Nem biztosított") -> Nem biztosított | I279: ='5.telephely'!$C$29 -> 0
B280: vakolat károk biztosítása | G280: =IF('5.telephely'!$C$31>0,"Szerződési feltételek szerint","Nem biztosított") -> Nem biztosított | I280: ='5.telephely'!$C$31 -> 0
B281: tetőbeázási károk biztosítása | G281: =IF('5.telephely'!$C$33>0,"Szerződési feltételek szerint","Nem biztosított") -> Nem biztosított | I281: ='5.telephely'!$C$33 -> 0
B282: vandalizmus károk biztosítása | G282: =IF('5.telephely'!C35>0,'5.telephely'!$B$35,"Nem biztosított") -> Nem biztosított | I282: ='5.telephely'!$C$35 -> 0
B283: különleges üvegek üvegtörés biztosítása | G283: =IF('5.telephely'!C37>0,'5.telephely'!$B$37,"Nem biztosított") -> Nem biztosított | I283: ='5.telephely'!$C$37 -> 0
B284: általános és épülethasználói felelősségbiztosítás | G284: =IF('5.telephely'!$C$39>0,Tarifa!W26,"Nem biztosított") -> Nem biztosított | I284: ='5.telephely'!$C$39 -> 0
B285: tanuló baleseti és felelősségbiztosítás | G285: =IF('5.telephely'!$C$40>0,"5 millió Ft","Nem biztosított") -> Nem biztosított | I285: ='5.telephely'!$C$40 -> 0
B286: munkáltatói felelősségbiztosítás | G286: =IF('5.telephely'!$C$41>0,Tarifa!W37,"Nem biztosított") -> Nem biztosított | I286: ='5.telephely'!$C$41 -> 0
B287: termékfelelősség biztosítás | G287: =IF('5.telephely'!$C$42>0,Tarifa!W48,"Nem biztosított") -> Nem biztosított | I287: ='5.telephely'!$C$42 -> 0
B288: bérlői felelősségbiztosítás | G288: =IF('5.telephely'!$C$43>0,Tarifa!W60,"Nem biztosított") -> Nem biztosított | I288: ='5.telephely'!$C$43 -> 0
B289: szolgáltatói felelősségbiztosítás | G289: =IF('5.telephely'!$C$44>0,Tarifa!W72,"Nem biztosított") -> Nem biztosított | I289: ='5.telephely'!$C$44 -> 0
B290: szálloda üzemeltetői, szállásadói felelősségbiztosítása | G290: =IF('5.telephely'!$C$45>0,Tarifa!AE62,"Nem biztosított") -> Nem biztosított | I290: ='5.telephely'!$C$45 -> 0
B291: gépjárműjavítók felelősségbiztosítása | G291: =IF('5.telephely'!$C$46>0,Tarifa!AE53,"Nem biztosított") -> Nem biztosított | I291: ='5.telephely'!$C$46 -> 0
B292: gépjármű-eredetiségvizsgálatot végzők felelősségbiztosítása | G292: =IF('5.telephely'!$C$47>0,"5 millió Ft","Nem biztosított") -> Nem biztosított | I292: ='5.telephely'!$C$47 -> 0
... 4 more rows

Sheet Előzetes díjkalk.+adatközlő
A1: előzetes díjkalkuláció K&H vállalkozói biztosítás megkötésére | J1: K&H Biztosító Zrt.
J2: 1095 Budapest, Lechner Ödön fasor 9.
A3: biztosításközvetítő neve: | D3: =Adatfelvétel!Q6 -> 0
A4: biztosításközvetítő K&H-s nyilvántartási száma: | E4: =Adatfelvétel!Q4 -> 0 | H4: telefonszám: | I4: =Adatfelvétel!Q8 -> 0
A5: Szerzodo (Biztosított) adatai („ügyfél adatlap biztosítási szerzodés megkötéséhez” nyomtatvány adattartalmával egyenértékű adatok)
A6: név (szervezet rövid neve): | E6: =Adatfelvétel!O16 -> 0
A7: születéskori név (leánykori név): | E7: =Adatfelvétel!O17 -> 0
A8: anyja neve: | E8: =Adatfelvétel!O20 -> 0
A9: születési dátum: | D9: =IF(Adatfelvétel!O18=0," ",Adatfelvétel!O18) ->  | E9: születés helye: | F9: =Adatfelvétel!O19 -> 0 | H9: szervezet adószáma: | J9: =Adatfelvétel!O21 -> 0
A10: lakóhely / szervezet székhelyének címe: | E10: =Adatfelvétel!I24 -> 0 | F10: =Adatfelvétel!I25 -> 0 | H10: =Adatfelvétel!I26 -> 0
A11: kapcsolattartáshoz szükséges adatok
A12: ha a levelezési cím nem a lakóhely / szervezet székhelye, akkor más levelezési cím:
A13: kapcsolattartó neve: | D13: =Adatfelvétel!I34 -> 0
A14: telefonszám: | D14: =Adatfelvétel!I35 -> 0 | G14: mobil telefonszám: | I14: =Adatfelvétel!I36 -> 0
A15: e-mail cím: | D15: =Adatfelvétel!I37 -> 0 | G15: fax: | H15: =Adatfelvétel!I38 -> 0
A16: ügyfélkapcsolattartó kijelöléséhez szükséges adatok:
A17: Éves árbevétel 200 millió forint felett? | E17: =IF(Adatfelvétel!AH42=TRUE,"igen","nem") -> nem | H17: Állandó alkalmazottak száma 10 fő felett? | K17: =IF(Adatfelvétel!AH43=TRUE,"igen","nem") -> nem
A18: csak mezogazdasági ügyfelek esetén:
A19: Szántó/erdo terület 50 ha felett? | E19: =IF(Adatfelvétel!AH47=TRUE,"igen","nem") -> nem | H19: Kertészeti kultúra 5 ha felett? | K19: =IF(Adatfelvétel!AH48=TRUE,"igen","nem") -> nem
A20: Számosállatainak száma 30 felett? | E20: =IF(Adatfelvétel!AH49=TRUE,"igen","nem") -> nem
A21: kockázati besoroláshoz szükséges adatok a 2014. évi LXXXVIII. törvény alapján
A22: Mérleg főösszege 6,2 millió euró feletti? | F22: =IF(Adatfelvétel!AH53=TRUE,"igen","nem") -> nem | H22: Árbevétel (nettó) 12,8 millió euró feletti? | K22: =IF(Adatfelvétel!AH54=TRUE,"igen","nem") -> nem
A23: Átlagos alkalmazotti létszám eléri vagy meghaladja a 250 főt? | F23: =IF(Adatfelvétel!AH55=TRUE,"igen","nem") -> nem
A24: Felhívjuk szíves figyelmét, hogy - eltérő rendelkezés hiányában - a jelen ajánlaton közölt Szerződő (Biztosított) adatait a többi, társaságunknál hatályos szerződés vonatkozásában is figyelembe vesszük, illetve alkalmazzuk.
A26: zálogjogosult adatai
A27: neve | B27: =Adatfelvétel!I65 -> 0 | F27: címe | G27: =Adatfelvétel!I68 -> 0 | H27: =Adatfelvétel!I69 -> 0 | I27: =Adatfelvétel!I70 -> 0
A28: zálogjogosult adószáma | D28: =Adatfelvétel!I66 -> 0 | F28: hitelszám | H28: =Adatfelvétel!I73 -> 0
A29: hitel összege | D29: =Adatfelvétel!I71 -> 0 | F29: hitel lejárata | H29: =IF(Adatfelvétel!I72=0," ",Adatfelvétel!I72) -> 
A30: Kárkifizetési korlátozás: Kijelentem, hogy | E30: =Adatfelvétel!J74 -> 0 | F30: forintot meghaladó kár esetén a Biztosító szolgáltatására a
A31: kárkifizetéskor fennálló hitelösszeg és járulékainak erejéig a kötvényen (fedezetet igazoló dokumentumon) megjelölt kölcsönnyújtó hitelintézet javára zálogjog kerül bejegyzésre. Hozzájárulok ahhoz, hogy a hitelre vonatkozó adataimat a hitelintézet a Biztosítónak átadja, illetve a Biztosító a hitelhez kapcsolódó biztosításomra teljes köréről a vonatkozó adatok hitelintézetet tájékoztassa.
A32: biztosítási szerzodés általános adatai
A33: kockázatviselés kezdete : | D33: =Adatfelvétel!Q60 -> 00:00:00 | E33: ,de legkorábban az ajánlat aláírását követő nap 0:00 órája.
A34: A biztosítás tartama határozatlan. Az évforduló minden évben a kockázatviselés kezdete hónapjának 1. napja.
A35: díjfizetés gyakorisága: | D35: =Tarifa!AC8 -> negyedéves | H35: díjfizetés módja: | J35: =Tarifa!AE8 -> postai utalás
A36: Fizetendő éves biztosítási díj: | D36: ='1.telephely'!B67 -> 12000 | H36: Ft
A37: Felhívjuk szíves figyelmét, hogy a biztosítási szerződésre vonatkozó, továbbá az egyes biztosítási eseményekhez kapcsolódó önrészesedés mértékét a vonatkozó szerződési feltételek tartalmazzák.
A38: kedvezmények
A39: =IF(Tarifa!AF31<1,"volumen engedmény"," ") ->  | C39: =IF(Tarifa!AF31=1," ",Tarifa!AF32) ->  | D39: =IF(Tarifa!AA15<1,"lojalitás engedmény"," ") ->  | F39: =IF(Tarifa!AA15=1," ",Tarifa!AD15) ->  | H39: =IF(Tarifa!AO12<0.5,"Az összesített kedvezmény mértéke maximálisan 50% lehet, a díjfizetési engedményen és a központi díjeltérítési szorzón kívül."," ") -> 
A40: =IF(Tarifa!AE15<1,"csomag engedmény"," ") ->  | C40: =IF(Tarifa!AE15=1," ",Tarifa!AG15) ->  | D40: =IF(Tarifa!Z8<1,"díjfizetési engedmény"," ") -> díjfizetési engedmény | F40: =IF(Tarifa!Z8=1," ",Tarifa!AA8) -> 0.02
A41: =IF(Tarifa!AB11<1,"díjeltérítési szorzó"," ") ->  | C41: =IF(Tarifa!AB11=1," ",Tarifa!AC11) ->  | D41: =IF(Tarifa!AB12<1,"központi díjeltérítési szorzó"," ") ->  | F41: =IF(Tarifa!AB12=1," ",Tarifa!AC12) -> 
A42: a helyszíni kockázatelbírálást végzo személy
A43: [ ] biztosításközvetítő [ ] egyéb képviselő:
I44: a helyszíni Kockázatelbíráló aláírása
A45: =CONCATENATE("A Biztosító felhívja a szerződő illetve biztosított figyelmét arra, hogy ha a szerződő a biztosítási összeget a vagyoncsoport, vagyontárgy értékénél alacsonyabb összegben határozta meg, ","a Biztosító az esetleges kár rendezése során a kárt csak olyan arányban köteles megtéríteni, ahogy a biztosítási összeg a vagyoncsoport, vagyontárgy értékéhez aránylik.") -> A Biztosító felhívja a szerződő illetve biztosított figyelmét arra, hogy ha a szerződő a biztosítási összeget a vagyoncsoport, vagyontárgy értékénél alacsonyabb összegben határozta meg, a Biztosító az esetleges kár rendezése során a kárt csak olyan arányban köteles megtéríteni, ahogy a biztosítási összeg a vagyoncsoport, vagyontárgy értékéhez aránylik.
A46: Alulírott szerződő kötelezettséget vállalok arra, hogy a szerződés részét képező szerződési feltételek alapján megállapított, a kötvényben (fedezetet igazoló dokumentumban) előírt díjat a jelen megállapodás szerint megfizetem. A felek az első díj tekintetében a kötvényben (fedezetet igazoló dokumentumban) és a díjesedékességi értesítőben foglalt díjesedékességi határidőig halasztásban állapodnak meg. Tudomásul veszem, hogy a szerződésre a K&H vállalkozói biztosítás (KVB-13) szerződési feltételei vonatkoznak, amelyet az ügyfél-tájékoztatóval együtt az ajánlat aláírása előtt átvettem, és annak tartalmát megértettem. Felhatalmazom a Biztosítót arra, hogy az igényelt biztosítással összefüggő adatokat számítógépen tárolja, és az illetékes viszontbiztosítónak átadja. Kívánságomra megadják annak a címét és adatait, akinek adataimat továbbították. Vállalom, hogy a szerződést érintő adatokban bekövetkező változásokat a Biztosítónak 8 napon belül bejelentem. A "nyilatkozat nem-életbiztosítási szerződés megkötéséhez" nyomtatvány a szerződés részét képezi. Nem jön létre a szerződés, ha az ajánlatot a Biztosító annak átadását követően számított 15 napon belül visszautasítja. A Biztosító akkor is jogosult az ajánlat visszautasítására, ha a 15 napos kockázatelbírálási határidő alatt biztosítási esemény következik be. Az arról való tájékoztatást, hogy a K&H Biztosító Zrt. biztosításközvetítői a K&H Biztosító Zrt. nevében biztosítási díj átvételére nem jogosultak, megkaptam.
A57: Az előzetes díjkalkuláció | C57: =Tarifa!AN3 -> 2021-10-31 | E57: -ig érvényes.
A59: Előzetes díjkalkuláció kiállításának dátuma | E59: =Adatfelvétel!Q12 -> 2021-04-21
A61: Kelt: | I61: Szerződő (szervezet képviseletére jogosult) /
I62: Biztosított aláírása
J64: 1-10805-00
A66: telephelyi adatközlő és díjszámítás K&H vállalkozói biztosításhoz | J66: K&H Biztosító Zrt.
C67: adatközlő sorszáma | E67: =IF(AND('1.telephely'!C55>0,'2.telephely'!C52=0,'3.telephely'!C52=0,'4.telephely'!C52=0,'5.telephely'!C52=0),"1/1",IF(AND('1.telephely'!C55>0,'2.telephely'!C52>0,'3.telephely'!C52=0,'4.telephely'!C52=0,'5.telephely'!C52=0),"1/2",IF(AND('1.telephely'!C55>0,'2.telephely'!C52>0,'3.telephely'!C52>0,'4.telephely'!C52=0,'5.telephely'!C52=0),"1/3",IF(AND('1.telephely'!C55>0,'2.telephely'!C52>0,'3.telephely'!C52>0,'4.telephely'!C52>0,'5.telephely'!C52=0),"1/4",IF(AND('1.telephely'!C55>0,'2.telephely'!C52>0,'3.telephely'!C52>0,'4.telephely'!C52>0,'5.telephely'!C52>0),"1/5",0))))) -> 0 | J67: 1095 Budapest, Lechner Ödön fasor 9.
A69: telephely megnevezése: | C69: ='1.telephely'!B4 -> 0
A70: telephely és kockázatviselés helye: | E70: ='1.telephely'!F5 -> 0 | F70: ='1.telephely'!F6 -> 0
A71: tevékenység kódja és megnevezése: | E71: =Tarifa!P3 -> 011 | F71: =Tarifa!Q3 -> Nem évelő növény termesztése
A72: tárgyi eszközök értékelésének módja: | E72: =IF(Tarifa!AB75=1,"Új értéken","Valós értéken") -> Valós értéken | F72: éves árbevétel: | H72: ='1.telephely'!B10 -> 0 | I72: alkalmazottak száma: | K72: ='1.telephely'!B11 -> 0
A73: alapbiztosítás - tűz és elemi károk, biztosított épületek üvegkárai
A74: biztosított vagyontárgyak, biztosítási összeg | G74: Kockázati osztály: | I74: ='1.telephely'!F24 -> 3
A75: épület, építmény: | D75: ='1.telephely'!B19 -> 0 | E75: saját készletek: | F75: ='1.telephely'!B21 -> 0 | G75: idegen készletek: | I75: ='1.telephely'!B22 -> 0 | J75: készpénz: | K75: ='1.telephely'!B23 -> 0
A76: egyéb tárgyi eszközök: | D76: ='1.telephely'!B20 -> 0 | E76: összesen | F76: ='1.telephely'!B24 -> 0 | J76: díj: | K76: ='1.telephely'!C24 -> 0
A77: kiegészítő biztosítások
A78: Betöréses lopás és rablás biztosítás | E78: Vidéki kedvezmény: | G78: ='1.telephely'!E26 -> - | I78: Kockázati osztály: | K78: ='1.telephely'!F26 -> 1
A79: egyéb tárgyi eszközök: | C79: =IF('1.telephely'!E20=FALSE," ",'1.telephely'!B20) ->  | E79: készletek (saját + idegen): | G79: =IF('1.telephely'!E21=FALSE," ",SUM('1.telephely'!B21,'1.telephely'!B22)) ->  | I79: készpénz: | J79: =IF('1.telephely'!E23=FALSE," ",'1.telephely'!B23) -> 
J80: díj: | K80: =IF('1.telephely'!C26>0,'1.telephely'!C26,"Nem biztosított") -> Nem biztosított
A81: Irodai és kereskedelmi elektronikus berendezések, eszközök biztosítása
A82: biztosítási összeg: | D82: =IF('1.telephely'!E28=FALSE," ",'1.telephely'!B28) ->  | J82: díj: | K82: =IF('1.telephely'!C28>0,'1.telephely'!C28,"Nem biztosított") -> Nem biztosított
A83: Üzemszünet biztosítás | G83: Kockázati osztály: | I83: ='1.telephely'!F30 -> 2
A84: éves árbevétel: | D84: ='1.telephely'!B10 -> 0 | J84: díj: | K84: =IF('1.telephely'!C30>0,'1.telephely'!C30,"Nem biztosított") -> Nem biztosított
A85: Szállítmány biztosítás
A86: biztosítási összeg: | D86: =IF('1.telephely'!E32=FALSE," ",'1.telephely'!B32) ->  | J86: díj: | K86: =IF('1.telephely'!C32>0,'1.telephely'!C32,"Nem biztosított") -> Nem biztosított
A87: Vakolat károk biztosítása
A88: biztosítási összeg: | D88: =IF('1.telephely'!E34=FALSE," ",'1.telephely'!B19) ->  | J88: díj: | K88: =IF('1.telephely'!C34>0,'1.telephely'!C34,"Nem biztosított") -> Nem biztosított
A89: Tetőbeázási károk biztosítása
A90: biztosítási összeg: | D90: =IF('1.telephely'!E36=FALSE," ",'1.telephely'!B19) ->  | J90: díj: | K90: =IF('1.telephely'!C36>0,'1.telephely'!C36,"Nem biztosított") -> Nem biztosított
A91: Vandalizmus károk biztosítása
A92: biztosítási összeg: | D92: =IF('1.telephely'!E38=FALSE," ",'1.telephely'!B38) ->  | J92: díj: | K92: =IF('1.telephely'!C38>0,'1.telephely'!C38,"Nem biztosított") -> Nem biztosított
A93: Különleges üvegek üvegtörés biztosítása
A94: biztosítási összeg: | D94: =IF('1.telephely'!E40=FALSE," ",'1.telephely'!B40) ->  | J94: díj: | K94: =IF('1.telephely'!C40>0,'1.telephely'!C40,"Nem biztosított") -> Nem biztosított
A95: Általános és épülethasználói felelősségbiztosítás | G95: Kockázati osztály: | I95: ='1.telephely'!F42 -> 2
A96: alkalmazottak száma (fő): | C96: ='1.telephely'!B11 -> 0 | E96: Kártérítési limit: | G96: =IF('1.telephely'!E42=FALSE," ",Tarifa!S26) ->  | J96: díj: | K96: =IF('1.telephely'!C42>0,'1.telephely'!C42,"Nem biztosított") -> Nem biztosított
A97: Tanuló baleseti és felelősségbiztosítás | E97: Kockázati osztály (általános): | G97: ='1.telephely'!F43 -> 2 | H97: Kockázati osztály (munkáltatói): | K97: ='1.telephely'!G43 -> 3
A98: tanulók létszáma (fő): | C98: ='1.telephely'!B43 -> 0 | E98: Kártérítési limit: | G98: =IF('1.telephely'!E43=FALSE," ","5 millió Ft") ->  | J98: díj: | K98: =IF('1.telephely'!C43>0,'1.telephely'!C43,"Nem biztosított") -> Nem biztosított
A99: Munkáltatói felelősségbiztosítás | G99: Kockázati osztály: | I99: ='1.telephely'!F44 -> 3
A100: alkalmazottak száma (fő): | C100: ='1.telephely'!B11 -> 0 | E100: Kártérítési limit: | G100: =IF('1.telephely'!E44=FALSE," ",Tarifa!S37) ->  | J100: díj: | K100: =IF('1.telephely'!C44>0,'1.telephely'!C44,"Nem biztosított") -> Nem biztosított
A101: Termékfelelősség biztosítás | G101: Kockázati osztály: | I101: ='1.telephely'!F45 -> 1
A102: éves forgalom: | D102: ='1.telephely'!B12 -> 0 | E102: Kártérítési limit: | G102: =IF('1.telephely'!E45=FALSE," ",Tarifa!S48) ->  | J102: díj: | K102: =IF('1.telephely'!C45>0,'1.telephely'!C45,"Nem biztosított") -> Nem biztosított
A103: Bérlői felelősségbiztosítás | G103: Kockázati osztály: | I103: ='1.telephely'!F46 -> 2
A104: éves bérleti díj: | D104: ='1.telephely'!B13 -> 0 | E104: Kártérítési limit: | G104: =IF('1.telephely'!E46=FALSE," ",Tarifa!S60) ->  | J104: díj: | K104: =IF('1.telephely'!C46>0,'1.telephely'!C46,"Nem biztosított") -> Nem biztosított
A105: Szolgáltatói felelősségbiztosítás | G105: Kockázati osztály: | I105: ='1.telephely'!F47 -> 1
A106: éves forgalom: | D106: ='1.telephely'!B12 -> 0 | E106: Kártérítési limit: | G106: =IF('1.telephely'!E47=FALSE," ",Tarifa!S72) ->  | J106: díj: | K106: =IF('1.telephely'!C47>0,'1.telephely'!C47,"Nem biztosított") -> Nem biztosított
A107: Szálloda üzemeltetői, szállásadói felelősségbiztosítása
E108: Kártérítési limit: | G108: =IF('1.telephely'!E48=FALSE," ",Tarifa!AA62) ->  | J108: díj: | K108: =IF('1.telephely'!C48>0,'1.telephely'!C48,"Nem biztosított") -> Nem biztosított
A109: Gépjárműjavítók felelősségbiztosítása
A110: éves forgalom: | D110: ='1.telephely'!B12 -> 0 | E110: Kártérítési limit: | G110: =IF('1.telephely'!E49=FALSE," ",Tarifa!AA53) ->  | J110: díj: | K110: =IF('1.telephely'!C49>0,'1.telephely'!C49,"Nem biztosított") -> Nem biztosított
A111: Gépjármű-eredetiségvizsgálatot végzők felelősségbiztosítása
E112: Kártérítési limit: | G112: =IF('1.telephely'!E50=FALSE," ","5 millió Ft") ->  | J112: díj: | K112: =IF('1.telephely'!C50>0,'1.telephely'!C50,"Nem biztosított") -> Nem biztosított
A113: Szolgáltatás tárgyában okozott károk biztosítása
E114: Kártérítési limit: | G114: =IF('1.telephely'!E51=FALSE," ","5 millió Ft") ->  | J114: díj: | K114: =IF('1.telephely'!C51>0,'1.telephely'!C51,"Nem biztosított") -> Nem biztosított
A115: Bérbeadói felelősségbiztosítás
A116: bérbeadásból származó forgalom: | D116: ='1.telephely'!B14 -> 0 | E116: Kártérítési limit: | G116: =IF('1.telephely'!E52=FALSE," ",Tarifa!S84) ->  | J116: díj: | K116: =IF('1.telephely'!C52>0,'1.telephely'!C52,"Nem biztosított") -> Nem biztosított
A117: Környezetszennyezési felelősségbiztosítás
A118: éves forgalom: | D118: ='1.telephely'!B12 -> 0 | E118: Kártérítési limit: | G118: =IF('1.telephely'!E53=FALSE," ",Tarifa!S96) ->  | J118: díj: | K118: =IF('1.telephely'!C53>0,'1.telephely'!C53,"Nem biztosított") -> Nem biztosított
F120: éves biztosítási díj a 1. telephelyre: | K120: ='1.telephely'!C55 -> 0
A124: Kelt: | H124: Szerződő (szervezet képviseletére jogosult) /
H125: Biztosított aláírása
A129: telephelyi adatközlő és díjszámítás K&H vállalkozói biztosításhoz | J129: K&H Biztosító Zrt.
C130: adatközlő sorszáma | E130: =IF(AND('1.telephely'!C55>0,'2.telephely'!C52>0,'3.telephely'!C52=0,'4.telephely'!C52=0,'5.telephely'!C52=0),"2/2",IF(AND('1.telephely'!C55>0,'2.telephely'!C52>0,'3.telephely'!C52>0,'4.telephely'!C52=0,'5.telephely'!C52=0),"2/3",IF(AND('1.telephely'!C55>0,'2.telephely'!C52>0,'3.telephely'!C52>0,'4.telephely'!C52>0,'5.telephely'!C52=0),"2/4",IF(AND('1.telephely'!C55>0,'2.telephely'!C52>0,'3.telephely'!C52>0,'4.telephely'!C52>0,'5.telephely'!C52>0),"2/5",0)))) -> 0 | J130: 1095 Budapest, Lechner Ödön fasor 9.
A132: telephely megnevezése: | C132: ='2.telephely'!$B$1 -> 0
A133: telephely és kockázatviselés helye: | E133: ='2.telephely'!$F$2 -> 0 | F133: ='2.telephely'!F3 -> 0
A134: tevékenység kódja és megnevezése: | E134: =Tarifa!P4 -> 011 | F134: =Tarifa!Q4 -> Nem évelő növény termesztése
A135: tárgyi eszközök értékelésének módja: | E135: =IF(Tarifa!AB76=1,"Új értéken","Valós értéken") -> Új értéken | F135: éves árbevétel: | H135: ='2.telephely'!$B$7 -> 0 | I135: alkalmazottak száma: | K135: ='2.telephely'!$B$8 -> 0
A136: alapbiztosítás - tűz és elemi károk, biztosított épületek üvegkárai
A137: biztosított vagyontárgyak, biztosítási összeg | G137: Kockázati osztály: | I137: ='2.telephely'!$F$21 -> 3
A138: épület, építmény: | D138: ='2.telephely'!$B$16 -> 0 | E138: saját készletek: | F138: ='2.telephely'!$B$18 -> 0 | G138: idegen készletek: | I138: ='2.telephely'!$B$19 -> 0 | J138: készpénz: | K138: ='2.telephely'!$B$20 -> 0
A139: egyéb tárgyi eszközök: | D139: ='2.telephely'!$B$17 -> 0 | E139: összesen | F139: ='2.telephely'!$B$21 -> 0 | J139: díj: | K139: ='2.telephely'!$C$21 -> 0
A140: kiegészítő biztosítások
A141: Betöréses lopás és rablás biztosítás | E141: Vidéki kedvezmény: | G141: ='2.telephely'!E23 -> - | I141: Kockázati osztály: | K141: ='2.telephely'!$F$23 -> 1
A142: egyéb tárgyi eszközök: | D142: =IF('2.telephely'!$E$17=FALSE," ",'2.telephely'!$B$17) ->  | E142: készletek (saját + idegen): | G142: =IF('2.telephely'!$E$18=FALSE," ",'2.telephely'!$B$18+'2.telephely'!$B$19) ->  | I142: készpénz: | J142: =IF('2.telephely'!E20=FALSE," ",'2.telephely'!$B$20) -> 
J143: díj: | K143: =IF('2.telephely'!$C$23>0,'2.telephely'!$C$23,"Nem biztosított") -> Nem biztosított
A144: Irodai és kereskedelmi elektronikus berendezések, eszközök biztosítása
A145: biztosítási összeg: | D145: =IF('2.telephely'!$E$25=FALSE," ",'2.telephely'!$B$25) ->  | J145: díj: | K145: =IF('2.telephely'!$C$25>0,'2.telephely'!$C$25,"Nem biztosított") -> Nem biztosított
A146: Üzemszünet biztosítás | G146: Kockázati osztály: | I146: ='2.telephely'!$F$27 -> 2
A147: éves árbevétel: | D147: ='2.telephely'!$B$7 -> 0 | J147: díj: | K147: =IF('2.telephely'!$C$27>0,'2.telephely'!$C$27,"Nem biztosított") -> Nem biztosított
A148: Szállítmány biztosítás
A149: biztosítási összeg: | D149: =IF('2.telephely'!$E$29=FALSE," ",'2.telephely'!$B$29) ->  | J149: díj: | K149: =IF('2.telephely'!$C$29>0,'2.telephely'!$C$29,"Nem biztosított") -> Nem biztosított
A150: Vakolat károk biztosítása
A151: biztosítási összeg: | D151: =IF('2.telephely'!$E$31=FALSE," ",'2.telephely'!$B$16) ->  | J151: díj: | K151: =IF('2.telephely'!$C$31>0,'2.telephely'!$C$31,"Nem biztosított") -> Nem biztosított
A152: Tetőbeázási károk biztosítása
A153: biztosítási összeg: | D153: =IF('2.telephely'!$E$33=FALSE," ",'2.telephely'!$B$16) ->  | J153: díj: | K153: =IF('2.telephely'!$C$33>0,'2.telephely'!$C$33,"Nem biztosított") -> Nem biztosított
A154: Vandalizmus károk biztosítása
A155: biztosítási összeg: | D155: =IF('2.telephely'!$E$35=FALSE," ",'2.telephely'!$B$35) ->  | J155: díj: | K155: =IF('2.telephely'!$C$35>0,'2.telephely'!$C$35,"Nembiztosított") -> Nembiztosított
A156: Különleges üvegek üvegtörés biztosítása
A157: biztosítási összeg: | D157: =IF('2.telephely'!$E$37=FALSE," ",'2.telephely'!$B$37) ->  | J157: díj: | K157: =IF('2.telephely'!$C$37>0,'2.telephely'!$C$37,"Nem biztosított") -> Nem biztosított
A158: Általános és épülethasználói felelősségbiztosítás | G158: Kockázati osztály: | I158: ='2.telephely'!$F$39 -> 2
A159: alkalmazottak száma (fő): | C159: ='2.telephely'!$B$8 -> 0 | E159: Kártérítési limit: | G159: =IF('2.telephely'!$E$39=FALSE," ",Tarifa!T26) ->  | J159: díj: | K159: =IF('2.telephely'!$C$39>0,'2.telephely'!$C$39,"Nem biztosított") -> Nem biztosított
A160: Tanuló baleseti és felelősségbiztosítás | E160: Kockázati osztály (általános): | G160: ='2.telephely'!$F$40 -> 2 | H160: Kockázati osztály (munkáltatói): | K160: ='2.telephely'!$G$40 -> 3
A161: tanulók létszáma (fő): | C161: ='2.telephely'!$B$40 -> 0 | E161: Kártérítési limit: | G161: =IF('2.telephely'!$E$40=FALSE," ","5 millió Ft") ->  | J161: díj: | K161: =IF('2.telephely'!$C$40>0,'2.telephely'!$C$40,"Nem biztosított") -> Nem biztosított
A162: Munkáltatói felelősségbiztosítás | G162: Kockázati osztály: | I162: ='2.telephely'!$F$41 -> 3
A163: alkalmazottak száma (fő): | C163: ='2.telephely'!$B$8 -> 0 | E163: Kártérítési limit: | G163: =IF('2.telephely'!$E$41=FALSE," ",Tarifa!T37) ->  | J163: díj: | K163: =IF('2.telephely'!$C$41>0,'2.telephely'!$C$41,"Nem biztosított") -> Nem biztosított
A164: Termékfelelősség biztosítás | G164: Kockázati osztály: | I164: ='2.telephely'!$F$42 -> 1
A165: éves forgalom: | D165: ='2.telephely'!$B$9 -> 0 | E165: Kártérítési limit: | G165: =IF('2.telephely'!$E$42=FALSE," ",Tarifa!T48) ->  | J165: díj: | K165: =IF('2.telephely'!$C$42>0,'2.telephely'!$C$42,"Nem biztosított") -> Nem biztosított
A166: Bérlői felelősségbiztosítás | G166: Kockázati osztály: | I166: ='2.telephely'!$F$43 -> 2
A167: éves bérleti díj: | D167: ='2.telephely'!$B$10 -> 0 | E167: Kártérítési limit: | G167: =IF('2.telephely'!$E$43=FALSE," ",Tarifa!T60) ->  | J167: díj: | K167: =IF('2.telephely'!$C$43>0,'2.telephely'!$C$43,"Nem biztosított") -> Nem biztosított
A168: Szolgáltatói felelősségbiztosítás | G168: Kockázati osztály: | I168: ='2.telephely'!$F$44 -> 1
A169: éves forgalom: | D169: ='2.telephely'!$B$9 -> 0 | E169: Kártérítési limit: | G169: =IF('2.telephely'!$E$44=FALSE," ",Tarifa!T72) ->  | J169: díj: | K169: =IF('2.telephely'!$C$44>0,'2.telephely'!$C$44,"Nem biztosított") -> Nem biztosított
A170: Szálloda üzemeltetői, szállásadói felelősségbiztosítása
E171: Kártérítési limit: | G171: =IF('2.telephely'!$E$45=FALSE," ",Tarifa!AB62) ->  | J171: díj: | K171: =IF('2.telephely'!$C$45>0,'2.telephely'!$C$45,"Nem biztosított") -> Nem biztosított
A172: Gépjárműjavítók felelősségbiztosítása
A173: éves forgalom: | D173: ='2.telephely'!$B$9 -> 0 | E173: Kártérítési limit: | G173: =IF('2.telephely'!$E$46=FALSE," ",Tarifa!AB53) ->  | J173: díj: | K173: =IF('2.telephely'!$C$46>0,'2.telephely'!$C$46,"Nem biztosított") -> Nem biztosított
A174: Gépjármű-eredetiségvizsgálatot végzők felelősségbiztosítása
E175: Kártérítési limit: | G175: =IF('2.telephely'!$E$47=FALSE," ","5 millió Ft") ->  | J175: díj: | K175: =IF('2.telephely'!$C$47>0,'2.telephely'!$C$47,"Nem biztosított") -> Nem biztosított
A176: Szolgáltatás tárgyában okozott károk biztosítása
E177: Kártérítési limit: | G177: =IF('2.telephely'!$E$48=FALSE," ","5 millió Ft") ->  | J177: díj: | K177: =IF('2.telephely'!$C$48>0,'2.telephely'!$C$48,"Nem biztosított") -> Nem biztosított
A178: Bérbeadói felelősségbiztosítás
A179: bérbeadásból származó forgalom: | D179: ='2.telephely'!$B$11 -> 0 | E179: Kártérítési limit: | G179: =IF('2.telephely'!$E$49=FALSE," ",Tarifa!T84) ->  | J179: díj: | K179: =IF('2.telephely'!$C$49>0,'2.telephely'!$C$49,"Nem biztosított") -> Nem biztosított
A180: Környezetszennyezési felelősségbiztosítás
A181: éves forgalom: | D181: ='2.telephely'!$B$9 -> 0 | E181: Kártérítési limit: | G181: =IF('2.telephely'!$E$50=FALSE," ",Tarifa!T96) ->  | J181: díj: | K181: =IF('2.telephely'!$C$50>0,'2.telephely'!$C$50,"Nem biztosított") -> Nem biztosított
F185: éves biztosítási díj a 2. telephelyre: | K185: ='2.telephely'!$C$52 -> 0
A190: Kelt: | H190: Szerződő (szervezet képviseletére jogosult) /
H191: Biztosított aláírása
A195: telephelyi adatközlő és díjszámítás K&H vállalkozói biztosításhoz | J195: K&H Biztosító Zrt.
C196: adatközlő sorszáma | E196: =IF(AND('1.telephely'!C55>0,'2.telephely'!C52>0,'3.telephely'!C52>0,'4.telephely'!C52=0,'5.telephely'!C52=0),"3/3",IF(AND('1.telephely'!C55>0,'2.telephely'!C52>0,'3.telephely'!C52>0,'4.telephely'!C52>0,'5.telephely'!C52=0),"3/4",IF(AND('1.telephely'!C55>0,'2.telephely'!C52>0,'3.telephely'!C52>0,'4.telephely'!C52>0,'5.telephely'!C52>0),"3/5",0))) -> 0 | J196: 1095 Budapest, Lechner Ödön fasor 9.
A198: telephely megnevezése: | C198: ='3.telephely'!$B$1 -> 0
A199: telephely és kockázatviselés helye: | E199: ='3.telephely'!$F$2 -> 0 | F199: ='3.telephely'!$E$3:$F$3 -> 0
A200: tevékenység kódja és megnevezése: | E200: =Tarifa!P5 -> 011 | F200: =Tarifa!Q5 -> Nem évelő növény termesztése
A201: tárgyi eszközök értékelésének módja: | E201: =IF(Tarifa!AB77=1,"Új értéken","Valós értéken") -> Valós értéken | F201: éves árbevétel: | H201: ='3.telephely'!$B$7 -> 0 | I201: alkalmazottak száma: | K201: ='3.telephely'!$B$8 -> 0
A202: alapbiztosítás - tűz és elemi károk, biztosított épületek üvegkárai
A203: biztosított vagyontárgyak, biztosítási összeg | G203: Kockázati osztály: | I203: ='3.telephely'!$F$21 -> 3
A204: épület, építmény: | D204: ='3.telephely'!$B$16 -> 0 | E204: saját készletek: | F204: ='3.telephely'!$B$18 -> 0 | G204: idegen készletek: | I204: ='3.telephely'!$B$19 -> 0 | J204: készpénz: | K204: ='3.telephely'!$B$20 -> 0
A205: egyéb tárgyi eszközök: | D205: ='3.telephely'!$B$17 -> 0 | E205: összesen | F205: ='3.telephely'!$B$21 -> 0 | I205: díj: | J205: ='3.telephely'!$C$21 -> 0
A206: kiegészítő biztosítások
A207: Betöréses lopás és rablás biztosítás | E207: Vidéki kedvezmény: | G207: ='3.telephely'!$E$23 -> - | I207: Kockázati osztály: | K207: ='3.telephely'!$F$23 -> 1
A208: egyéb tárgyi eszközök: | C208: =IF('3.telephely'!$E$17=FALSE," ",'3.telephely'!$B$17) ->  | E208: készletek (saját + idegen): | G208: =IF('3.telephely'!$E$18=FALSE," ",'3.telephely'!$B$18+'3.telephely'!$B$19) ->  | I208: készpénz: | J208: =IF('3.telephely'!E20=FALSE," ",'3.telephely'!$B$20) -> 
J209: díj: | K209: =IF('3.telephely'!$C$23>0,'3.telephely'!$C$23,"Nem biztosított") -> Nem biztosított
A210: Irodai és kereskedelmi elektronikus berendezések, eszközök biztosítása
A211: biztosítási összeg: | D211: =IF('3.telephely'!$E$25=FALSE," ",'3.telephely'!$B$25) ->  | J211: díj: | K211: =IF('3.telephely'!$C$25>0,'3.telephely'!$C$25,"Nem biztosított") -> Nem biztosított
A212: Üzemszünet biztosítás | G212: Kockázati osztály: | I212: ='3.telephely'!$F$27 -> 2
A213: éves árbevétel: | D213: ='3.telephely'!$B$7 -> 0 | J213: díj: | K213: =IF('3.telephely'!$C$27>0,'3.telephely'!$C$27,"Nem biztosított") -> Nem biztosított
A214: Szállítmány biztosítás
A215: biztosítási összeg: | D215: =IF('3.telephely'!$E$29=FALSE," ",'3.telephely'!$B$29) ->  | J215: díj: | K215: =IF('3.telephely'!$C$29>0,'3.telephely'!$C$29,"Nem biztosított") -> Nem biztosított
A216: Vakolat károk biztosítása
A217: biztosítási összeg: | D217: =IF('3.telephely'!$E$31=FALSE," ",'3.telephely'!$B$16) ->  | J217: díj: | K217: =IF('3.telephely'!$C$31>0,'3.telephely'!$C$31,"Nem biztosított") -> Nem biztosított
A218: Tetőbeázási károk biztosítása
A219: biztosítási összeg: | D219: =IF('3.telephely'!$E$33=FALSE," ",'3.telephely'!$B$16) ->  | J219: díj: | K219: =IF('3.telephely'!$C$33>0,'3.telephely'!$C$33,"Nem biztosított") -> Nem biztosított
A220: Vandalizmus károk biztosítása
A221: biztosítási összeg: | D221: =IF('3.telephely'!$E$35=FALSE," ",'3.telephely'!$B$35) ->  | J221: díj: | K221: =IF('3.telephely'!$C$35>0,'3.telephely'!$C$35,"Nembiztosított") -> Nembiztosított
A222: Különleges üvegek üvegtörés biztosítása
A223: biztosítási összeg: | D223: =IF('3.telephely'!$E$37=FALSE," ",'3.telephely'!$B$37) ->  | J223: díj: | K223: =IF('3.telephely'!$C$37>0,'3.telephely'!$C$37,"Nem biztosított") -> Nem biztosított
A224: Általános és épülethasználói felelősségbiztosítás | G224: Kockázati osztály: | I224: ='3.telephely'!$F$39 -> 2
A225: alkalmazottak száma (fő): | C225: ='3.telephely'!$B$8 -> 0 | E225: Kártérítési limit: | G225: =IF('3.telephely'!$E$39=FALSE," ",Tarifa!U26) ->  | J225: díj: | K225: =IF('3.telephely'!$C$39>0,'3.telephely'!$C$39,"Nem biztosított") -> Nem biztosított
A226: Tanuló baleseti és felelősségbiztosítás | D226: Kockázati osztály (általános): | G226: ='3.telephely'!$F$40 -> 2 | H226: Kockázati osztály (munkáltatói): | K226: ='3.telephely'!$G$40 -> 3
A227: tanulók létszáma (fő): | C227: ='3.telephely'!$B$40 -> 0 | E227: Kártérítési limit: | G227: =IF('3.telephely'!$E$40=FALSE," ","5 millió Ft") ->  | J227: díj: | K227: =IF('3.telephely'!$C$40>0,'3.telephely'!$C$40,"Nem biztosított") -> Nem biztosított
A228: Munkáltatói felelősségbiztosítás | G228: Kockázati osztály: | I228: ='3.telephely'!$F$41 -> 3
A229: alkalmazottak száma (fő): | C229: ='3.telephely'!$B$8 -> 0 | E229: Kártérítési limit: | G229: =IF('3.telephely'!$E$41=FALSE," ",Tarifa!U37) ->  | J229: díj: | K229: =IF('3.telephely'!$C$41>0,'3.telephely'!$C$41,"Nem biztosított") -> Nem biztosított
A230: Termékfelelősség biztosítás | G230: Kockázati osztály: | I230: ='3.telephely'!$F$42 -> 1
A231: éves forgalom: | D231: ='3.telephely'!$B$9 -> 0 | E231: Kártérítési limit: | G231: =IF('3.telephely'!$E$42=FALSE," ",Tarifa!U48) ->  | J231: díj: | K231: =IF('3.telephely'!$C$42>0,'3.telephely'!$C$42,"Nem biztosított") -> Nem biztosított
A232: Bérlői felelősségbiztosítás | G232: Kockázati osztály: | I232: ='3.telephely'!$F$43 -> 2
A233: éves bérleti díj: | D233: ='3.telephely'!$B$10 -> 0 | E233: Kártérítési limit: | G233: =IF('3.telephely'!$E$43=FALSE," ",Tarifa!U60) ->  | J233: díj: | K233: =IF('3.telephely'!$C$43>0,'3.telephely'!$C$43,"Nem biztosított") -> Nem biztosított
A234: Szolgáltatói felelősségbiztosítás | G234: Kockázati osztály: | I234: ='3.telephely'!$F$44 -> 1
A235: éves forgalom: | D235: ='3.telephely'!$B$9 -> 0 | E235: Kártérítési limit: | G235: =IF('3.telephely'!$E$44=FALSE," ",Tarifa!U72) ->  | J235: díj: | K235: =IF('3.telephely'!$C$44>0,'3.telephely'!$C$44,"Nem biztosított") -> Nem biztosított
... 125 more rows
